Workbook

Sheet 1F
A1: Figure 1F
A2: hVCF %CD4+ CD3-
A4: Vim+ aSMA- | B4: Vim- aSMA+ | C4: Vim+ aSMA+
A5: 12.9 | B5: 12.2 | C5: 30.7
A6: 12.3 | B6: 10.6 | C6: 32.1
A7: 15.7 | B7: 12 | C7: 34.3

Sheet 2B
A1: Figure 2B
A2: % CD4+ aSMA+ Cells Quantification & Calculation
A4: Patient ID | B4: Region | C4: Image Number | D4: # CD4+ aSMA+ Cells | E4: # aSMA Cells | F4: CD4 + aSMA % | K4: Patient ID | L4: Region | M4: # CD4+ aSMA+ Cells | N4: # aSMA+ Cells | O4: % CD4 + aSMA Cells over aSMA Cells
A5: A | B5: Non Fibrotic | C5: 1 | D5: 3 | E5: 114 | F5: =100*D5/E5 -> 2.631578947 | K5: A | L5: Non Fibrotic | M5: =SUM(D5:D14) -> 33 | N5: =SUM(E5:E14) -> 1171 | O5: =(M5/N5)*100 -> 2.818104184
A6: A | B6: Non Fibrotic | C6: 2 | D6: 3 | E6: 115 | F6: =100*D6/E6 -> 2.608695652 | K6: A | L6: Fibrotic | M6: =SUM(D15:D24) -> 68 | N6: =SUM(E15:E24) -> 1658 | O6: =(M6/N6)*100 -> 4.1013269
A7: A | B7: Non Fibrotic | C7: 3 | D7: 1 | E7: 101 | F7: 0.9900990099 | K7: B | L7: Non Fibrotic | M7: =SUM(D25:D34) -> 50 | N7: =SUM(E25:E34) -> 2531 | O7: 1.975503753
A8: A | B8: Non Fibrotic | C8: 4 | D8: 1 | E8: 175 | F8: 0.5714285714 | K8: B | L8: Fibrotic | M8: =SUM(D35:D43) -> 107 | N8: =SUM(E35:E43) -> 1042 | O8: 10.26871401
A9: A | B9: Non Fibrotic | C9: 5 | D9: 5 | E9: 167 | F9: 2.994011976 | K9: C | L9: Non Fibrotic | M9: =SUM(D45:D54) -> 49 | N9: =SUM(E45:E54) -> 1138 | O9: 4.305799649
A10: A | B10: Non Fibrotic | C10: 6 | D10: 5 | E10: 125 | F10: 4 | K10: C | L10: Fibrotic | M10: =SUM(D55:D63) -> 55 | N10: =SUM(E55:E63) -> 1470 | O10: 3.741496599
A11: A | B11: Non Fibrotic | C11: 7 | D11: 3 | E11: 71 | F11: 4.225352113 | K11: D | L11: Non Fibrotic | M11: =SUM(D64:D73) -> 52 | N11: =SUM(E64:E73) -> 946 | O11: 5.496828753
A12: A | B12: Non Fibrotic | C12: 8 | D12: 5 | E12: 87 | F12: 5.747126437 | K12: D | L12: Fibrotic | M12: =SUM(D74:D83) -> 90 | N12: =SUM(E74:E83) -> 1205 | O12: 7.468879668
A13: A | B13: Non Fibrotic | C13: 9 | D13: 4 | E13: 90 | F13: 4.444444444 | K13: E | L13: Non Fibrotic | M13: =SUM(D84:D93) -> 53 | N13: =SUM(E84:E93) -> 2012 | O13: 2.634194831
A14: A | B14: Non Fibrotic | C14: 10 | D14: 3 | E14: 126 | F14: 2.380952381 | K14: E | L14: Fibrotic | M14: =SUM(D94:D103) -> 38 | N14: =SUM(E94:E103) -> 1924 | O14: 1.975051975
A15: A | B15: Fibrotic | C15: 1 | D15: 4 | E15: 227 | F15: 1.762114537 | K15: F | L15: Non Fibrotic | M15: =SUM(D104:D113) -> 62 | N15: =SUM(E104:E113) -> 2641 | O15: 2.347595608
A16: A | B16: Fibrotic | C16: 2 | D16: 6 | E16: 125 | F16: 4.8 | K16: F | L16: Fibrotic | M16: =SUM(D114:D123) -> 101 | N16: =SUM(E114:E123) -> 2024 | O16: 4.990118577
A17: A | B17: Fibrotic | C17: 3 | D17: 7 | E17: 152 | F17: 4.605263158
A18: A | B18: Fibrotic | C18: 4 | D18: 6 | E18: 172 | F18: 3.488372093
A19: A | B19: Fibrotic | C19: 5 | D19: 4 | E19: 205 | F19: 1.951219512
A20: A | B20: Fibrotic | C20: 6 | D20: 4 | E20: 113 | F20: 3.539823009
A21: A | B21: Fibrotic | C21: 7 | D21: 4 | E21: 94 | F21: 4.255319149
A22: A | B22: Fibrotic | C22: 8 | D22: 22 | E22: 200 | F22: 11
A23: A | B23: Fibrotic | C23: 9 | D23: 7 | E23: 193 | F23: 3.626943005
A24: A | B24: Fibrotic | C24: 10 | D24: 4 | E24: 177 | F24: 2.259887006
A25: B | B25: Non Fibrotic | C25: 1 | D25: 6 | E25: 289 | F25: 2.076124567
A26: B | B26: Non Fibrotic | C26: 2 | D26: 7 | E26: 262 | F26: 2.671755725
A27: B | B27: Non Fibrotic | C27: 3 | D27: 11 | E27: 218 | F27: 5.04587156
A28: B | B28: Non Fibrotic | C28: 4 | D28: 3 | E28: 201 | F28: 1.492537313
A29: B | B29: Non Fibrotic | C29: 5 | D29: 4 | E29: 226 | F29: 1.769911504
A30: B | B30: Non Fibrotic | C30: 6 | D30: 4 | E30: 235 | F30: 1.70212766
A31: B | B31: Non Fibrotic | C31: 7 | D31: 3 | E31: 283 | F31: 1.060070671
A32: B | B32: Non Fibrotic | C32: 8 | D32: 5 | E32: 289 | F32: 1.730103806
A33: B | B33: Non Fibrotic | C33: 9 | D33: 4 | E33: 264 | F33: 1.515151515
A34: B | B34: Non Fibrotic | C34: 10 | D34: 3 | E34: 264 | F34: 1.136363636
A35: B | B35: Fibrotic | C35: 1 | D35: 15 | E35: 107 | F35: 14.01869159
A36: B | B36: Fibrotic | C36: 2 | D36: 18 | E36: 110 | F36: 16.36363636
A37: B | B37: Fibrotic | C37: 3 | D37: 11 | E37: 66 | F37: 16.66666667
A38: B | B38: Fibrotic | C38: 4 | D38: 10 | E38: 146 | F38: 6.849315068
A39: B | B39: Fibrotic | C39: 5 | D39: 9 | E39: 144 | F39: 6.25
A40: B | B40: Fibrotic | C40: 6 | D40: 13 | E40: 107 | F40: 12.14953271
A41: B | B41: Fibrotic | C41: 7 | D41: 6 | E41: 95 | F41: 6.315789474
A42: B | B42: Fibrotic | C42: 8 | D42: 9 | E42: 125 | F42: 7.2
A43: B | B43: Fibrotic | C43: 9 | D43: 16 | E43: 142 | F43: 11.26760563
A44: B | B44: Fibrotic | C44: 10 | D44: 7 | E44: 108 | F44: 6.481481481
A45: C | B45: Non Fibrotic | C45: 1 | D45: 2 | E45: 116 | F45: 1.724137931
A46: C | B46: Non Fibrotic | C46: 2 | D46: 3 | E46: 119 | F46: 2.521008403
A47: C | B47: Non Fibrotic | C47: 3 | D47: 4 | E47: 101 | F47: 3.96039604
A48: C | B48: Non Fibrotic | C48: 4 | D48: 6 | E48: 116 | F48: 5.172413793
A49: C | B49: Non Fibrotic | C49: 5 | D49: 5 | E49: 104 | F49: 4.807692308
A50: C | B50: Non Fibrotic | C50: 6 | D50: 5 | E50: 108 | F50: 4.62962963
A51: C | B51: Non Fibrotic | C51: 7 | D51: 9 | E51: 119 | F51: 7.56302521
A52: C | B52: Non Fibrotic | C52: 8 | D52: 5 | E52: 121 | F52: 4.132231405
A53: C | B53: Non Fibrotic | C53: 9 | D53: 5 | E53: 94 | F53: 5.319148936
A54: C | B54: Non Fibrotic | C54: 10 | D54: 5 | E54: 140 | F54: 3.571428571
A55: C | B55: Fibrotic | C55: 2 | D55: 9 | E55: 210 | F55: 4.285714286
A56: C | B56: Fibrotic | C56: 3 | D56: 8 | E56: 222 | F56: 3.603603604
A57: C | B57: Fibrotic | C57: 4 | D57: 13 | E57: 195 | F57: 6.666666667
A58: C | B58: Fibrotic | C58: 5 | D58: 2 | E58: 179 | F58: 1.117318436
A59: C | B59: Fibrotic | C59: 6 | D59: 4 | E59: 142 | F59: 2.816901408
A60: C | B60: Fibrotic | C60: 7 | D60: 4 | E60: 75 | F60: 5.333333333
A61: C | B61: Fibrotic | C61: 8 | D61: 8 | E61: 146 | F61: 5.479452055
A62: C | B62: Fibrotic | C62: 9 | D62: 4 | E62: 166 | F62: 2.409638554
A63: C | B63: Fibrotic | C63: 10 | D63: 3 | E63: 135 | F63: 2.222222222
A64: D | B64: Non Fibrotic | C64: 1 | D64: 6 | E64: 107 | F64: 5.607476636
A65: D | B65: Non Fibrotic | C65: 2 | D65: 2 | E65: 80 | F65: 2.5
A66: D | B66: Non Fibrotic | C66: 3 | D66: 2 | E66: 42 | F66: 4.761904762
A67: D | B67: Non Fibrotic | C67: 4 | D67: 5 | E67: 54 | F67: 9.259259259
A68: D | B68: Non Fibrotic | C68: 5 | D68: 7 | E68: 92 | F68: 7.608695652
A69: D | B69: Non Fibrotic | C69: 6 | D69: 9 | E69: 136 | F69: 6.617647059
A70: D | B70: Non Fibrotic | C70: 7 | D70: 9 | E70: 144 | F70: =100*D70/E70 -> 6.25
A71: D | B71: Non Fibrotic | C71: 8 | D71: 4 | E71: 88 | F71: 4.545454545
A72: D | B72: Non Fibrotic | C72: 9 | D72: 3 | E72: 137 | F72: 2.189781022
A73: D | B73: Non Fibrotic | C73: 10 | D73: 5 | E73: 66 | F73: 7.575757576
A74: D | B74: Fibrotic | C74: 1 | D74: 9 | E74: 107 | F74: 8.411214953
A75: D | B75: Fibrotic | C75: 2 | D75: 10 | E75: 121 | F75: 8.26446281
A76: D | B76: Fibrotic | C76: 3 | D76: 10 | E76: 114 | F76: 8.771929825
A77: D | B77: Fibrotic | C77: 4 | D77: 9 | E77: 104 | F77: 8.653846154
A78: D | B78: Fibrotic | C78: 5 | D78: 9 | E78: 114 | F78: 7.894736842
A79: D | B79: Fibrotic | C79: 6 | D79: 11 | E79: 99 | F79: 11.11111111
A80: D | B80: Fibrotic | C80: 7 | D80: 8 | E80: 158 | F80: 5.063291139
A81: D | B81: Fibrotic | C81: 8 | D81: 8 | E81: 119 | F81: 6.722689076
A82: D | B82: Fibrotic | C82: 9 | D82: 9 | E82: 155 | F82: 5.806451613
A83: D | B83: Fibrotic | C83: 10 | D83: 7 | E83: 114 | F83: 6.140350877
A84: E | B84: Non Fibrotic | C84: 1 | D84: 9 | E84: 258 | F84: 3.488372093
A85: E | B85: Non Fibrotic | C85: 2 | D85: 6 | E85: 241 | F85: 2.489626556
A86: E | B86: Non Fibrotic | C86: 3 | D86: 4 | E86: 232 | F86: 1.724137931
A87: E | B87: Non Fibrotic | C87: 4 | D87: 4 | E87: 154 | F87: 2.597402597
A88: E | B88: Non Fibrotic | C88: 5 | D88: 4 | E88: 135 | F88: 2.962962963
A89: E | B89: Non Fibrotic | C89: 6 | D89: 1 | E89: 116 | F89: 0.8620689655
A90: E | B90: Non Fibrotic | C90: 7 | D90: 8 | E90: 176 | F90: 4.545454545
A91: E | B91: Non Fibrotic | C91: 8 | D91: 8 | E91: 272 | F91: 2.941176471
A92: E | B92: Non Fibrotic | C92: 9 | D92: 6 | E92: 232 | F92: 2.586206897
A93: E | B93: Non Fibrotic | C93: 10 | D93: 3 | E93: 196 | F93: 1.530612245
A94: E | B94: Fibrotic | C94: 1 | D94: 4 | E94: 162 | F94: 2.469135802
A95: E | B95: Fibrotic | C95: 2 | D95: 0 | E95: 60 | F95: 0
A96: E | B96: Fibrotic | C96: 3 | D96: 3 | E96: 86 | F96: 3.488372093
A97: E | B97: Fibrotic | C97: 4 | D97: 3 | E97: 126 | F97: 2.380952381
A98: E | B98: Fibrotic | C98: 5 | D98: 3 | E98: 133 | F98: 2.255639098
A99: E | B99: Fibrotic | C99: 6 | D99: 8 | E99: 231 | F99: 3.463203463
A100: E | B100: Fibrotic | C100: 7 | D100: 5 | E100: 295 | F100: 1.694915254
A101: E | B101: Fibrotic | C101: 8 | D101: 2 | E101: 326 | F101: 0.6134969325
A102: E | B102: Fibrotic | C102: 9 | D102: 2 | E102: 224 | F102: 0.8928571429
A103: E | B103: Fibrotic | C103: 10 | D103: 8 | E103: 281 | F103: 2.846975089
A104: F | B104: Non Fibrotic | C104: 1 | D104: 10 | E104: 246 | F104: 4.06504065
A105: F | B105: Non Fibrotic | C105: 2 | D105: 8 | E105: 299 | F105: 2.675585284
A106: F | B106: Non Fibrotic | C106: 3 | D106: 6 | E106: 254 | F106: 2.362204724
A107: F | B107: Non Fibrotic | C107: 4 | D107: 8 | E107: 316 | F107: 2.53164557
A108: F | B108: Non Fibrotic | C108: 5 | D108: 7 | E108: 269 | F108: 2.602230483
A109: F | B109: Non Fibrotic | C109: 6 | D109: 6 | E109: 295 | F109: 2.033898305
A110: F | B110: Non Fibrotic | C110: 7 | D110: 5 | E110: 213 | F110: 2.34741784
A111: F | B111: Non Fibrotic | C111: 8 | D111: 5 | E111: 245 | F111: 2.040816327
A112: F | B112: Non Fibrotic | C112: 9 | D112: 4 | E112: 240 | F112: 1.666666667
A113: F | B113: Non Fibrotic | C113: 10 | D113: 3 | E113: 264 | F113: 1.136363636
A114: F | B114: Fibrotic | C114: 1 | D114: 12 | E114: 204 | F114: 5.882352941
A115: F | B115: Fibrotic | C115: 2 | D115: 16 | E115: 201 | F115: 7.960199005
A116: F | B116: Fibrotic | C116: 3 | D116: 10 | E116: 188 | F116: 5.319148936
A117: F | B117: Fibrotic | C117: 4 | D117: 12 | E117: 210 | F117: 5.714285714
A118: F | B118: Fibrotic | C118: 5 | D118: 9 | E118: 191 | F118: 4.712041885
A119: F | B119: Fibrotic | C119: 6 | D119: 12 | E119: 188 | F119: 6.382978723
A120: F | B120: Fibrotic | C120: 7 | D120: 10 | E120: 201 | F120: 4.975124378
A121: F | B121: Fibrotic | C121: 8 | D121: 5 | E121: 196 | F121: 2.551020408
A122: F | B122: Fibrotic | C122: 9 | D122: 5 | E122: 198 | F122: 2.525252525
A123: F | B123: Fibrotic | C123: 10 | D123: 10 | E123: 247 | F123: 4.048582996

Sheet 3C-3E
A1: Figure 3C-E
A2: Rat Echocardiography Data
A4: 2020-07-16 | B4: CDF Male Fischer Rats (8 weeks) from Charles River
B5: Group 1 : Veh | C5: 8 weeks normoxia
B6: Group 2: SUGEN (25mg/kg) | C6: 3 weeks hypoxia (10% FiO2)+ 5 weeks normoxia
A8: Date | B8: Ear Tag | C8: DOB | D8: Group | E8: Body Weight (g) | F8: Heart Weight (g) | G8: RV Weight (g) | H8: LV Weight (g) | I8: IVS Weight (g) | J8: LV+IVS | K8: Tibia Length (cm) | L8: RV/Body weight | M8: LV+Septum/Body weight | N8: Fulton Index (RV/LV+IVS)
A9: 2019-12-03 | B9: 950 | C9: 2019-06-07 | D9: Nx | E9: 338.7 | F9: 0.937 | G9: 0.11 | H9: 0.587 | J9: =SUM(H9:I9) -> 0.587 | K9: 5.2 | L9: =G9/E9 -> 0.0003247711839 | M9: =J9/E9 -> 0.001733097136 | N9: =L9/M9 -> 0.1873935264
A10: 2019-12-03 | B10: 951 | C10: 2019-06-07 | D10: Nx | E10: 328.8 | F10: 0.859 | G10: 0.13 | H10: 0.583 | I10: 0.023 | J10: =SUM(H10:I10) -> 0.606 | K10: 4.6 | L10: =G10/E10 -> 0.000395377129 | M10: =J10/E10 -> 0.001843065693 | N10: =L10/M10 -> 0.2145214521
A11: 2019-12-03 | B11: 952 | C11: 2019-06-07 | D11: Nx | E11: 332.5 | F11: 0.846 | G11: 0.21 | H11: 0.48 | I11: 0.106 | J11: 0.586 | K11: 5.4 | L11: =G11/E11 -> 0.0006315789474 | M11: =J11/E11 -> 0.001762406015 | N11: =L11/M11 -> 0.3583617747
A12: 2019-12-12 | B12: 954 | C12: 2019-06-07 | D12: Nx | E12: 354.2 | F12: 1.07 | G12: 0.132 | H12: 0.665 | J12: 0.665 | K12: 5 | L12: =G12/E12 -> 0.0003726708075 | M12: =J12/E12 -> 0.001877470356 | N12: 0.1984962406
A13: 2019-12-12 | B13: 953 | C13: 2019-06-07 | D13: Nx | E13: 333.8 | F13: 0.963 | J13: 0 | K13: 5
A14: 2019-12-17 | B14: 955 | C14: 2019-06-07 | D14: Nx | E14: 336.3 | J14: 0
A15: 2020-01-21 | B15: 956 | C15: 2019-06-07 | D15: Nx | E15: 377.2 | F15: 1.34 | G15: 0.315 | H15: 0.947 | J15: 0.947 | K15: 5.1 | L15: =G15/E15 -> 0.0008351007423 | M15: =J15/E15 -> 0.002510604454 | N15: 0.3326293559
A16: 2020-01-22 | B16: 957 | C16: 2019-06-07 | D16: Nx | E16: 369 | F16: 1.229 | G16: 0.302 | H16: 0.98 | J16: 0.98 | K16: 5.6 | L16: 0.0008184281843 | M16: 0.002655826558 | N16: 0.3081632653
A17: 2020-01-24 | B17: 958 | C17: 2019-06-07 | D17: Nx | E17: 365.2 | F17: 1.166 | G17: 0.243 | H17: 0.916 | J17: 0.916 | K17: 5.4 | L17: 0.000665388828 | M17: 0.002508214677 | N17: 0.2652838428
A18: 2020-01-24 | B18: 959 | C18: 2019-06-07 | D18: Nx | E18: 376.2 | F18: 1.35 | G18: 0.282 | H18: 1.075 | J18: 1.075 | K18: 5.7 | L18: 0.0007496012759 | M18: 0.002857522594 | N18: 0.2623255814
A19: 2019-12-05 | B19: 960 | C19: 2019-06-07 | D19: SuHx | E19: 336.4 | F19: 1 | G19: 0.164 | I19: 0.639 | J19: 0.639 | K19: 5 | L19: 0.0004875148633 | M19: 0.001899524376 | N19: 0.2566510172
A20: 2019-12-05 | B20: 962 | C20: 2019-06-07 | D20: SuHx | E20: 297.8 | F20: 0.841 | G20: 0.189 | H20: 0.495 | I20: 0.095 | J20: 0.59 | K20: 5 | L20: 0.0006346541303 | M20: 0.001981195433 | N20: 0.3203389831
A21: 2019-12-05 | B21: 961 | C21: 2019-06-07 | D21: SuHx | E21: 319.4 | F21: 0.852 | J21: 0 | K21: 5.2
A22: 2019-12-12 | B22: 963 | C22: 2019-06-07 | D22: SuHx | E22: 322.7 | F22: 0.941 | G22: 0.2 | H22: 0.543 | I22: 0.079 | J22: 0.622 | K22: 4.9 | L22: =G22/E22 -> 0.0006197706848 | M22: =J22/E22 -> 0.00192748683 | N22: 0.3215434084
A23: 2019-12-12 | B23: 964 | C23: 2019-06-07 | D23: SuHx | E23: 295 | F23: 0.788 | G23: 0.144 | H23: 0.567 | J23: 0.567 | K23: 4.8 | L23: 0.0004881355932 | M23: 0.001922033898 | N23: 0.253968254
A24: 2019-12-17 | B24: 965 | C24: 2019-06-07 | D24: SuHx | E24: 303.6 | G24: 0.195 | H24: 0.847 | J24: 0.847 | L24: 0.0006422924901 | M24: 0.002789855072 | N24: 0.2302243211
A25: 2020-01-21 | B25: 966 | C25: 2019-06-07 | D25: SuHx | E25: 367.3 | F25: 1.388 | G25: 0.363 | H25: 0.867 | J25: 0.867 | K25: 5.9 | L25: 0.0009882929485 | M25: 0.002360468282 | N25: 0.4186851211
A26: 2020-01-22 | B26: 968 | C26: 2019-06-07 | D26: SuHx | E26: 369.8 | F26: 1.41 | G26: 0.408 | H26: 1.172 | J26: 1.172 | L26: 0.001103299081 | M26: 0.003169280692 | N26: 0.3481228669
A27: 2020-01-22 | B27: 967 | C27: 2019-06-07 | D27: SuHx | E27: 326.1 | F27: 1.29 | G27: 0.289 | H27: 1.04 | J27: 1.04 | K27: 4.7 | L27: 0.0008862312174 | M27: 0.003189205765 | N27: 0.2778846154
A28: 2020-01-24 | B28: 971 | C28: 2019-06-07 | D28: SuHx | E28: 329.9 | F28: 1.368 | G28: 0.321 | H28: 0.924 | J28: 0.924 | K28: 5 | L28: 0.0009730221279 | M28: 0.002800848742 | N28: 0.3474025974
A29: 2020-01-24 | B29: 970 | C29: 2019-06-07 | D29: SuHx | E29: 330.8 | F29: 1.386 | G29: 0.294 | H29: 1.08 | J29: 1.08 | K29: 4.9 | L29: 0.0008887545345 | M29: 0.003264812576 | N29: 0.2722222222
A30: 2020-01-24 | B30: 969 | C30: 2020-06-07 | D30: SuHx | E30: 321.6 | F30: 1.205 | G30: 0.215 | H30: 0.964 | J30: 0.964 | K30: 4.9 | L30: 0.0006685323383 | M30: 0.002997512438 | N30: 0.2230290456
A36: Echocardiography Data (D-E)
B37: Ear Tag | C37: PAT (ms) | D37: PET (ms) | E37: MPAP (mmHg) | F37: PAT/PET | G37: S Wave (mm/s) | H37: HR (BPM) | I37: sD (mm) | J37: dD (mm) | K37: sysV (uL) | L37: dV (uL) | M37: SV (uL) | N37: EF (%) | O37: FS (%) | P37: CO (mL/min) | Q37: LV Mass (mg) | R37: LV Mass Cor (mg) | S37: LVAWs | T37: LVAWd (mm) | U37: LVPWs (mm) | V37: LVPWd (mm) | W37: TAPSE | X37: RV free wall (mm)
B39: Baseline
A40: 1 | B40: 950 | C40: 21.481481 | D40: 69.259259 | E40: 76.681482 | F40: =C40/D40 -> 0.310160422 | G40: 52.797149 | H40: 370.333794 | I40: 2.743625 | J40: 6.017917 | K40: 28.6154 | L40: 181.3913 | M40: 152.775853 | N40: 84.224488 | O40: 54.40905 | P40: 606.700281 | Q40: 606.700281 | R40: 485.360224 | S40: 2.891476 | T40: 1.926705 | U40: 2.737599 | V40: 1.315695 | W40: 1.601326 | X40: 0.741667
A41: 2 | B41: 951 | C41: 35.925926 | D41: 81.111111 | E41: 67.725926 | F41: =C41/D41 -> 0.4429223759 | G41: 40.099112 | H41: 327.053898 | I41: 2.679939 | J41: 6.559098 | K41: 27.30567 | L41: 220.4787 | M41: 193.173064 | N41: 87.615283 | O41: 59.14165 | P41: 605.821 | Q41: 605.821 | R41: 484.6568 | S41: 3.135681 | T41: 1.623399 | U41: 2.543709 | V41: 1.318012 | W41: 1.989015 | X41: 0.707955
A42: 3 | B42: 952 | C42: 12.222222 | D42: 69.259259 | E42: 82.422222 | F42: 0.1764705857 | G42: 49.455597 | H42: 358.79159 | I42: 3.135179 | J42: 6.579632 | K42: 39.57492 | L42: 222.1879 | M42: 182.613005 | N42: 82.188539 | O42: 52.35024 | P42: 782.414709 | Q42: 782.414709 | R42: 625.931767 | S42: 3.234298 | T42: 1.925335 | U42: 2.635938 | V42: 1.587104 | W42: 1.938447 | X42: 0.707955
A43: 4 | B43: 953 | C43: 15.925926 | D43: 71.111111 | E43: 80.125926 | F43: 0.2239583347 | G43: 58.143719 | H43: 374.251497 | I43: 3.445901 | J43: 6.836193 | K43: 49.26844 | L43: 242.3161 | M43: 193.047641 | N43: 79.667697 | O43: 49.59327 | P43: 768.288633 | Q43: 768.288633 | R43: 614.630906 | S43: 2.517085 | T43: 1.584603 | U43: 2.733209 | V43: 1.740258 | W43: 1.382197
A44: 5 | B44: 954 | C44: 14.074074 | D44: 67.407407 | E44: 81.274074 | F44: 0.208791209 | G44: 48.118937 | H44: 340.909091 | I44: 3.545794 | J44: 7.317848 | K44: 53.57011 | L44: 282.3574 | M44: 228.787308 | N44: 81.027554 | O44: 51.54595 | P44: 747.087587 | Q44: 747.087587 | R44: 597.67007 | S44: 2.782355 | T44: 1.388289 | U44: 2.502253 | V44: 1.620924 | W44: 1.348485 | X44: 0.64053
A45: 6 | B45: 955 | C45: 11.851852 | D45: 80 | E45: 82.651852 | F45: 0.14814815 | G45: 48.118944 | H45: 290.10734 | I45: 3.440588 | J45: 7.023667 | K45: 48.81346 | L45: 257.5372 | M45: 208.723788 | N45: 81.04606 | O45: 51.01436 | P45: 691.080977 | Q45: 691.080977 | R45: 552.864782 | S45: 2.930792 | T45: 1.515832 | U45: 2.725441 | V45: 1.469785 | W45: 1.281061 | X45: 0.64053
A46: 7 | B46: 956 | C46: 21.851852 | D46: 72.962963 | E46: 76.451852 | F46: 0.2994923877 | G46: 58.812093 | H46: 342.032356 | I46: 2.631019 | J46: 6.421872 | K46: 25.59896 | L46: 210.4315 | M46: 184.832588 | N46: 87.835019 | O46: 59.03034 | P46: 677.805311 | Q46: 677.805311 | R46: 542.244249 | S46: 3.381223 | T46: 1.724358 | U46: 2.791354 | V46: 1.539072 | W46: 1.1125 | X46: 0.943939
A47: 8 | B47: 957 | C47: 15.185185 | D47: 75.185185 | E47: 80.585185 | F47: 0.2019704414 | G47: 44.77737 | H47: 362.976407 | I47: 3.10567 | J47: 6.662435 | K47: 38.09639 | L47: 228.472 | M47: 190.375577 | N47: 83.325574 | O47: 53.38536 | P47: 665.248873 | Q47: 665.248873 | R47: 532.199099 | S47: 2.786883 | T47: 1.580353 | U47: 2.283035 | V47: 1.50945 | W47: 1.179924
A48: 9 | B48: 958 | F48: =C49/D48 ->  | G48: 41.43576 | H48: 330.965094 | I48: 2.935 | J48: 6.837946 | K48: 33.43122 | L48: 243.2556 | M48: 209.824356 | N48: 86.25675 | O48: 57.07775 | P48: 547.482267 | Q48: 547.482267 | R48: 437.985814 | S48: 2.929915 | T48: 1.181271 | U48: 2.426836 | V48: 1.414866 | W48: 1.58447 | X48: 0.876515
A49: 10 | B49: 959 | C49: 10 | D49: 71.851852 | E49: 83.8 | F49: =C49/D49 -> 0.1391752574 | G49: 42.772401 | H49: 339.397231 | I49: 2.62984 | J49: 6.126461 | K49: 27.61912 | L49: 188.8856 | M49: 161.266477 | N49: 85.377857 | O49: 57.07408 | P49: 621.438704 | Q49: 621.438704 | R49: 497.150963 | S49: 2.881287 | T49: 1.877644 | U49: 2.936734 | V49: 1.356207 | W49: 1.045076 | X49: 0.337121
A50: 11 | B50: 960 | C50: 19.259259 | D50: 88.148148 | E50: 78.059259 | F50: 0.2184873924 | G50: 50.123943 | H50: 312.129346 | I50: 2.486338 | J50: 6.242322 | K50: 22.03147 | L50: 197.4065 | M50: 175.374995 | N50: 88.839539 | O50: 60.16966 | P50: 614.149079 | Q50: 614.149079 | R50: 491.319263 | S50: 2.881338 | T50: 1.360238 | U50: 2.771806 | V50: 1.781931 | W50: 1.820455 | X50: 0.775379
A51: 12 | B51: 961 | C51: 12.962963 | D51: 77.777778 | E51: 81.962963 | F51: 0.1666666667 | G51: 47.45063 | H51: 374.845376 | I51: 3.690747 | J51: 7.114003 | K51: 58.58507 | L51: 266.0612 | M51: 207.476125 | N51: 77.980604 | O51: 48.11997 | P51: 697.362727 | Q51: 697.362727 | R51: 557.890182 | S51: 2.698223 | T51: 1.647948 | U51: 2.493736 | V51: 1.311823 | W51: 1.483333
A52: 13 | B52: 962 | C52: 8.518519 | D52: 77.777778 | E52: 84.718518 | F52: 0.1095238154 | G52: 51.460528 | H52: 399.563144 | I52: 6.0612 | J52: 8.532622 | K52: 184.2879 | L52: 398.5542 | M52: 214.266272 | N52: 53.760892 | O52: 28.9644 | P52: 1236.195649 | Q52: 1236.195649 | R52: 988.956519 | S52: 2.995556 | T52: 1.475167 | U52: 3.050536 | V52: 2.145788 | W52: 1.078788 | X52: 0.842803
A53: 14 | B53: 963 | C53: 11.851852 | D53: 79.259259 | E53: 82.651852 | F53: 0.1495327126 | G53: 46.113973 | H53: 340.661337 | I53: 3.000904 | J53: 7.023395 | K53: 35.48234 | L53: 257.9854 | M53: 222.50309 | N53: 86.246378 | O53: 57.27274 | P53: 686.898127 | Q53: 686.898127 | R53: 549.518502 | S53: 2.870282 | T53: 1.608431 | U53: 3.037786 | V53: 1.364091 | W53: 1.989015 | X53: 0.64053
A54: 15 | B54: 964 | C54: 12.962963 | D54: 71.111111 | E54: 81.962963 | F54: 0.1822916675 | G54: 53.472162 | H54: 334.302811 | I54: 2.732452 | J54: 6.738938 | K54: 27.89016 | L54: 234.7055 | M54: 206.815316 | N54: 88.116955 | O54: 59.45278 | P54: 640.293477 | Q54: 640.293477 | R54: 512.234782 | S54: 3.031191 | T54: 1.619686 | U54: 2.905438 | V54: 1.34644 | W54: 1.786742 | X54: 0.809091
A55: 16 | B55: 965 | C55: 22.592593 | D55: 71.111111 | E55: 75.992592 | F55: 0.3177083396 | G55: 41.435749 | H55: 357.824427 | I55: 2.835256 | J55: 6.174408 | K55: 30.47452 | L55: 192.168 | M55: 161.69349 | N55: 84.14173 | O55: 54.08052 | P55: 595.753674 | Q55: 595.753674 | R55: 476.60294 | S55: 2.423764 | T55: 1.687287 | U55: 3.150309 | V55: 1.425956 | W55: 1.651894 | X55: 0.573106
A56: 17 | B56: 966 | C56: 9.62963 | D56: 74.814815 | E56: 84.029629 | F56: 0.1287128759 | G56: 51.46055 | H56: 368.872112 | I56: 2.036126 | J56: 6.437419 | K56: 13.32071 | L56: 211.3371 | M56: 181.234467 | N56: 84.535152 | O56: 68.37046 | P56: 749.052733 | Q56: 749.052733 | R56: 599.242187 | S56: 3.329777 | T56: 1.76712 | U56: 3.381771 | V56: 1.72199 | W56: 1.314773 | X56: 0.522538
A57: 18 | B57: 967 | C57: 13.703704 | D57: 81.111111 | E57: 81.503704 | F57: 0.1689497756 | G57: 47.450602 | H57: 334.858801 | I57: 2.588582 | J57: 6.684278 | K57: 24.48184 | L57: 231.6297 | M57: 207.147832 | N57: 89.430612 | O57: 61.27358 | P57: 803.84421 | Q57: 803.84421 | R57: 643.075368 | S57: 3.39883 | T57: 1.660121 | U57: 3.183225 | V57: 1.858251 | W57: 1.331629 | X57: 0.707955
A58: 19 | B58: 968 | C58: 11.481481 | D58: 82.222222 | E58: 82.881482 | F58: 0.1396396342 | G58: 44.109021 | X58: 0.64053
A59: 20 | B59: 969 | C59: 15.555556 | D59: 71.481481 | E59: 80.355555 | F59: 0.217616588 | G59: 45.833298 | H59: 392.834695 | I59: 3.090136 | J59: 6.507698 | K59: 37.6225 | L59: 217.4843 | M59: 179.861811 | N59: 82.70105 | O59: 52.51569 | P59: 558.810717 | Q59: 558.810717 | R59: 447.048574 | S59: 2.492921 | T59: 1.173095 | U59: 2.706911 | V59: 1.626636 | W59: 1.483333 | X59: 0.741667
A60: 21 | B60: 970 | C60: 12.592593 | D60: 73.333333 | E60: 82.192592 | F60: 0.1717171781 | G60: 46.782305 | H60: 324.619114 | I60: 3.135684 | J60: 6.273057 | K60: 38.98734 | L60: 199.2341 | M60: 160.246712 | N60: 80.431387 | O60: 50.01346 | P60: 532.698869 | Q60: 532.698869 | R60: 426.159095 | S60: 2.830354 | T60: 1.870076 | U60: 2.228513 | V60: 0.953518 | W60: 0.842803 | X60: 0.707955
A61: 22 | B61: 971 | C61: 14.074074 | D61: 72.222222 | E61: 81.274074 | F61: 0.1948717944 | G61: 44.109028 | H61: 353.548448 | I61: 2.831979 | J61: 6.61371 | K61: 30.38801 | L61: 225.049 | M61: 194.661003 | N61: 86.497158 | O61: 57.18017 | P61: 613.938618 | Q61: 613.938618 | R61: 491.150895 | S61: 2.617475 | T61: 1.529838 | U61: 2.7344 | V61: 1.411366 | W61: 1.820455 | X61: 0.606818

Sheet 3G
A1: Figure 3G
A2: % CD3+ CD4- Rat Cardiac Fibroblasts Isolated via non-Langerhoff method
A4: RV | C4: LV
A5: Nx | B5: SuHx | C5: Nx | D5: SuHx
A6: 30.7 | B6: 34.1 | C6: 1.41 | D6: 10.2
A7: 26.1 | B7: 26.5 | C7: 2.26 | D7: 6.42
A8: 2.7 | B8: 2.49 | C8: 1.71 | D8: 17.5
A9: 6.07 | B9: 5.86 | C9: 3.04 | D9: 3.54

Sheet 3H
A1: Figure 3H
A2: % aSMA+ CD4+ Cells of Cardiac Fibroblasts in NX & SuHx Rats
A4: Nx | B4: SuHx
A5: 0 | B5: 2.19
A6: 1.33 | B6: 7.16
A7: 0 | B7: 0.98

Sheet 4A
A1: Figure 4A
A2: BrdU Incorporation Assay
A4: Veh | B4: 1pg/mL | C4: 1ng/mL | D4: 10ng/mL
A5: 100 | B5: 100 | C5: 118.5567 | D5: 129.8969
A6: 100 | B6: 111.3636 | C6: 136.3636* | D6: 134.0909
A7: 100 | B7: 122.4359 | C7: 126.9231 | D7: 106.4103*
A8: 100 | B8: 100.7086 | C8: 104.9605 | D8: 123.9522
A14: * = Outlier

Sheet 4B
A1: Figure 4B
A2: IL-1B MTT Cell Profliferation Assay (%)
A4: 0h | B4: 24h | C4: 48h | D4: 72h
A5: 100 | B5: 91.17 | C5: 104.45 | D5: 119.61
A6: 100 | B6: 93.05 | C6: 120.85 | D6: 111.07
A7: 100 | B7: 118.91 | C7: 105.48 | D7: 149.37
C8: 118.48 | D8: 91.18
D9: 107.54
D10: 115.05
D11: 140.68

Sheet 4C
A1: Figure 4C
A2: Ki67 Assay (# Cells)
B4: Male | E4: Male | H4: Female
A5: Veh | B5: 30 | C5: 29 | D5: 12 | E5: 30 | F5: 20 | G5: 20 | H5: 19 | I5: 18 | J5: 11
A6: IL-1β(10ng/ml) | B6: 42 | C6: 45 | D6: 41 | E6: 42 | F6: 41 | G6: 35 | H6: 30 | I6: 28 | J6: 28

Sheet 4D
A1: Figure 4D
A2: Collagen Content (μg/protein content)
A4: Veh | B4: IL-1B - 1ng/mL | C4: IL-1B - 10ng/mL
A5: 3.492593 | B5: 3.085185 | C5: 4.27037
A6: 2.492593 | B6: 3.52963 | C6: 7.455556
A7: 2.27037 | B7: 2.937037 | C7: 3.381481
A8: 2.27037 | B8: 2.233333 | C8: 3.307407

Sheet 5A
A1: Figure 5A
A2: CCR2/18s rRNA | E2: IL-1R/18s rRNA
A4: Veh | B4: IL-1β (10ng/ml) | E4: Veh | F4: IL-1β (10ng/ml)
A5: 1.000367 | B5: 1.867475 | E5: 1.008233 | F5: 1.527173
A6: 1.012106 | B6: 1.49293 | E6: 1.047949 | F6: 1.428987
A7: 1.0296 | B7: 1.1741 | E7: 1.000486 | F7: 1.721643
A8: 1.0002 | B8: 1.3526 | E8: 1.00265 | F8: 1.057449
A9: 1.0061561 | B9: 1.27418838

Sheet 5B
A1: Figure 5B
A3: TGF-B/B-actin | E3: IL-8/18s rRNA
A4: Veh | B4: IL-1β (10ng/ml) | E4: Veh | F4: IL-1β (10ng/ml)
A5: 1.07087171 | B5: 1.37 | E5: 0.862705 | F5: 1.2826
A6: 1.00823302 | B6: 1.46557193 | E6: 0.942005 | F6: 1.410718
A7: 1 | B7: 1.23161765 | E7: 0.982826 | F7: 1.301835

Sheet 5C
A1: Figure 5C
A2: Milliplex Raw Data
A4: 2019-07-10 | C4: Cytokines (pg/ml) in the supernatant of human cardiac fibroblast cells treated with recombinant IL-1B (10ng/ml)
B7: Standard | C7: hu TGF-a | D7: hu IL-10 | E7: hu MCP-3 | F7: hu IL-12p40 | G7: hu IL-12p70 | H7: hu IL-17A | I7: hu IL-1RA | J7: hu IL-1a | K7: hu IL-1b | L7: hu IL-3 | M7: hu IL-6 | N7: hu IL-8 | O7: hu MCP-1 | P7: hu MIP-1a | Q7: hu MIP-1b | R7: hu TNF-a | S7: hu VEGF
B8: standard 1 | C8: 9203.54 | D8: 9991.17 | E8: 9998.67 | F8: 9998.16 | G8: 10291.43 | H8: 10005.68 | I8: 10049.00 | J8: 9924.45 | K8: 9437.60 | L8: 10193.36 | M8: 7660.30 | N8: 7688.73 | O8: 10050.56 | P8: 10277.53 | Q8: 9543.62 | R8: 9951.18 | S8: 10013.82
B9: standard 2 | C9: 1979.59 | D9: 2011.49 | F9: 2063.39 | G9: 1875.05 | H9: 1998.48 | I9: 1985.30 | J9: 2032.55 | K9: 2088.19 | L9: 1967.76 | M9: 2017.08 | N9: 2249.31 | R9: 2002.89 | S9: 1997.34
B10: standard 3 | C10: 408.63 | D10: 392.69 | E10: 400.02 | F10: 375.62 | G10: 417.06 | H10: 401.43 | I10: 408.81 | J10: 386.78 | K10: 378.48 | L10: 408.51 | M10: 395.84 | N10: 375.36 | O10: 397.67 | P10: 398.24 | Q10: 403.35 | R10: 392.16 | S10: 400.89
B11: standard 4 | C11: 77.89 | D11: 83.18 | E11: 79.97 | F11: 80.96 | G11: 82.40 | H11: 79.75 | I11: 76.55 | J11: 83.73 | K11: 88.22 | L11: 77.53 | M11: 82.09 | N11: 86.90 | O11: 80.61 | P11: 80.41 | Q11: 79.40 | R11: 84.25 | S11: 79.66
B12: standard 5 | C12: 16.75 | D12: 15.15 | E12: 16.05 | F12: 17.45 | G12: 15.31 | H12: 15.62 | I12: 17.55 | J12: 16.00 | K12: 15.16 | L12: 16.63 | M12: 15.77 | N12: 15.54 | O12: 15.87 | P12: 15.85 | Q12: 16.16 | R12: 15.61 | S12: 16.25
B13: standard 6 | C13: 3.03 | D13: 3.55 | E13: 2.63 | F13: 4.06 | G13: 3.25 | H13: 3.82 | I13: 2.72 | J13: 2.84 | K13: 3.20 | L13: 3.11 | M13: 3.15 | N13: 3.14 | O13: 3.42 | P13: 3.43 | Q13: 3.12 | R13: 3.09 | S13: 4.01
B14: standard 7 | C14: 0.68 | D14: 0.54 | E14: 1.75 | F14: OOR < | G14: 0.67 | H14: 0.35 | J14: 0.82 | K14: 0.65 | L14: 0.65 | M14: 0.66 | N14: 0.65 | O14: OOR < | P14: OOR < | Q14: 0.74 | R14: 0.68 | S14: OOR <
B16: Ctrl F1 | C16: OOR < | D16: 0.20 | E16: 13.70 | F16: OOR < | G16: 0.67 | H16: OOR < | I16: 1.25 | J16: 0.35 | K16: 0.13 | L16: 0.45 | M16: 475.32 | N16: 399.00 | O16: 9823.85 | P16: OOR < | Q16: 0.37 | R16: 1.02 | S16: 12.09
B17: Ctrl M1 | C17: OOR < | D17: OOR < | E17: 12.83 | F17: OOR < | G17: 0.67 | H17: OOR < | I17: OOR < | J17: 0.09 | K17: 0.04 | L17: 0.32 | M17: 992.93 | N17: 756.22 | O17: 10860.89 | P17: OOR < | Q17: 0.74 | R17: 2.35 | S17: 11.24
B18: Ctrl M2 | C18: OOR < | D18: 0.20 | E18: 42.17 | F18: OOR < | G18: 0.88 | H18: OOR < | I18: OOR < | J18: 0.88 | K18: 0.06 | L18: 0.34 | M18: 474.12 | N18: 694.21 | O18: 10304.26 | P18: OOR < | Q18: OOR < | R18: 0.85 | S18: 6.75
B19: IL-1B (10ng/ml) F1 | C19: OOR < | D19: 0.37 | E19: 183.38 | F19: OOR < | G19: 0.88 | H19: OOR < | I19: OOR < | J19: 1.06 | K19: 0.13 | L19: 0.30 | M19: 2057.26 | N19: 4238.93 | O19: 9824.94 | P19: OOR < | Q19: 1.21 | R19: 2.83 | S19: 18.26
B20: IL-1B (10ng/ml) M1 | C20: OOR < | D20: 0.54 | E20: 114.14 | F20: OOR < | G20: 1.46 | H20: OOR < | I20: 0.61 | J20: 0.18 | K20: 0.02 | L20: 0.30 | M20: 2725.84 | N20: 4140.26 | O20: 10745.89 | P20: OOR < | Q20: 1.07 | R20: 1.74 | S20: 14.07
B21: IL-1B (10ng/ml) M2 | C21: OOR < | D21: 0.63 | E21: 122.61 | F21: OOR < | G21: 0.33 | H21: 0.46 | I21: OOR < | J21: 0.52 | K21: 0.02 | L21: 0.41 | M21: 802.26 | N21: 2933.08 | O21: 10848.44 | P21: OOR < | Q21: 0.52 | R21: 4.06 | S21: 6.75
B23: Duplicate values
C24: hu TGF-a | D24: hu IL-10 | E24: hu MCP-3 | F24: hu IL-12p40 | G24: hu IL-12p70 | H24: hu IL-17A | I24: hu IL-1RA | J24: hu IL-1a | K24: hu IL-1b | L24: hu IL-3 | M24: hu IL-6 | N24: hu IL-8 | O24: hu MCP-1 | P24: hu MIP-1a | Q24: hu MIP-1b | R24: hu TNF-a | S24: hu VEGF
A25: 1 | B25: Ctrl F1 | C25: OOR < | D25: 0.37 | E25: 13.53 | F25: OOR < | G25: 1.08 | H25: OOR < | I25: 0.83 | J25: 0.52 | K25: 0.30 | L25: 0.48 | M25: 452.93 | N25: 405.42 | O25: 10115.14 | P25: OOR < | Q25: 0.14 | R25: 1.14 | S25: 12.50
A26: 1 | B26: Ctrl F1 | C26: OOR < | D26: 0.03 | E26: 13.87 | F26: OOR < | G26: 0.20 | H26: OOR < | I26: 1.64 | J26: 0.18 | K26: OOR < | L26: 0.41 | M26: 497.81 | N26: 392.63 | O26: 9544.08 | P26: OOR < | Q26: 0.52 | R26: 0.89 | S26: 11.67
A27: 2 | B27: Ctrl M1 | C27: OOR < | D27: OOR < | E27: 12.83 | F27: OOR < | G27: 0.67 | H27: OOR < | I27: OOR < | J27: 0.01 | K27: OOR < | L27: 0.34 | M27: 992.26 | N27: 727.87 | O27: 10158.13 | P27: OOR < | Q27: 0.74 | R27: 1.57 | S27: 11.67
A28: 2 | B28: Ctrl M1 | C28: OOR < | D28: 0.03 | E28: 12.83 | F28: OOR < | G28: 0.67 | H28: 0.14 | I28: OOR < | J28: 0.18 | K28: 0.16 | L28: 0.30 | M28: 993.61 | N28: 785.53 | O28: 11633.60 | P28: OOR < | Q28: 0.74 | R28: 3.13 | S28: 10.80
A29: 3 | B29: Ctrl M2 | C29: OOR < | D29: 0.03 | E29: 42.49 | F29: OOR < | G29: 0.67 | H29: OOR < | I29: OOR < | J29: 0.64 | K29: 0.16 | L29: 0.34 | M29: 454.19 | N29: 678.50 | O29: 10383.98 | P29: OOR < | Q29: OOR < | R29: 0.72 | S29: 8.92
A30: 3 | B30: Ctrl M2 | C30: OOR < | D30: 0.37 | E30: 41.86 | F30: OOR < | G30: 1.08 | H30: 0.19 | I30: OOR < | J30: 1.12 | K30: OOR < | L30: 0.34 | M30: 494.13 | N30: 710.22 | O30: 10225.39 | P30: OOR < | Q30: 0.14 | R30: 0.97 | S30: 4.01
A31: 4 | B31: IL-1B (10ng/ml) F1 | C31: OOR < | D31: 0.37 | E31: 188.55 | F31: OOR < | G31: 0.67 | H31: 0.08 | I31: OOR < | J31: 1.00 | K31: 0.16 | L31: 0.23 | M31: 2107.57 | N31: 4498.70 | O31: 10585.57 | P31: 0.59 | Q31: 1.34 | R31: 3.22 | S31: 18.26
A32: 4 | B32: IL-1B (10ng/ml) F1 | C32: OOR < | D32: 0.37 | E32: 178.13 | F32: OOR < | G32: 1.08 | H32: OOR < | I32: OOR < | J32: 1.12 | K32: 0.09 | L32: 0.37 | M32: 2010.35 | N32: 4008.18 | O32: 9138.09 | P32: OOR < | Q32: 1.07 | R32: 2.44 | S32: 18.26
A33: 5 | B33: IL-1B (10ng/ml) M1 | C33: OOR < | D33: 0.37 | E33: 114.25 | F33: OOR < | G33: 1.84 | H33: OOR < | I33: OOR < | J33: 0.18 | K33: 0.06 | L33: 0.34 | M33: 2410.97 | N33: 3834.58 | O33: 10612.06 | P33: OOR < | Q33: 1.07 | R33: 2.26 | S33: 14.07
A34: 5 | B34: IL-1B (10ng/ml) M1 | C34: OOR < | D34: 0.72 | E34: 114.03 | F34: OOR < | G34: 1.08 | H34: OOR < | I34: 1.25 | J34: 0.18 | K34: OOR < | L34: 0.27 | M34: 3247.77 | N34: 4500.21 | O34: 10882.10 | P34: OOR < | Q34: 1.07 | R34: 1.23 | S34: 14.07
A35: 6 | B35: IL-1B (10ng/ml) M2 | C35: OOR < | D35: 0.72 | E35: 115.90 | F35: OOR < | G35: OOR < | H35: 0.41 | I35: OOR < | J35: 0.88 | K35: 0.02 | L35: 0.37 | M35: 771.75 | N35: 2674.76 | O35: 10428.57 | P35: OOR < | Q35: 0.14 | R35: 4.63 | S35: 4.01
A36: 6 | B36: IL-1B (10ng/ml) M2 | C36: OOR < | D36: 0.54 | E36: 129.08 | F36: OOR < | G36: 0.88 | H36: 0.52 | I36: OOR < | J36: 0.18 | K36: 0.02 | L36: 0.45 | M36: 833.55 | N36: 3242.74 | O36: 11292.35 | P36: OOR < | Q36: 0.74 | R36: 3.49 | S36: 8.92
B38: Average
C39: hu TGF-a | D39: hu IL-10 | E39: hu MCP-3 | F39: hu IL-12p40 | G39: hu IL-12p70 | H39: hu IL-17A | I39: hu IL-1RA | J39: hu IL-1a | K39: hu IL-1b | L39: hu IL-3 | M39: hu IL-6 | N39: hu IL-8 | O39: hu MCP-1 | P39: hu MIP-1a | Q39: hu MIP-1b | R39: hu TNF-a | S39: hu VEGF
B40: Ctrl F1 | D40: =AVERAGE(D25:D26) -> 0.20 | E40: =AVERAGE(E25:E26) -> 13.70 | F40: =AVERAGE(F25:F26) ->  | G40: 0.64 | I40: 1.24 | J40: 0.35 | K40: 0.30 | L40: 0.45 | M40: 475.37 | N40: 399.03 | O40: 9829.61 | Q40: 0.33 | R40: 1.02 | S40: 12.09
B41: Ctrl M1 | D41: =AVERAGE(D27:D28) -> 0.03 | E41: =AVERAGE(E27:E28) -> 12.83 | F41: =AVERAGE(F27:F28) ->  | G41: 0.67 | H41: 0.14 | J41: 0.10 | K41: 0.16 | L41: 0.32 | M41: 992.94 | N41: 756.70 | O41: 10895.87 | Q41: 0.74 | R41: 2.35 | S41: 11.24
B42: Ctrl M2 | D42: =AVERAGE(D29:D30) -> 0.20 | E42: =AVERAGE(E29:E30) -> 42.18 | F42: =AVERAGE(F29:F30) ->  | G42: 0.88 | H42: 0.19 | J42: 0.88 | K42: 0.16 | L42: 0.34 | M42: 474.16 | N42: 694.36 | O42: 10304.69 | Q42: 0.14 | R42: 0.85 | S42: 6.47
B43: IL-1B (10ng/ml) F1 | D43: =AVERAGE(D31:D32) -> 0.37 | E43: =AVERAGE(E31:E32) -> 183.34 | F43: =AVERAGE(F31:F32) ->  | G43: 0.88 | H43: 0.08 | J43: 1.06 | K43: 0.13 | L43: 0.30 | M43: 2058.96 | N43: 4253.44 | O43: 9861.83 | P43: 0.59 | Q43: 1.21 | R43: 2.83 | S43: 18.26
B44: IL-1B (10ng/ml) M1 | D44: =AVERAGE(D33:D34) -> 0.55 | E44: =AVERAGE(E33:E34) -> 114.14 | F44: =AVERAGE(F33:F34) ->  | G44: 1.46 | I44: 1.25 | J44: 0.18 | K44: 0.06 | L44: 0.31 | M44: 2829.37 | N44: 4167.40 | O44: 10747.08 | Q44: 1.07 | R44: 1.75 | S44: 14.07
B45: IL-1B (10ng/ml) M2 | D45: =AVERAGE(D35:D36) -> 0.63 | E45: =AVERAGE(E35:E36) -> 122.49 | F45: =AVERAGE(F35:F36) ->  | G45: 0.88 | H45: 0.47 | J45: 0.53 | K45: 0.02 | L45: 0.41 | M45: 802.65 | N45: 2958.75 | O45: 10860.46 | Q45: 0.44 | R45: 4.06 | S45: 6.47
B47: Avg Ctrl | D47: =AVERAGE(D40:D42) -> 0.14 | E47: =AVERAGE(E40:E42) -> 22.90 | G47: 0.73 | I47: 1.24 | J47: 0.44 | K47: 0.21 | L47: 0.37 | M47: 647.49 | N47: 616.70 | O47: 10343.39 | Q47: 0.40 | R47: 1.40 | S47: 9.93
B48: Avg IL-1B (10ng/ml) | D48: =AVERAGE(D43:D45) -> 0.52 | E48: =AVERAGE(E43:E45) -> 139.99 | G48: 1.07 | I48: 1.25 | J48: 0.59 | K48: 0.07 | L48: 0.34 | M48: 1896.99 | N48: 3793.20 | O48: 10489.79 | Q48: 0.91 | R48: 2.88 | S48: 12.93
B50: Fold differences | D50: =D48/D47 -> 3.593023256 | E50: =E48/E47 -> 6.112655556 | G50: 1.471395881 | I50: 1.012145749 | J50: 1.335849057 | K50: 0.3306451613 | L50: 0.9185520362 | M50: 2.929772222 | N50: 6.150844421 | O50: 1.014154294 | Q50: 2.243801653 | R50: 2.051068884 | S50: 1.302501259
D51: =D50*100 -> 359.3023256 | E51: =E50*100 -> 611.2655556 | G51: 147.1395881 | I51: 101.2145749 | J51: 133.5849057 | K51: 33.06451613 | L51: 91.85520362 | M51: 292.9772222 | N51: 615.0844421 | O51: 101.4154294 | Q51: 224.3801653 | R51: 205.1068884 | S51: 130.2501259 | T51: 0
B53: Ctrl Std | D53: =STDEV(D40:D42) -> 0.09814954576 | E53: =STDEV(E40:E42) -> 16.69686373 | G53: 0.1278997003 | J53: 0.4004476662 | K53: 0.08082903769 | L53: 0.06714412359 | M53: 299.1662007 | N53: 191.0673718 | O53: 534.1800216 | Q53: 0.3066485502 | R53: 0.8242319657 | S53: 3.029295848
B54: IL-1B Std | D54: =STDEV(D43:D45) -> 0.1325707358 | E54: =STDEV(E43:E45) -> 37.77363499 | G54: 0.3363158238 | J54: 0.4430575583 | K54: 0.05299371032 | L54: 0.06211548385 | M54: 1023.021696 | N54: 723.9300926 | O54: 546.776076 | Q54: 0.4083197277 | R54: 1.158256592 | S54: 5.979327582

Sheet 5D
A1: Figure 5D
A3: IL-6 | E3: IL-8
A4: Control | B4: IL-1B (10ng/ml) | E4: Control | F4: IL-1B (10ng/ml)
A5: 475.37 | B5: 2058.96 | E5: 399.03 | F5: 4253.44
A6: 992.94 | B6: 2829.37 | E6: 756.7 | F6: 4167.4
A7: 474.16 | B7: 802.65 | E7: 694.36 | F7: 2958.75
A12: IL-10 | E12: MCP-3
A13: Control | B13: IL-1B (10ng/ml) | E13: Control | F13: IL-1B (10ng/ml)
A14: 0.2 | B14: 0.37 | E14: 13.7 | F14: 183.34
A15: 0.03 | B15: 0.55 | E15: 12.83 | F15: 114.14
A16: 0.2 | B16: 0.63 | E16: 42.18 | F16: 122.49

Sheet 5E
A1: Figure 5E
A2: Gene Ontology Data
A4: Category | B4: Term | C4: Count | D4: % | E4: PValue | F4: Genes (By Uniprot Accession) | G4: List Total | H4: Pop Hits | I4: Pop Total | J4: Fold Enrichment | K4: Bonferroni | L4: Benjamini | M4: FDR
A5: GOTERM_BP_3 | B5: GO:0001101~response to acid chemical | C5: 7 | D5: 4 | E5: 0.05583202518 | F5: B5MCZ3, F5GY03, Q5PR22, P27169, J3KMZ9, P13500, Q5NKV8, Q9UH51 | G5: 164 | H5: 278 | I5: 16663 | J5: 2.558365503 | K5: 1 | L5: 0.1811028391 | M5: 58.4717213
A6: GOTERM_BP_3 | B6: GO:0001503~ossification | C6: 9 | D6: 5.142857143 | E6: 0.02508455522 | F6: E9PF17, B5MCZ3, F5GY03, B2MUX6, Q5PR22, Q4VXY6, Q9Y4K3, P80108, E9PNL9 | G6: 164 | H6: 359 | I6: 16663 | J6: 2.547166927 | K6: 0.9999999975 | L6: 0.1009337583 | M6: 32.19929402
A7: GOTERM_BP_3 | B7: GO:0001525~angiogenesis | C7: 19 | D7: 10.85714286 | E7: 1.247143178e-07 | F7: P27658, F5GY03, P02750, A0A024RAB6, P16860, P13500, P17813, P13521, P13671, P80108, Q7Z3T9, P05090, A0A024RDA5, Q9NQ30, B5BUQ8, A0A087WZI0, O60687, E7ERX5, Q86XU5, A2A2V4 | G7: 164 | H7: 413 | I7: 16663 | J7: 4.67426032 | K7: 9.714774045e-05 | L7: 4.626296898e-06 | M7: 0.0001907676664
A8: GOTERM_BP_3 | B8: GO:0001541~ovarian follicle development | C8: 3 | D8: 1.714285714 | E8: 0.09487236269 | F8: P10721, A2A2V4, Q5NKV8 | G8: 164 | H8: 53 | I8: 16663 | J8: 5.751150483 | K8: 1 | L8: 0.2633993396 | M8: 78.23208765
A9: GOTERM_BP_3 | B9: GO:0001558~regulation of cell growth | C9: 9 | D9: 5.142857143 | E9: 0.04480598844 | F9: Q04695, P16860, G5EA09, A0A0A0MSC8, P31947, A2A2V4, P00734, A0A024R5M3, Q9NQ30 | G9: 164 | H9: 403 | I9: 16663 | J9: 2.269064335 | K9: 1 | L9: 0.1550208596 | M9: 50.40095793
A10: GOTERM_BP_3 | B10: GO:0001568~blood vessel development | C10: 20 | D10: 11.42857143 | E10: 3.686678758e-06 | F10: P27658, F5GY03, P02750, A0A024RAB6, P16860, P13500, P17813, P13521, P13671, P80108, Q7Z3T9, P05090, A0A024RDA5, Q9NQ30, C9JD84, B5BUQ8, A0A087WZI0, O60687, E7ERX5, Q86XU5, A2A2V4 | G10: 164 | H10: 576 | I10: 16663 | J10: 3.52790481 | K10: 0.002867808006 | L10: 8.44649046e-05 | M10: 0.005639137585
A11: GOTERM_BP_3 | B11: GO:0001666~response to hypoxia | C11: 8 | D11: 4.571428571 | E11: 0.0225827375 | F11: P19320, P13500, P17813, H0YAB0, A0A024R4H0, A2A2V4, Q5NKV8, E5RGA1 | G11: 164 | H11: 286 | I11: 16663 | J11: 2.842060379 | K11: 0.9999999813 | L11: 0.0946247356 | M11: 29.48850457
A12: GOTERM_BP_3 | B12: GO:0001775~cell activation | C12: 26 | D12: 14.85714286 | E12: 2.686640235e-06 | F12: Q59GA2, A0A024RDA5, P40222, B2MUX6, P04220, E7ERX5, P01859, P01779, Q5NKV8, Q9Y4K3, P00734, A0A087X130, L8B567, P19320, C9JPM3, P01861, A0A060VHD0, P0CF74, P13500, A0A087WYJ9, O14950, P10721, B5MCZ3, B5BUQ8, C8C504, Q86XU5, P80297, Q9UK54 | G12: 164 | H12: 910 | I12: 16663 | J12: 2.902961672 | K12: 0.002090706975 | L12: 6.751048088e-05 | M12: 0.00410950973
A13: GOTERM_BP_3 | B13: GO:0001816~cytokine production | C13: 14 | D13: 8 | E13: 0.009163633939 | F13: P02763, A8K3T7, Q95HL2, Q29664, A0A060VHD0, P13500, Q6NUR7, V9GYM3, P05090, P10721, B5MCZ3, B5BUQ8, Q8NBH6, P02647, Q9Y4K3 | G13: 164 | H13: 631 | I13: 16663 | J13: 2.254280855 | K13: 0.9992317376 | L13: 0.04858149458 | M13: 13.13514532
A14: GOTERM_BP_3 | B14: GO:0001817~regulation of cytokine production | C14: 13 | D14: 7.428571429 | E14: 0.01130551206 | F14: P02763, A8K3T7, Q95HL2, Q29664, P13500, A0A060VHD0, Q6NUR7, V9GYM3, P05090, B5MCZ3, B5BUQ8, Q8NBH6, Q9Y4K3, P02647 | G14: 164 | H14: 577 | I14: 16663 | J14: 2.289163884 | K14: 0.9998576407 | L14: 0.05589132791 | M14: 15.96345816
A15: GOTERM_BP_3 | B15: GO:0001818~negative regulation of cytokine production | C15: 7 | D15: 4 | E15: 0.0226114839 | F15: B5MCZ3, P02763, Q8NBH6, Q6NUR7, V9GYM3, P02647, P05090 | G15: 164 | H15: 223 | I15: 16663 | J15: 3.18935251 | K15: 0.9999999817 | L15: 0.09423989654 | M15: 29.52021929
A16: GOTERM_BP_3 | B16: GO:0001910~regulation of leukocyte mediated cytotoxicity | C16: 4 | D16: 2.285714286 | E16: 0.01357793929 | F16: Q95HL2, Q29664, A0A060VHD0, P13500, Q5NKV8 | G16: 164 | H16: 51 | I16: 16663 | J16: 7.968914395 | K16: 0.9999762916 | L16: 0.06324683151 | M16: 18.86991419
A17: GOTERM_BP_3 | B17: GO:0001912~positive regulation of leukocyte mediated cytotoxicity | C17: 3 | D17: 1.714285714 | E17: 0.04349623659 | F17: Q95HL2, Q29664, A0A060VHD0, P13500 | G17: 164 | H17: 34 | I17: 16663 | J17: 8.965028694 | K17: 1 | L17: 0.1520762669 | M17: 49.35039686
A18: GOTERM_BP_3 | B18: GO:0002250~adaptive immune response | C18: 25 | D18: 14.28571429 | E18: 3.031429282e-12 | F18: Q95HL2, P04003, Q9NZP8, P13671, P80748, P06313, P04220, P01779, P01859, Q5NKV8, Q9Y4K3, A0A087X130, P01861, Q29664, A0A060VHD0, P0CF74, P01603, P02747, A0A087WYJ9, P23083, B5MCZ3, D6RHJ6, B5BUQ8, P04206, P01623, P06318, P02790, P0C0L4 | G18: 164 | H18: 420 | I18: 16663 | J18: 6.047836818 | K18: 2.361510432e-09 | L18: 3.373585855e-10 | M18: 4.637046302e-09
A19: GOTERM_BP_3 | B19: GO:0002254~kinin cascade | C19: 2 | D19: 1.142857143 | E19: 0.02906204784 | F19: A8K9A9, Q8IZZ5 | G19: 164 | H19: 3 | I19: 16663 | J19: 67.73577236 | K19: 0.9999999999 | L19: 0.1116832754 | M19: 36.30931955
A20: GOTERM_BP_3 | B20: GO:0002367~cytokine production involved in immune response | C20: 6 | D20: 3.428571429 | E20: 0.0007401704171 | F20: B5MCZ3, P10721, A0A060VHD0, V9GYM3, Q9Y4K3, P02647 | G20: 164 | H20: 73 | I20: 16663 | J20: 8.350985633 | K20: 0.4383105988 | L20: 0.006762983262 | M20: 1.12622256
A21: GOTERM_BP_3 | B21: GO:0002377~immunoglobulin production | C21: 4 | D21: 2.285714286 | E21: 0.06801190371 | F21: B5MCZ3, P02790, Q9Y4K3, P06313 | G21: 164 | H21: 96 | I21: 16663 | J21: 4.233485772 | K21: 1 | L21: 0.2043700107 | M21: 65.95219361
A22: GOTERM_BP_3 | B22: GO:0002433~immune response-regulating cell surface receptor signaling pathway involved in phagocytosis | C22: 11 | D22: 6.285714286 | E22: 4.763374862e-07 | F22: P01861, P01859, P01623, P04206, P01779, P0CF74, P01603, P06318, P80748, A0A087X130, Q6PK50, P06313 | G22: 164 | H22: 127 | I22: 16663 | J22: 8.800316881 | K22: 0.0003709981533 | L22: 1.427170547e-05 | M22: 0.0007286217325
A23: GOTERM_BP_3 | B23: GO:0002443~leukocyte mediated immunity | C23: 26 | D23: 14.85714286 | E23: 9.660244789e-15 | F23: Q95HL2, P04003, Q9NZP8, P13671, P80748, P06313, P04220, P01859, P01779, Q5NKV8, P42830, Q9Y4K3, A0A087X130, P01861, Q29664, A0A060VHD0, P0CF74, P01603, P02747, A0A087WYJ9, D6RF92, P10721, B5MCZ3, B5BUQ8, P04206, P01623, P06318, P02790, P0C0L4 | G23: 164 | H23: 356 | I23: 16663 | J23: 7.420491916 | K23: 7.524314505e-12 | L23: 1.881050871e-12 | M23: 1.477706846e-11
A24: GOTERM_BP_3 | B24: GO:0002683~negative regulation of immune system process | C24: 11 | D24: 6.285714286 | E24: 0.004918117015 | F24: Q95HL2, Q29664, P04003, A0A060VHD0, P13500, Q6NUR7, P02747, P02743, V9GYM3, P02647, P05090, P02760 | G24: 164 | H24: 388 | I24: 16663 | J24: 2.880516093 | K24: 0.9785206944 | L24: 0.03124257694 | M24: 7.264146532
A25: GOTERM_BP_3 | B25: GO:0002684~positive regulation of immune system process | C25: 37 | D25: 21.14285714 | E25: 1.95423988e-12 | F25: P09341, Q95HL2, P04003, Q9NZP8, Q6NUR7, P13671, P80748, A0A024RDA5, P06313, P04220, P00751, B2MUX6, P01779, P01859, Q5NKV8, P42830, P19876, B1AKG0, Q9Y4K3, A0A087X130, P19320, P01861, Q29664, A0A060VHD0, P13500, P0CF74, A0A087WYJ9, P01603, P02747, D6RF92, P80108, Q6PK50, B5MCZ3, B5BUQ8, P04206, P01623, A2A2V4, P06318, P02790, P0C0L4 | G25: 164 | H25: 960 | I25: 16663 | J25: 3.915974339 | K25: 1.522333148e-09 | L25: 2.537221544e-10 | M25: 2.989242187e-09
A26: GOTERM_BP_3 | B26: GO:0002685~regulation of leukocyte migration | C26: 10 | D26: 5.714285714 | E26: 2.293497619e-05 | F26: B5MCZ3, P09341, P13500, D6RF92, A2A2V4, Q5NKV8, P19876, P42830, P05090, A0A024RDA5 | G26: 164 | H26: 156 | I26: 16663 | J26: 6.513055034 | K26: 0.01770789082 | L26: 0.0003645570295 | M26: 0.03507647432
A27: GOTERM_BP_3 | B27: GO:0002687~positive regulation of leukocyte migration | C27: 9 | D27: 5.142857143 | E27: 1.160815864e-05 | F27: B5MCZ3, P09341, P13500, D6RF92, A2A2V4, Q5NKV8, P19876, P42830, A0A024RDA5 | G27: 164 | H27: 109 | I27: 16663 | J27: 8.389292907 | K27: 0.009002044842 | L27: 0.0002152817775 | M27: 0.01775481443
A28: GOTERM_BP_3 | B28: GO:0002694~regulation of leukocyte activation | C28: 13 | D28: 7.428571429 | E28: 0.002213729314 | F28: P19320, P01861, A0A060VHD0, P0CF74, P13500, A0A087WYJ9, B5MCZ3, B5BUQ8, B2MUX6, P04220, P01859, P01779, Q9Y4K3, A0A087X130 | G28: 164 | H28: 468 | I28: 16663 | J28: 2.822323848 | K28: 0.8220774152 | L28: 0.01630753756 | M28: 3.333144147
A29: GOTERM_BP_3 | B29: GO:0002696~positive regulation of leukocyte activation | C29: 13 | D29: 7.428571429 | E29: 5.687418779e-05 | F29: P19320, P01861, A0A060VHD0, P0CF74, P13500, A0A087WYJ9, B5MCZ3, B5BUQ8, B2MUX6, P04220, P01859, P01779, Q9Y4K3, A0A087X130 | G29: 164 | H29: 311 | I29: 16663 | J29: 4.247098267 | K29: 0.04333906695 | L29: 0.0007506715328 | M29: 0.08696159443
A30: GOTERM_BP_3 | B30: GO:0002697~regulation of immune effector process | C30: 13 | D30: 7.428571429 | E30: 8.65839089e-05 | F30: Q95HL2, Q29664, P04003, P13500, A0A060VHD0, P13671, V9GYM3, B5MCZ3, B5BUQ8, P00751, P02790, Q9Y4K3, P0C0L4, P02647 | G30: 164 | H30: 325 | I30: 16663 | J30: 4.064146341 | K30: 0.06522721058 | L30: 0.001021474685 | M30: 0.1323601512
A31: GOTERM_BP_3 | B31: GO:0002698~negative regulation of immune effector process | C31: 5 | D31: 2.857142857 | E31: 0.01675218118 | F31: Q95HL2, Q29664, P04003, A0A060VHD0, V9GYM3, P02647 | G31: 164 | H31: 100 | I31: 16663 | J31: 5.080182927 | K31: 0.9999980748 | L31: 0.07491785468 | M31: 22.77280032
A32: GOTERM_BP_3 | B32: GO:0002699~positive regulation of immune effector process | C32: 8 | D32: 4.571428571 | E32: 0.001160497871 | F32: B5MCZ3, B5BUQ8, Q95HL2, Q29664, A0A060VHD0, P13500, P13671, P02790, Q9Y4K3 | G32: 164 | H32: 164 | I32: 16663 | J32: 4.956276026 | K32: 0.5952771669 | L32: 0.009576750256 | M32: 1.760492202
A33: GOTERM_BP_3 | B33: GO:0002757~immune response-activating signal transduction | C33: 15 | D33: 8.571428571 | E33: 0.0003908421198 | F33: P01861, P0CF74, A0A087WYJ9, P01603, Q6NUR7, P80748, P80108, Q6PK50, P06313, P04220, P01623, P04206, P01859, P01779, P06318, Q9Y4K3, A0A087X130 | G33: 164 | H33: 498 | I33: 16663 | J33: 3.060351161 | K33: 0.2625267967 | L33: 0.003896562033 | M33: 0.596179815
A34: GOTERM_BP_3 | B34: GO:0003013~circulatory system process | C34: 10 | D34: 5.714285714 | E34: 0.06339692432 | F34: Q9UG85, I3L195, C8C504, P16860, B4DJF2, P17813, A0A087WWY0, A2A2V4, Q5NKV8, Q9UK54, H0YKP3 | G34: 164 | H34: 510 | I34: 16663 | J34: 1.992228599 | K34: 1 | L34: 0.196658109 | M34: 63.27995866
A35: GOTERM_BP_3 | B35: GO:0006810~transport | C35: 81 | D35: 46.28571429 | E35: 8.125018281e-09 | F35: E9KL36, P17813, A0A024RDW5, P31947, P80748, A0A024R6I7, P06313, Q96JC1, P04220, B2MUX6, O00391, E7ERX5, J3KMZ9, P01859, Q8NBH6, P00739, P00738, Q5NKV8, G3V3A0, P00734, A0A087X130, V9HWD8, P02787, A8K3T7, F8WBC0, P13500, B4DJF2, A0A087WYJ9, P01603, P19652, Q9UH51, V9GYM3, P80108, Q6PK50, O14950, B5MCZ3, E9PKE3, P02790, D6RIZ6, P02647, P00747, A0A024R5M3, B4DIT7, Q6IS14, P04003, P25311, Q6NUR7, G5EA09, P61981, P05090, P40222, A0A024RDA5, O43866, Q09666, P01779, A0A087WWY0, P02656, Q9Y4K3, P02760, P02763, F5GY03, C9JB55, P01861, C9JPM3, C9J7B5, U5LGW0, P16860, A0A087WWT3, P0CF74, H0YAB0, P13521, E9PFZ2, D6RHJ6, P10721, B5BUQ8, C8C504, P27169, P04206, P01623, Q86XU5, K7ENJ4, A2A2V4, Q9UK54, P06318, P0C0L4, K7EQA1 | G35: 164 | H35: 4663 | I35: 16663 | J35: 1.764935951 | K35: 6.32936927e-06 | L35: 4.520991336e-07 | M35: 1.242834107e-05
A36: GOTERM_BP_3 | B36: GO:0006928~movement of cell or subcellular component | C36: 42 | D36: 24 | E36: 1.50778739e-07 | F36: E9PF17, A8K3H6, P09341, Q6NUR7, P98066, G5EA09, P17813, H0YKP3, M9MMK7, P05090, A0A024RDA5, E7ERX5, Q8NBH6, Q5NKV8, P19876, P42830, P00734, L8B567, F5GY03, P19320, C9JPM3, P13500, B4DJF2, A0A0A0MSC8, H0YAB0, D6RF92, P13521, P08779, E5RGA1, P80108, Q7Z3T9, B5MCZ3, P10721, B5BUQ8, O60687, Q86XU5, J3KN67, A2A2V4, P23229, G3V543, P02647, A0A024R5M3 | G36: 164 | H36: 1795 | I36: 16663 | J36: 2.377355799 | K36: 0.0001174497487 | L36: 5.106797677e-06 | M36: 0.0002306367331
A37: GOTERM_BP_3 | B37: GO:0006935~chemotaxis | C37: 19 | D37: 10.85714286 | E37: 7.913790217e-06 | F37: P19320, P09341, A8K3H6, P13500, Q6NUR7, A0A0A0MSC8, P17813, D6RF92, P13521, Q7Z3T9, A0A024RDA5, P10721, B5MCZ3, B5BUQ8, A2A2V4, P42830, P19876, P02647, L8B567 | G37: 164 | H37: 552 | I37: 16663 | J37: 3.497227377 | K37: 0.00614590317 | L37: 0.0001622201823 | M37: 0.01210455436
A38: GOTERM_BP_3 | B38: GO:0006952~defense response | C38: 52 | D38: 29.71428571 | E38: 1.021500869e-15 | F38: Q95HL2, Q9NZP8, A0A024R6I7, P04220, J3KMZ9, E7ERX5, P01859, P00738, Q5NKV8, G3V3A0, P42830, P00734, A0A087X130, A8K3T7, Q29664, A0A060VHD0, P13500, P02747, A0A087WYJ9, P19652, P02743, P08779, V9GYM3, Q9UH51, Q16778, Q6PK50, B5MCZ3, P02790, P02647, B4DIT7, P09341, P04003, P98066, P13671, P05090, A0A024RDA5, P00751, O43866, P01779, Q8IZZ5, P19876, Q9Y4K3, P02763, P19320, P01861, U5LGW0, P0CF74, A8K9A9, D6RF92, P13521, P10721, D6RHJ6, B5BUQ8, Q16853, P0C0L4 | G38: 164 | H38: 1518 | I38: 16663 | J38: 3.480494232 | K38: 7.783773626e-13 | L38: 3.892441924e-13 | M38: 1.532107774e-12
A39: GOTERM_BP_3 | B39: GO:0006956~complement activation | C39: 18 | D39: 10.28571429 | E39: 1.555327284e-15 | F39: P01861, P04003, P0CF74, Q9NZP8, P02747, P01603, A0A087WYJ9, P13671, P80748, P06313, P04220, P00751, P01623, P04206, P01859, P01779, P06318, B1AKG0, P0C0L4, A0A087X130 | G39: 164 | H39: 117 | I39: 16663 | J39: 15.63133208 | K39: 1.210809231e-12 | L39: 4.035660695e-13 | M39: 2.375877273e-12
A40: GOTERM_BP_3 | B40: GO:0006959~humoral immune response | C40: 24 | D40: 13.71428571 | E40: 2.822989494e-16 | F40: P04003, Q9NZP8, P13671, P80748, P06313, P04220, P00751, P01779, P01859, B1AKG0, A0A087X130, P01861, P0CF74, P13500, A0A060VHD0, A0A087WYJ9, P01603, P02747, Q16778, B5MCZ3, D6RHJ6, P04206, P01623, P06318, P02790, P0C0L4 | G40: 164 | H40: 248 | I40: 16663 | J40: 9.832612116 | K40: 2.594591209e-13 | L40: 2.594591209e-13 | M40: 5.107025913e-13
A41: GOTERM_BP_3 | B41: GO:0007015~actin filament organization | C41: 8 | D41: 4.571428571 | E41: 0.04681483158 | F41: E7ERX5, Q6NUR7, F6RFD5, J3KN67, Q5NKV8, H0YKP3, P02647, A0A024R5M3 | G41: 164 | H41: 335 | I41: 16663 | J41: 2.426356025 | K41: 1 | L41: 0.1581217301 | M41: 51.97276613
A42: GOTERM_BP_3 | B42: GO:0007154~cell communication | C42: 81 | D42: 46.28571429 | E42: 0.00183289833 | F42: A8K3H6, Q95HL2, P17813, Q59GA2, P31947, P80748, B4DJQ5, P06313, A0A087WXI7, P04220, B2MUX6, E7ERX5, P01859, Q8NBH6, A0A024R321, Q5NKV8, P42830, P00734, A0A087X130, Q53FS6, Q29664, F8WBC0, A0A060VHD0, P13500, B4DJF2, A0A087WYJ9, P01603, Q96T58, P80108, Q6PK50, O14950, B5MCZ3, E9PKE3, P02790, Q16537, P02647, A0A024R5M3, B4DIT7, E9PNL9, P02750, Q6NW40, P09341, L0R849, Q04695, Q6NUR7, P98066, G5EA09, P61981, H7BXY6, P05090, A0A024RDA5, P01779, P02656, P19876, Q9Y4K3, P02760, L8B567, F5GY03, P19320, P01861, C9JPM3, P16860, A0A087WWT3, P0CF74, A0A0A0MSC8, D6RF92, H0YAB0, P13521, E5RGA1, Q13442, Q7Z3T9, Q8IZN1, Q9NQ30, P10721, C9JD84, B5BUQ8, P01623, P04206, Q86XU5, A2A2V4, P80297, P06318, P23229, K7EQA1 | G42: 164 | H42: 6275 | I42: 16663 | J42: 1.311537266 | K42: 0.7604846882 | L42: 0.01391345677 | M42: 2.767235339
A43: GOTERM_BP_3 | B43: GO:0007165~signal transduction | C43: 78 | D43: 44.57142857 | E43: 0.0005838063906 | F43: Q95HL2, P17813, Q59GA2, P31947, P80748, B4DJQ5, P06313, A0A087WXI7, P04220, B2MUX6, E7ERX5, P01859, Q8NBH6, A0A024R321, Q5NKV8, P42830, P00734, A0A087X130, Q53FS6, Q29664, F8WBC0, A0A060VHD0, P13500, B4DJF2, A0A087WYJ9, P01603, Q96T58, P80108, Q6PK50, O14950, B5MCZ3, P02790, Q16537, P02647, A0A024R5M3, B4DIT7, E9PNL9, P02750, Q6NW40, L0R849, P09341, Q04695, Q6NUR7, P98066, G5EA09, P61981, H7BXY6, P05090, A0A024RDA5, P01779, P02656, P19876, Q9Y4K3, P02760, L8B567, F5GY03, P19320, P01861, C9JPM3, P16860, P0CF74, A0A0A0MSC8, D6RF92, H0YAB0, P13521, E5RGA1, Q13442, Q7Z3T9, Q8IZN1, Q9NQ30, P10721, C9JD84, B5BUQ8, P01623, P04206, Q86XU5, A2A2V4, P80297, P06318, P23229, K7EQA1 | G43: 164 | H43: 5775 | I43: 16663 | J43: 1.372309154 | K43: 0.3654999945 | L43: 0.005401051863 | M43: 0.8892957392
A44: GOTERM_BP_3 | B44: GO:0007275~multicellular organism development | C44: 68 | D44: 38.85714286 | E44: 0.0007842870503 | F44: E9PF17, A8K3H6, Q95HL2, P17813, E9PK86, Q59GA2, P31947, B4DJQ5, Q9UG85, B2MUX6, E7ERX5, Q8NBH6, A0A024R321, Q5NKV8, P00734, A0A024RAB6, Q29664, P13500, B4DJF2, P02747, Q96T58, P08779, P02743, V9GYM3, P80108, Q6PK50, B5MCZ3, O60687, P02647, A0A024R5M3, B4DIT7, E9PNL9, P02750, P27658, L0R849, P09341, Q04695, Q6NUR7, G5EA09, P13671, H0YKP3, P61981, P05090, Q92988, A0A024RDA5, P13929, Q9Y4K3, L8B567, F5GY03, P19320, C9JPM3, Q5PR22, P16860, A0A0A0MSC8, H0YAB0, P13521, P50454, Q4VXY6, Q7Z3T9, Q8IZN1, Q9NQ30, P10721, C9JD84, B5BUQ8, A0A087WZI0, Q86XU5, K7ENJ4, A2A2V4, P80297, A4D2D2, P23229 | G44: 164 | H44: 4877 | I44: 16663 | J44: 1.416659582 | K44: 0.4573003926 | L44: 0.007081774071 | M44: 1.192973417
A45: GOTERM_BP_3 | B45: GO:0007568~aging | C45: 9 | D45: 5.142857143 | E45: 0.006368016493 | F45: B5MCZ3, P19320, P13929, P13500, P17813, H0YAB0, Q5NKV8, P08779, P05090 | G45: 164 | H45: 280 | I45: 16663 | J45: 3.265831882 | K45: 0.9931021609 | L45: 0.03727638165 | M45: 9.309639107
A46: GOTERM_BP_3 | B46: GO:0007586~digestion | C46: 7 | D46: 4 | E46: 0.005360447717 | F46: Q5T085, A8K3T7, J3KMZ9, Q6NUR7, G3V3A0, V9GYM3, Q9UH51, P02647 | G46: 164 | H46: 163 | I46: 16663 | J46: 4.363347299 | K46: 0.9848085267 | L46: 0.03320257947 | M46: 7.892704502
A47: GOTERM_BP_3 | B47: GO:0007597~blood coagulation, intrinsic pathway | C47: 3 | D47: 1.714285714 | E47: 0.01312999611 | F47: A8K9A9, Q8IZZ5, P00734 | G47: 164 | H47: 18 | I47: 16663 | J47: 16.93394309 | K47: 0.9999662324 | L47: 0.06194844364 | M47: 18.30453316
A48: GOTERM_BP_3 | B48: GO:0008037~cell recognition | C48: 7 | D48: 4 | E48: 0.004337582517 | F48: E9PF17, P01861, P04220, P01859, P01779, P0CF74, A0A087WYJ9, A0A087X130 | G48: 164 | H48: 156 | I48: 16663 | J48: 4.559138524 | K48: 0.966167261 | L48: 0.0285281245 | M48: 6.433114504
A49: GOTERM_BP_3 | B49: GO:0008104~protein localization | C49: 39 | D49: 22.28571429 | E49: 0.002193698187 | F49: Q6IS14, P25311, Q6NUR7, G5EA09, P31947, A0A024RDW5, P61981, P05090, H7BXY6, Q96JC1, Q9UG85, E7ERX5, Q8NBH6, A0A024R321, P00734, Q9Y4K3, C9JB55, C9J7B5, P02787, C9JPM3, A8K3T7, P13500, B4DJF2, H0YAB0, P13521, V9GYM3, D6RA26, P80108, Q6PK50, O14950, B3KP42, C9JD84, B5MCZ3, B5BUQ8, E9PKE3, Q86XU5, A2A2V4, K7EQA1, P02647, A0A024R5M3 | G49: 164 | H49: 2448 | I49: 16663 | J49: 1.618685736 | K49: 0.8192730642 | L49: 0.01631513521 | M49: 3.303455075
A50: GOTERM_BP_3 | B50: GO:0008217~regulation of blood pressure | C50: 5 | D50: 2.857142857 | E50: 0.08709532535 | F50: I3L195, C8C504, P16860, P17813, Q9UK54, H0YKP3 | G50: 164 | H50: 171 | I50: 16663 | J50: 2.970867209 | K50: 1 | L50: 0.2471895434 | M50: 75.18855206
A51: GOTERM_BP_3 | B51: GO:0008219~cell death | C51: 28 | D51: 16 | E51: 0.04098757511 | F51: P17813, P31947, P61981, O43866, E7ERX5, P00738, Q5NKV8, Q9Y4K3, L8B567, Q53FS6, A8K3T7, A0A087WWT3, B4DJF2, P13500, A0A0A0MSC8, H0YAB0, P13521, P80108, Q6PK50, P10721, B5MCZ3, B5BUQ8, C8C504, A2A2V4, Q9UK54, P23229, K7EQA1, A0A024R5M3, B4DIT7 | G51: 164 | H51: 1958 | I51: 16663 | J51: 1.452963452 | K51: 1 | L51: 0.1457216275 | M51: 47.27987118
A52: GOTERM_BP_3 | B52: GO:0008284~positive regulation of cell proliferation | C52: 22 | D52: 12.57142857 | E52: 8.417670623e-05 | F52: P02750, P19320, C9J7B5, A0A060VHD0, P13500, G5EA09, Q59GA2, P13521, Q7Z3T9, Q9NQ30, B5MCZ3, P10721, B5BUQ8, B2MUX6, E7ERX5, Q8NBH6, A2A2V4, P42830, P02538, P00734, Q9Y4K3, B4DIT7 | G52: 164 | H52: 849 | I52: 16663 | J52: 2.632839208 | K52: 0.06347251996 | L52: 0.001008359175 | M52: 0.128682493
A53: GOTERM_BP_3 | B53: GO:0008285~negative regulation of cell proliferation | C53: 20 | D53: 11.42857143 | E53: 2.080443557e-05 | F53: F5GY03, P09341, P25311, P17813, A0A0A0MSC8, P31947, H0YAB0, P13521, H0YKP3, P80108, P05090, A0A024RDA5, B5MCZ3, B5BUQ8, O00391, Q8NBH6, K7ENJ4, P00747, K7EQA1, L8B567 | G53: 164 | H53: 651 | I53: 16663 | J53: 3.121464164 | K53: 0.01607619995 | L53: 0.0003522602004 | M53: 0.03181853591
A54: GOTERM_BP_3 | B54: GO:0008360~regulation of cell shape | C54: 10 | D54: 5.714285714 | E54: 1.278232713e-05 | F54: B5MCZ3, P10721, P13500, Q6NUR7, Q86XU5, A2A2V4, Q5NKV8, H0YKP3, P00734, O14950 | G54: 164 | H54: 145 | I54: 16663 | J54: 7.007148865 | K54: 0.009908084745 | L54: 0.0002315428752 | M54: 0.01955055478
A55: GOTERM_BP_3 | B55: GO:0009611~response to wounding | C55: 21 | D55: 12 | E55: 5.582050199e-06 | F55: F5GY03, A8K9A9, P13500, P17813, H0YKP3, E5RGA1, P02743, P05090, A0A024R6I7, O14950, B5MCZ3, C9JT76, C8C504, P13929, Q8NBH6, Q86XU5, Q8IZZ5, Q9UK54, P02538, P02647, P00747, P00734 | G55: 164 | H55: 649 | I55: 16663 | J55: 3.287637641 | K55: 0.004338988512 | L55: 0.0001207824064 | M55: 0.008538178852
A56: GOTERM_BP_3 | B56: GO:0009617~response to bacterium | C56: 25 | D56: 14.28571429 | E56: 6.354857713e-10 | F56: F5GY03, P19320, P09341, C9JPM3, P01861, Q95HL2, Q29664, A0A060VHD0, P13500, P0CF74, A0A087WYJ9, D6RF92, Q16778, A0A024RDA5, D6RHJ6, B5MCZ3, B5BUQ8, P04220, C9JT76, P01859, P01779, P00738, Q5NKV8, P42830, P19876, Q9Y4K3, A0A087X130 | G56: 164 | H56: 544 | I56: 16663 | J56: 4.669285778 | K56: 4.950432965e-07 | L56: 4.950434063e-08 | M56: 9.720635741e-07
A57: GOTERM_BP_3 | B57: GO:0009653~anatomical structure morphogenesis | C57: 47 | D57: 26.85714286 | E57: 3.795814963e-05 | F57: P02750, P27658, A8K3H6, Q04695, Q6NUR7, G5EA09, P17813, Q59GA2, E9PK86, P13671, H0YKP3, P05090, A0A024RDA5, Q9UG85, E7ERX5, Q8NBH6, A0A024R321, Q5NKV8, P02538, P00734, Q9Y4K3, L8B567, F5GY03, A0A024RAB6, C9JPM3, Q5PR22, P16860, P13500, A0A0A0MSC8, P13521, P08779, Q4VXY6, P50454, P80108, Q7Z3T9, Q9NQ30, O14950, B5MCZ3, P10721, B5BUQ8, A0A087WZI0, O60687, Q86XU5, A2A2V4, P23229, P02647, A0A024R5M3, B4DIT7, E9PNL9 | G57: 164 | H57: 2631 | I57: 16663 | J57: 1.81504065 | K57: 0.02913704609 | L57: 0.0005374911321 | M57: 0.05804649998
A58: GOTERM_BP_3 | B58: GO:0009725~response to hormone | C58: 17 | D58: 9.714285714 | E58: 0.00960020756 | F58: F5GY03, C9JPM3, F8WBC0, P13500, P17813, A0A0A0MSC8, Q59GA2, V9GYM3, P80108, P61981, Q9UG85, P10721, B5MCZ3, B5BUQ8, B2MUX6, Q5NKV8, Q13219 | G58: 164 | H58: 854 | I58: 16663 | J58: 2.022555264 | K58: 0.9994549816 | L58: 0.04983568559 | M58: 13.71875322
A59: GOTERM_BP_3 | B59: GO:0009887~organ morphogenesis | C59: 19 | D59: 10.85714286 | E59: 0.008400111116 | F59: P27658, A8K3H6, Q5PR22, P13500, P17813, Q6NUR7, A0A0A0MSC8, E9PK86, Q59GA2, H0YKP3, P50454, Q4VXY6, Q7Z3T9, Q9UG85, B5MCZ3, A0A087WZI0, A2A2V4, P23229, Q9Y4K3, L8B567, B4DIT7 | G59: 164 | H59: 992 | I59: 16663 | J59: 1.946037815 | K59: 0.9986000592 | L59: 0.04553580083 | M59: 12.10559679
A60: GOTERM_BP_3 | B60: GO:0009888~tissue development | C60: 35 | D60: 20 | E60: 7.425826269e-05 | F60: P27658, A8K3H6, Q04695, P04259, Q6NUR7, G5EA09, P17813, P31947, E9PK86, H0YKP3, P05090, Q9UG85, E7ERX5, P13929, A0A024R321, Q5NKV8, P02538, Q9Y4K3, L8B567, C9JPM3, Q5PR22, X6RJP6, F8WBC0, H0YAB0, A0A024R4H0, P08779, Q4VXY6, P50454, P80108, Q7Z3T9, B5MCZ3, B5BUQ8, A0A087WZI0, A2A2V4, P23229, B4DIT7, E9PNL9 | G60: 164 | H60: 1756 | I60: 16663 | J60: 2.025129868 | K60: 0.05620786642 | L60: 0.0009479002054 | M60: 0.113528032
A61: GOTERM_BP_3 | B61: GO:0009892~negative regulation of metabolic process | C61: 38 | D61: 21.71428571 | E61: 0.006553401867 | F61: P04003, Q6NUR7, G5EA09, P17813, P31947, E9PK86, P61981, A0A024R6I7, P05090, Q92988, K7EJ43, C9JT76, J3KMZ9, Q8NBH6, A0A087WWY0, P00738, P02656, G3V3A0, P00734, Q9Y4K3, P02760, Q53FS6, B4DJF2, A0A0A0MSC8, Q96T58, E5RGA1, P02743, P50454, V9GYM3, Q9UH51, P80108, Q6PK50, B5MCZ3, B5BUQ8, E9PKE3, P27169, A2A2V4, Q7L7L0, P0C0L4, P01036 | G61: 164 | H61: 2522 | I61: 16663 | J61: 1.530903658 | K61: 0.994035329 | L61: 0.03777843398 | M61: 9.568115428
A62: GOTERM_BP_3 | B62: GO:0009893~positive regulation of metabolic process | C62: 40 | D62: 22.85714286 | E62: 0.042601173 | F62: Q6NW40, Q6IS14, Q04695, P04003, Q6NUR7, G5EA09, P17813, Q59GA2, P13671, B2MUX6, J3KMZ9, Q8NBH6, Q8IZZ5, Q5NKV8, P00734, Q9Y4K3, L8B567, C9J7B5, C9JPM3, F8WBC0, P13500, A8K9A9, H0YAB0, V9GYM3, Q9UH51, P80108, Q6PK50, B3KP42, D6RHJ6, B5MCZ3, P10721, B5BUQ8, E9PKE3, C8C504, Q86XU5, A2A2V4, Q9UK54, P02790, A4D2D2, P23229, K7EQA1, P02647 | G62: 164 | H62: 3052 | I62: 16663 | J62: 1.331633795 | K62: 1 | L62: 0.1497863984 | M62: 48.62053707
A63: GOTERM_BP_3 | B63: GO:0009894~regulation of catabolic process | C63: 13 | D63: 7.428571429 | E63: 0.004356147862 | F63: C9JPM3, P04003, G5EA09, Q6NUR7, Q9UH51, V9GYM3, P80108, Q6PK50, B5BUQ8, E7ERX5, J3KMZ9, P02656, P00738, P02647 | G63: 164 | H63: 509 | I63: 16663 | J63: 2.594985385 | K63: 0.966655148 | L63: 0.02840942136 | M63: 6.45979808
A64: GOTERM_BP_3 | B64: GO:0009895~negative regulation of catabolic process | C64: 7 | D64: 4 | E64: 0.00282822076 | F64: B5BUQ8, G5EA09, P02656, P00738, V9GYM3, P80108, Q6PK50 | G64: 164 | H64: 143 | I64: 16663 | J64: 4.973605663 | K64: 0.8898933023 | L64: 0.0200378534 | M64: 4.239782086
A65: GOTERM_BP_3 | B65: GO:0009966~regulation of signal transduction | C65: 38 | D65: 21.71428571 | E65: 0.02160474082 | F65: P02750, Q6NUR7, G5EA09, P17813, P31947, P61981, P05090, H7BXY6, A0A024RDA5, B2MUX6, E7ERX5, Q8NBH6, P02656, Q5NKV8, P00734, Q9Y4K3, P02760, C9JPM3, Q53FS6, F8WBC0, P13500, B4DJF2, A0A0A0MSC8, H0YAB0, P13521, Q6PK50, Q9NQ30, C9JD84, B5MCZ3, P10721, B5BUQ8, A2A2V4, P02790, P23229, K7EQA1, P02647, A0A024R5M3, B4DIT7 | G65: 164 | H65: 2728 | I65: 16663 | J65: 1.415300229 | K65: 0.9999999592 | L65: 0.09116108729 | M65: 28.4015408
A66: GOTERM_BP_3 | B66: GO:0009967~positive regulation of signal transduction | C66: 24 | D66: 13.71428571 | E66: 0.01198445083 | F66: P02750, C9JPM3, F8WBC0, P13500, B4DJF2, P17813, G5EA09, P31947, P61981, H7BXY6, Q6PK50, Q9NQ30, B5MCZ3, P10721, B5BUQ8, B2MUX6, A2A2V4, Q5NKV8, P02790, P02647, P00734, K7EQA1, Q9Y4K3, B4DIT7 | G66: 164 | H66: 1428 | I66: 16663 | J66: 1.707624513 | K66: 0.9999166349 | L66: 0.05736011295 | M66: 16.84186347
A67: GOTERM_BP_3 | B67: GO:0009968~negative regulation of signal transduction | C67: 18 | D67: 10.28571429 | E67: 0.0379291654 | F67: Q53FS6, P17813, Q6NUR7, A0A0A0MSC8, H0YAB0, P13521, P05090, A0A024RDA5, C9JD84, B5MCZ3, B5BUQ8, E7ERX5, Q8NBH6, Q5NKV8, P23229, P02647, A0A024R5M3, P02760 | G67: 164 | H67: 1089 | I67: 16663 | J67: 1.679399315 | K67: 1 | L67: 0.138532167 | M67: 44.64860913
A68: GOTERM_BP_3 | B68: GO:0009991~response to extracellular stimulus | C68: 10 | D68: 5.714285714 | E68: 0.02745026796 | F68: B5MCZ3, F5GY03, P19320, E9PKE3, P27169, A0A087WWT3, P13500, Q5NKV8, P23229, P02647 | G68: 164 | H68: 435 | I68: 16663 | J68: 2.335716288 | K68: 0.9999999996 | L68: 0.1067876441 | M68: 34.6727302
A69: GOTERM_BP_3 | B69: GO:0010033~response to organic substance | C69: 51 | D69: 29.14285714 | E69: 1.026122221e-05 | F69: Q95HL2, P17813, Q59GA2, E9PK86, Q9UG85, B2MUX6, J3KMZ9, E7ERX5, Q5NKV8, P42830, Q29664, F8WBC0, A0A060VHD0, P13500, Q9UH51, V9GYM3, P80108, Q6PK50, B5MCZ3, E9PKE3, P02790, P02647, B4DIT7, Q6NW40, P02750, L0R849, P09341, G5EA09, Q6NUR7, P61981, A0A024RDA5, C9JT76, Q8IZZ5, P19876, Q9Y4K3, Q13219, F5GY03, P19320, C9JPM3, Q5PR22, A0A0A0MSC8, H0YAB0, D6RF92, P50454, Q7Z3T9, B3KP42, C9JD84, P10721, B5BUQ8, P27169, P80297, A2A2V4, P23229, K7EQA1 | G69: 164 | H69: 2822 | I69: 16663 | J69: 1.836210696 | K69: 0.007961669787 | L69: 0.0001949452181 | M69: 0.01569481052
A70: GOTERM_BP_3 | B70: GO:0010035~response to inorganic substance | C70: 13 | D70: 7.428571429 | E70: 0.00225295037 | F70: F5GY03, P19320, C9JB55, P02787, C9JPM3, Q53FS6, P80108, B3KP42, B5MCZ3, C8C504, P27169, P00738, P80297, Q5NKV8, Q9UK54 | G70: 164 | H70: 469 | I70: 16663 | J70: 2.8163061 | K70: 0.8274431154 | L70: 0.01628673871 | M70: 3.39125084
A71: GOTERM_BP_3 | B71: GO:0010243~response to organonitrogen compound | C71: 14 | D71: 8 | E71: 0.04608053786 | F71: B5MCZ3, F5GY03, B5BUQ8, P19320, B2MUX6, Q5PR22, F8WBC0, P13500, Q6NUR7, Q5NKV8, P61981, P80108, Q6PK50, B3KP42 | G71: 164 | H71: 789 | I71: 16663 | J71: 1.802853257 | K71: 1 | L71: 0.1571201294 | M71: 51.40370091
A72: GOTERM_BP_3 | B72: GO:0010604~positive regulation of macromolecule metabolic process | C72: 36 | D72: 20.57142857 | E72: 0.08790741149 | F72: Q6NW40, Q6IS14, Q04695, P04003, Q6NUR7, G5EA09, P17813, P13671, B2MUX6, J3KMZ9, Q8NBH6, Q8IZZ5, Q5NKV8, P00734, Q9Y4K3, L8B567, C9J7B5, C9JPM3, F8WBC0, P13500, A8K9A9, H0YAB0, V9GYM3, Q9UH51, P80108, Q6PK50, B3KP42, B5MCZ3, P10721, B5BUQ8, E9PKE3, Q86XU5, A2A2V4, P02790, A4D2D2, P23229, K7EQA1 | G72: 164 | H72: 2856 | I72: 16663 | J72: 1.280718385 | K72: 1 | L72: 0.2484162421 | M72: 75.52402551
A73: GOTERM_BP_3 | B73: GO:0010605~negative regulation of macromolecule metabolic process | C73: 33 | D73: 18.85714286 | E73: 0.02738258227 | F73: P04003, Q6NUR7, G5EA09, P17813, P31947, E9PK86, P61981, A0A024R6I7, P05090, Q92988, K7EJ43, C9JT76, J3KMZ9, Q8NBH6, A0A087WWY0, G3V3A0, P00734, Q9Y4K3, P02760, B4DJF2, A0A0A0MSC8, Q96T58, P02743, P50454, E5RGA1, Q9UH51, Q6PK50, B5MCZ3, B5BUQ8, E9PKE3, P27169, A2A2V4, Q7L7L0, P0C0L4, P01036 | G73: 164 | H73: 2326 | I73: 16663 | J73: 1.441496445 | K73: 0.9999999996 | L73: 0.1070621943 | M73: 34.6031502
A74: GOTERM_BP_3 | B74: GO:0010632~regulation of epithelial cell migration | C74: 6 | D74: 3.428571429 | E74: 0.02534576947 | F74: F5GY03, C9JPM3, O60687, A2A2V4, P80108, Q7Z3T9 | G74: 164 | H74: 169 | I74: 16663 | J74: 3.607230481 | K74: 0.9999999979 | L74: 0.1009144015 | M74: 32.47663968
A75: GOTERM_BP_3 | B75: GO:0010634~positive regulation of epithelial cell migration | C75: 6 | D75: 3.428571429 | E75: 0.003706527389 | F75: F5GY03, C9JPM3, O60687, A2A2V4, P80108, Q7Z3T9 | G75: 164 | H75: 105 | I75: 16663 | J75: 5.805923345 | K75: 0.9445763666 | L75: 0.02527466004 | M75: 5.521870124
A76: GOTERM_BP_3 | B76: GO:0010646~regulation of cell communication | C76: 39 | D76: 22.28571429 | E76: 0.05525692665 | F76: P02750, Q6NUR7, G5EA09, P17813, P31947, P61981, P05090, H7BXY6, A0A024RDA5, B2MUX6, E7ERX5, Q8NBH6, P02656, Q5NKV8, P00734, Q9Y4K3, P02760, C9JPM3, Q53FS6, F8WBC0, P13500, B4DJF2, A0A0A0MSC8, H0YAB0, P13521, P80108, Q6PK50, Q9NQ30, C9JD84, B5MCZ3, P10721, B5BUQ8, A2A2V4, P02790, P23229, K7EQA1, P02647, A0A024R5M3, B4DIT7 | G76: 164 | H76: 3020 | I76: 16663 | J76: 1.312100226 | K76: 1 | L76: 0.1808270394 | M76: 58.08310798
A77: GOTERM_BP_3 | B77: GO:0010647~positive regulation of cell communication | C77: 25 | D77: 14.28571429 | E77: 0.01668002013 | F77: P02750, C9JPM3, F8WBC0, P13500, B4DJF2, P17813, G5EA09, P31947, P80108, P61981, H7BXY6, Q6PK50, Q9NQ30, B5MCZ3, P10721, B5BUQ8, B2MUX6, A2A2V4, Q5NKV8, P02790, P02647, P00734, Q9Y4K3, K7EQA1, B4DIT7 | G77: 164 | H77: 1555 | I77: 16663 | J77: 1.633499333 | K77: 0.9999979616 | L77: 0.075031851 | M77: 22.68605883
A78: GOTERM_BP_3 | B78: GO:0010648~negative regulation of cell communication | C78: 19 | D78: 10.85714286 | E78: 0.04074258645 | F78: Q53FS6, F8WBC0, P17813, Q6NUR7, A0A0A0MSC8, H0YAB0, P13521, P05090, A0A024RDA5, C9JD84, B5MCZ3, B5BUQ8, E7ERX5, Q8NBH6, Q5NKV8, P23229, P02647, A0A024R5M3, P02760 | G78: 164 | H78: 1182 | I78: 16663 | J78: 1.633222938 | K78: 1 | L78: 0.1455495966 | M78: 47.07348516
A79: GOTERM_BP_3 | B79: GO:0010810~regulation of cell-substrate adhesion | C79: 7 | D79: 4 | E79: 0.008396601745 | F79: P27658, A0A087WZI0, Q8NBH6, A2A2V4, P23229, P02647, P00747, P05090 | G79: 164 | H79: 179 | I79: 16663 | J79: 3.973327429 | K79: 0.9985961943 | L79: 0.0458346935 | M79: 12.10083847
A80: GOTERM_BP_3 | B80: GO:0010811~positive regulation of cell-substrate adhesion | C80: 5 | D80: 2.857142857 | E80: 0.02029674189 | F80: P27658, A0A087WZI0, Q8NBH6, A2A2V4, P23229, P02647 | G80: 164 | H80: 106 | I80: 16663 | J80: 4.792625403 | K80: 0.9999998845 | L80: 0.08676347188 | M80: 26.92331574
A81: GOTERM_BP_3 | B81: GO:0010876~lipid localization | C81: 11 | D81: 6.285714286 | E81: 0.00200555944 | F81: B5MCZ3, B5BUQ8, U5LGW0, P27169, J3KMZ9, A0A087WWT3, A0A087WWY0, P02656, V9GYM3, Q9UH51, P02647, P05090 | G81: 164 | H81: 342 | I81: 16663 | J81: 3.26795393 | K81: 0.7906817745 | L81: 0.01506880301 | M81: 3.024189605
A82: GOTERM_BP_3 | B82: GO:0010901~regulation of very-low-density lipoprotein particle remodeling | C82: 3 | D82: 1.714285714 | E82: 0.0009328422116 | F82: P02656, V9GYM3, P02647 | G82: 164 | H82: 5 | I82: 16663 | J82: 60.96219512 | K82: 0.5166543426 | L82: 0.008045496285 | M82: 1.417435856
A83: GOTERM_BP_3 | B83: GO:0010903~negative regulation of very-low-density lipoprotein particle remodeling | C83: 3 | D83: 1.714285714 | E83: 0.0002834893124 | F83: P02656, V9GYM3, P02647 | G83: 164 | H83: 3 | I83: 16663 | J83: 101.6036585 | K83: 0.1981786752 | L83: 0.002864324815 | M83: 0.4327585667
A84: GOTERM_BP_3 | B84: GO:0010941~regulation of cell death | C84: 25 | D84: 14.28571429 | E84: 0.0119077787 | F84: P17813, P31947, P61981, E7ERX5, P00738, Q5NKV8, Q9Y4K3, L8B567, Q53FS6, B4DJF2, P13500, A0A087WWT3, H0YAB0, P13521, P80108, Q6PK50, P10721, B5MCZ3, B5BUQ8, C8C504, A2A2V4, Q9UK54, P23229, K7EQA1, A0A024R5M3, B4DIT7 | G84: 164 | H84: 1509 | I84: 16663 | J84: 1.683294542 | K84: 0.9999114401 | L84: 0.05735188701 | M84: 16.74309729
A85: GOTERM_BP_3 | B85: GO:0010942~positive regulation of cell death | C85: 13 | D85: 7.428571429 | E85: 0.01627984708 | F85: B4DJF2, P31947, P80108, P61981, B5MCZ3, C8C504, E7ERX5, P00738, Q5NKV8, Q9UK54, P23229, K7EQA1, Q9Y4K3, B4DIT7 | G85: 164 | H85: 607 | I85: 16663 | J85: 2.176025636 | K85: 0.9999972013 | L85: 0.07370735569 | M85: 22.20337423
A86: GOTERM_BP_3 | B86: GO:0016032~viral process | C86: 19 | D86: 10.85714286 | E86: 0.006457666538 | F86: P19320, Q95HL2, Q29664, A0A060VHD0, P13500, B4DJF2, Q96T58, P02743, Q9UH51, V9GYM3, Q6PK50, A0A024RDA5, B5MCZ3, P26641, E9PKE3, E7ERX5, J3KMZ9, Q8NBH6, Q5NKV8, P02790, P02760 | G86: 164 | H86: 966 | I86: 16663 | J86: 1.998415644 | K86: 0.9935703503 | L86: 0.03751192272 | M86: 9.434721114
A87: GOTERM_BP_3 | B87: GO:0016049~cell growth | C87: 11 | D87: 6.285714286 | E87: 0.01076336362 | F87: B5MCZ3, Q04695, P16860, E7ERX5, G5EA09, A0A0A0MSC8, P31947, A2A2V4, P00734, Q7Z3T9, A0A024R5M3 | G87: 164 | H87: 436 | I87: 16663 | J87: 2.563395055 | K87: 0.9997818026 | L87: 0.05429873255 | M87: 15.2558119
A88: GOTERM_BP_3 | B88: GO:0016337~single organismal cell-cell adhesion | C88: 20 | D88: 11.42857143 | E88: 8.871477049e-05 | F88: P19320, C9JPM3, A0A060VHD0, P13500, Q6NUR7, O14950, P10721, B5MCZ3, B5BUQ8, B2MUX6, C8C504, O60687, E7ERX5, Q86XU5, Q5NKV8, Q9UK54, P23229, P02647, P00747, Q9Y4K3, L8B567 | G88: 164 | H88: 725 | I88: 16663 | J88: 2.802859546 | K88: 0.06677772709 | L88: 0.001030988641 | M88: 0.1356155175
A89: GOTERM_BP_3 | B89: GO:0016477~cell migration | C89: 35 | D89: 20 | E89: 1.008018988e-08 | F89: E9PF17, P09341, P98066, G5EA09, P17813, H0YKP3, P05090, A0A024RDA5, E7ERX5, Q8NBH6, Q5NKV8, P19876, P42830, P00734, F5GY03, P19320, C9JPM3, P13500, B4DJF2, A0A0A0MSC8, D6RF92, P13521, P08779, E5RGA1, P80108, Q7Z3T9, B5MCZ3, P10721, B5BUQ8, O60687, Q86XU5, A2A2V4, P23229, P02647, A0A024R5M3 | G89: 164 | H89: 1184 | I89: 16663 | J89: 3.003486528 | K89: 7.852437145e-06 | L89: 4.90779128e-07 | M89: 1.541904663e-05
A90: GOTERM_BP_3 | B90: GO:0018158~protein oxidation | C90: 2 | D90: 1.142857143 | E90: 0.075645015 | F90: V9GYM3, P02647 | G90: 164 | H90: 8 | I90: 16663 | J90: 25.40091463 | K90: 1 | L90: 0.2220778642 | M90: 69.97680516
A91: GOTERM_BP_3 | B91: GO:0019538~protein metabolic process | C91: 76 | D91: 43.42857143 | E91: 0.0002712657564 | F91: I3L195, E9KL36, Q9NZP8, P17813, E9PK86, P31947, P80748, A0A024R6I7, B4DJQ5, P06313, P04220, B2MUX6, P01859, Q8NBH6, Q5NKV8, G3V3A0, B1AKG0, P00734, A0A087X130, A0A024RAB6, Q53FS6, F8WBC0, P13500, B4DJF2, A0A087WYJ9, P02747, P01603, P02743, V9GYM3, P80108, Q6PK50, B5MCZ3, P02790, P02647, P01036, G3V543, P00747, B4DIT7, P33908, E9PNL9, Q6IS14, Q04695, P04003, Q6NUR7, G5EA09, P13671, P61981, H7BXY6, P00751, C9JT76, P01779, A0A087WWY0, Q8IZZ5, Q9Y4K3, P02760, Q13219, P01861, C9JPM3, C9J7B5, A8K9A9, P0CF74, A0A024R4H0, J3QT41, P13521, P50454, E5RGA1, Q8IZN1, P10721, P26641, B5BUQ8, A0A024RDN3, P01623, P04206, Q86XU5, A2A2V4, P06318, A4D2D2, P0C0L4, K7EQA1 | G91: 164 | H91: 5457 | I91: 16663 | J91: 1.415040874 | K91: 0.1905050067 | L91: 0.00277698821 | M91: 0.4141349521
A92: GOTERM_BP_3 | B92: GO:0019730~antimicrobial humoral response | C92: 4 | D92: 2.285714286 | E92: 0.02093869742 | F92: D6RHJ6, P04220, A0A060VHD0, A0A087WYJ9, Q16778 | G92: 164 | H92: 60 | I92: 16663 | J92: 6.773577236 | K92: 0.9999999307 | L92: 0.08892713607 | M92: 27.65234511
A93: GOTERM_BP_3 | B93: GO:0022407~regulation of cell-cell adhesion | C93: 10 | D93: 5.714285714 | E93: 0.01381040887 | F93: B5MCZ3, B5BUQ8, P19320, B2MUX6, A0A060VHD0, P13500, P23229, Q9Y4K3, P02647, P00747 | G93: 164 | H93: 386 | I93: 16663 | J93: 2.632219133 | K93: 0.9999802684 | L93: 0.06392215094 | M93: 19.16188716
A94: GOTERM_BP_3 | B94: GO:0022409~positive regulation of cell-cell adhesion | C94: 8 | D94: 4.571428571 | E94: 0.01112720624 | F94: B5MCZ3, B5BUQ8, P19320, B2MUX6, A0A060VHD0, P13500, P23229, Q9Y4K3 | G94: 164 | H94: 248 | I94: 16663 | J94: 3.277537372 | K94: 0.9998361698 | L94: 0.05537926093 | M94: 15.73133399
A95: GOTERM_BP_3 | B95: GO:0022411~cellular component disassembly | C95: 10 | D95: 5.714285714 | E95: 0.05858305089 | F95: Q6IS14, C9J7B5, A0A024RAB6, E9PKE3, A8K9A9, P17813, F6RFD5, H0YAB0, Q7L7L0, P00747 | G95: 164 | H95: 502 | I95: 16663 | J95: 2.023977262 | K95: 1 | L95: 0.1871184612 | M95: 60.28454463
A96: GOTERM_BP_3 | B96: GO:0022600~digestive system process | C96: 5 | D96: 2.857142857 | E96: 0.01007121798 | F96: J3KMZ9, Q6NUR7, G3V3A0, V9GYM3, Q9UH51, P02647 | G96: 164 | H96: 86 | I96: 16663 | J96: 5.90718945 | K96: 0.9996237485 | L96: 0.05154521432 | M96: 14.34428509
A97: GOTERM_BP_3 | B97: GO:0022602~ovulation cycle process | C97: 4 | D97: 2.285714286 | E97: 0.04506660475 | F97: P10721, A0A0A0MSC8, A2A2V4, Q5NKV8 | G97: 164 | H97: 81 | I97: 16663 | J97: 5.017464619 | K97: 1 | L97: 0.1551959028 | M97: 50.60755556
A98: GOTERM_BP_3 | B98: GO:0022603~regulation of anatomical structure morphogenesis | C98: 26 | D98: 14.85714286 | E98: 3.181823532e-05 | F98: P02750, A8K3H6, P17813, G5EA09, Q6NUR7, P13671, H0YKP3, A0A024RDA5, Q8NBH6, Q5NKV8, P00734, F5GY03, C9JPM3, Q5PR22, P16860, P13500, A0A0A0MSC8, O14950, P10721, B5MCZ3, B5BUQ8, O60687, Q86XU5, A2A2V4, P02647, A0A024R5M3 | G98: 164 | H98: 1051 | I98: 16663 | J98: 2.513506301 | K98: 0.02448212939 | L98: 0.000467566122 | M98: 0.04865933328
A99: GOTERM_BP_3 | B99: GO:0023014~signal transduction by protein phosphorylation | C99: 16 | D99: 9.142857143 | E99: 0.02515512365 | F99: C9JPM3, F8WBC0, P13500, Q6NUR7, G5EA09, P13521, P10721, B5MCZ3, B5BUQ8, B2MUX6, Q8NBH6, A2A2V4, Q5NKV8, P02647, Q9Y4K3, P02760 | G99: 164 | H99: 877 | I99: 16663 | J99: 1.853658537 | K99: 0.9999999976 | L99: 0.1006932895 | M99: 32.27432522
A100: GOTERM_BP_3 | B100: GO:0023056~positive regulation of signaling | C100: 25 | D100: 14.28571429 | E100: 0.01764753824 | F100: P02750, C9JPM3, F8WBC0, P13500, B4DJF2, P17813, G5EA09, P31947, P80108, P61981, H7BXY6, Q6PK50, Q9NQ30, B5MCZ3, P10721, B5BUQ8, B2MUX6, A2A2V4, Q5NKV8, P02790, P02647, P00734, Q9Y4K3, K7EQA1, B4DIT7 | G100: 164 | H100: 1563 | I100: 16663 | J100: 1.625138492 | K100: 0.9999990532 | L100: 0.07834960676 | M100: 23.84152954
A101: GOTERM_BP_3 | B101: GO:0023057~negative regulation of signaling | C101: 19 | D101: 10.85714286 | E101: 0.04188370492 | F101: Q53FS6, F8WBC0, P17813, Q6NUR7, A0A0A0MSC8, H0YAB0, P13521, P05090, A0A024RDA5, C9JD84, B5MCZ3, B5BUQ8, E7ERX5, Q8NBH6, Q5NKV8, P23229, P02647, A0A024R5M3, P02760 | G101: 164 | H101: 1186 | I101: 16663 | J101: 1.627714597 | K101: 1 | L101: 0.148062599 | M101: 48.0284085
A102: GOTERM_BP_3 | B102: GO:0030029~actin filament-based process | C102: 13 | D102: 7.428571429 | E102: 0.03254486297 | F102: P09341, G5EA09, Q6NUR7, F6RFD5, H0YKP3, P10721, E7ERX5, A0A024R321, Q86XU5, J3KN67, Q5NKV8, P02647, A0A024R5M3 | G102: 164 | H102: 672 | I102: 16663 | J102: 1.965546966 | K102: 1 | L102: 0.1232214826 | M102: 39.71577207
A103: GOTERM_BP_3 | B103: GO:0030030~cell projection organization | C103: 20 | D103: 11.42857143 | E103: 0.05118784112 | F103: A8K3H6, F8WBC0, Q6NUR7, G5EA09, A0A0A0MSC8, Q59GA2, H0YKP3, Q7Z3T9, B4DJQ5, P05090, B5MCZ3, P10721, E7ERX5, Q86XU5, A2A2V4, Q5NKV8, P23229, P02647, A0A024R5M3, L8B567 | G103: 164 | H103: 1301 | I103: 16663 | J103: 1.561931722 | K103: 1 | L103: 0.1697721273 | M103: 55.23483792
A104: GOTERM_BP_3 | B104: GO:0030193~regulation of blood coagulation | C104: 5 | D104: 2.857142857 | E104: 0.009288853486 | F104: A8K9A9, Q8IZZ5, E5RGA1, P00747, P00734 | G104: 164 | H104: 84 | I104: 16663 | J104: 6.047836818 | K104: 0.9993037722 | L104: 0.04890067898 | M104: 13.30291398
A105: GOTERM_BP_3 | B105: GO:0030194~positive regulation of blood coagulation | C105: 3 | D105: 1.714285714 | E105: 0.02462278826 | F105: Q8IZZ5, P00747, P00734 | G105: 164 | H105: 25 | I105: 16663 | J105: 12.19243902 | K105: 0.9999999963 | L105: 0.1001707554 | M105: 31.70640407
A106: GOTERM_BP_3 | B106: GO:0030195~negative regulation of blood coagulation | C106: 5 | D106: 2.857142857 | E106: 0.001045840657 | F106: A8K9A9, Q8IZZ5, E5RGA1, P00747, P00734 | G106: 164 | H106: 46 | I106: 16663 | J106: 11.04387593 | K106: 0.5574209549 | L106: 0.008917541386 | M106: 1.587853928
A107: GOTERM_BP_3 | B107: GO:0030307~positive regulation of cell growth | C107: 5 | D107: 2.857142857 | E107: 0.06438037881 | F107: Q04695, G5EA09, P31947, A2A2V4, P00734 | G107: 164 | H107: 154 | I107: 16663 | J107: 3.298820082 | K107: 1 | L107: 0.1972075728 | M107: 63.86533332
A108: GOTERM_BP_3 | B108: GO:0030595~leukocyte chemotaxis | C108: 11 | D108: 6.285714286 | E108: 2.139588526e-05 | F108: B5MCZ3, P10721, P09341, B5BUQ8, P13500, D6RF92, A2A2V4, P13521, P19876, P42830, A0A024RDA5 | G108: 164 | H108: 194 | I108: 16663 | J108: 5.761032185 | K108: 0.01652943746 | L108: 0.0003545663377 | M108: 0.03272296733
A109: GOTERM_BP_3 | B109: GO:0031099~regeneration | C109: 5 | D109: 2.857142857 | E109: 0.08298456994 | F109: P13929, P13500, V9GYM3, P02647, P05090 | G109: 164 | H109: 168 | I109: 16663 | J109: 3.023918409 | K109: 1 | L109: 0.2399198854 | M109: 73.42344971
A110: GOTERM_BP_3 | B110: GO:0031324~negative regulation of cellular metabolic process | C110: 35 | D110: 20 | E110: 0.0110730479 | F110: P04003, Q6NUR7, G5EA09, P17813, P31947, E9PK86, P61981, A0A024R6I7, P05090, Q92988, K7EJ43, C9JT76, Q8NBH6, A0A087WWY0, P00738, P02656, G3V3A0, P00734, Q9Y4K3, P02760, Q53FS6, B4DJF2, Q96T58, P02743, P50454, E5RGA1, P80108, Q6PK50, B5MCZ3, B5BUQ8, E9PKE3, P27169, A2A2V4, Q7L7L0, P0C0L4, P01036 | G110: 164 | H110: 2345 | I110: 16663 | J110: 1.516472515 | K110: 0.9998290291 | L110: 0.05546818072 | M110: 15.66071039
A111: GOTERM_BP_3 | B111: GO:0031325~positive regulation of cellular metabolic process | C111: 38 | D111: 21.71428571 | E111: 0.03734388627 | F111: Q6NW40, Q6IS14, Q04695, Q6NUR7, G5EA09, P17813, Q59GA2, P13671, B2MUX6, J3KMZ9, Q8NBH6, Q8IZZ5, Q5NKV8, P00734, Q9Y4K3, L8B567, C9J7B5, C9JPM3, F8WBC0, P13500, A8K9A9, H0YAB0, V9GYM3, Q9UH51, P80108, Q6PK50, B3KP42, B5MCZ3, P10721, B5BUQ8, E9PKE3, C8C504, Q86XU5, A2A2V4, Q9UK54, P02790, A4D2D2, P23229, K7EQA1, P02647 | G111: 164 | H111: 2839 | I111: 16663 | J111: 1.359964433 | K111: 1 | L111: 0.1371396406 | M111: 44.13128476
A112: GOTERM_BP_3 | B112: GO:0031342~negative regulation of cell killing | C112: 3 | D112: 1.714285714 | E112: 0.01174589839 | F112: Q95HL2, Q29664, A0A060VHD0, Q6PK50 | G112: 164 | H112: 17 | I112: 16663 | J112: 17.93005739 | K112: 0.9998993858 | L112: 0.05729454334 | M112: 16.5342089
A113: GOTERM_BP_3 | B113: GO:0031343~positive regulation of cell killing | C113: 3 | D113: 1.714285714 | E113: 0.05315117557 | F113: Q95HL2, Q29664, A0A060VHD0, P13500 | G113: 164 | H113: 38 | I113: 16663 | J113: 8.021341463 | K113: 1 | L113: 0.1751177578 | M113: 56.63098328
A114: GOTERM_BP_3 | B114: GO:0031348~negative regulation of defense response | C114: 6 | D114: 3.428571429 | E114: 0.01770162159 | F114: Q95HL2, Q29664, A0A060VHD0, P98066, P02743, P02647, P05090 | G114: 164 | H114: 154 | I114: 16663 | J114: 3.958584099 | K114: 0.999999093 | L114: 0.07814099732 | M114: 23.90564052
A115: GOTERM_BP_3 | B115: GO:0031349~positive regulation of defense response | C115: 9 | D115: 5.142857143 | E115: 0.044269661 | F115: B5MCZ3, B5BUQ8, J3KMZ9, A8K9A9, P13500, Q8IZZ5, P02790, Q9UH51, Q9Y4K3, B4DIT7 | G115: 164 | H115: 402 | I115: 16663 | J115: 2.274708773 | K115: 1 | L115: 0.153943602 | M115: 49.97325279
A116: GOTERM_BP_3 | B116: GO:0031424~keratinization | C116: 3 | D116: 1.714285714 | E116: 0.08592481804 | F116: Q04695, P31947, P08779 | G116: 164 | H116: 50 | I116: 16663 | J116: 6.096219512 | K116: 1 | L116: 0.2450270688 | M116: 74.69744696
A117: GOTERM_BP_3 | B117: GO:0031589~cell-substrate adhesion | C117: 11 | D117: 6.285714286 | E117: 0.0008751505917 | F117: P27658, P19320, C9JPM3, A0A087WZI0, E7ERX5, Q8NBH6, A2A2V4, P23229, P02647, P00747, P05090, A0A024R5M3 | G117: 164 | H117: 306 | I117: 16663 | J117: 3.652419098 | K117: 0.4944158566 | L117: 0.007720506223 | M117: 1.330322193
A118: GOTERM_BP_3 | B118: GO:0031623~receptor internalization | C118: 5 | D118: 2.857142857 | E118: 0.008191407405 | F118: E7ERX5, G5EA09, Q6NUR7, A2A2V4, A0A024RDA5 | G118: 164 | H118: 81 | I118: 16663 | J118: 6.271830774 | K118: 0.9983506683 | L118: 0.04504999976 | M118: 11.82219847
A119: GOTERM_BP_3 | B119: GO:0032101~regulation of response to external stimulus | C119: 27 | D119: 15.42857143 | E119: 8.052557625e-09 | F119: P09341, P04003, P98066, P13671, P05090, A0A024RDA5, P00751, J3KMZ9, Q8IZZ5, P42830, P19876, Q9Y4K3, P00734, A0A060VHD0, A8K9A9, P13500, D6RF92, P13521, P02743, E5RGA1, Q9UH51, B5MCZ3, B5BUQ8, A2A2V4, P00747, P02647, P0C0L4, B4DIT7 | G119: 164 | H119: 721 | I119: 16663 | J119: 3.804852678 | K119: 6.272922737e-06 | L119: 4.825339153e-07 | M119: 1.231750238e-05
A120: GOTERM_BP_3 | B120: GO:0032102~negative regulation of response to external stimulus | C120: 10 | D120: 5.714285714 | E120: 0.001275222427 | F120: A8K9A9, P13500, P98066, Q8IZZ5, E5RGA1, P02743, P02647, P00747, P00734, P05090 | G120: 164 | H120: 267 | I120: 16663 | J120: 3.80538047 | K120: 0.6299185681 | L120: 0.01030107889 | M120: 1.93294854
A121: GOTERM_BP_3 | B121: GO:0032103~positive regulation of response to external stimulus | C121: 17 | D121: 9.714285714 | E121: 8.158023758e-09 | F121: P09341, A8K9A9, P13500, D6RF92, P13521, Q9UH51, A0A024RDA5, B5MCZ3, B5BUQ8, J3KMZ9, Q8IZZ5, A2A2V4, P42830, P19876, P00747, Q9Y4K3, P00734, B4DIT7 | G121: 164 | H121: 267 | I121: 16663 | J121: 6.469146798 | K121: 6.355080382e-06 | L121: 4.236732819e-07 | M121: 1.247882753e-05
A122: GOTERM_BP_3 | B122: GO:0032388~positive regulation of intracellular transport | C122: 7 | D122: 4 | E122: 0.06399966913 | F122: B5MCZ3, B5BUQ8, P13500, Q6NUR7, P31947, K7EQA1, Q6PK50 | G122: 164 | H122: 288 | I122: 16663 | J122: 2.469533367 | K122: 1 | L122: 0.1968752622 | M122: 63.63976861
A123: GOTERM_BP_3 | B123: GO:0032880~regulation of protein localization | C123: 23 | D123: 13.14285714 | E123: 0.0001751375332 | F123: C9JPM3, A8K3T7, P13500, B4DJF2, Q6NUR7, P31947, H0YAB0, V9GYM3, P80108, P61981, P05090, Q6PK50, B3KP42, B5MCZ3, B5BUQ8, E9PKE3, E7ERX5, Q8NBH6, A2A2V4, P02647, P00734, Q9Y4K3, K7EQA1 | G123: 164 | H123: 962 | I123: 16663 | J123: 2.429193499 | K123: 0.1275448995 | L123: 0.001893262277 | M123: 0.2675620092
A124: GOTERM_BP_3 | B124: GO:0032940~secretion by cell | C124: 29 | D124: 16.57142857 | E124: 2.089245076e-07 | F124: Q6NUR7, G5EA09, P17813, A0A024R6I7, P40222, B2MUX6, O00391, Q8NBH6, G3V3A0, Q9Y4K3, V9HWD8, P02763, F5GY03, C9JB55, P02787, C9JPM3, A8K3T7, F8WBC0, A0A087WWT3, P19652, P13521, V9GYM3, P80108, B5MCZ3, P10721, B5BUQ8, E9PKE3, A2A2V4, P00747, P02647 | G124: 164 | H124: 966 | I124: 16663 | J124: 3.050213352 | K124: 0.000162738965 | L124: 6.510067146e-06 | M124: 0.0003195785175
A125: GOTERM_BP_3 | B125: GO:0032989~cellular component morphogenesis | C125: 22 | D125: 12.57142857 | E125: 0.01847722648 | F125: A8K3H6, P13500, P17813, Q6NUR7, G5EA09, A0A0A0MSC8, H0YKP3, Q7Z3T9, O14950, B5MCZ3, Q9UG85, P10721, E7ERX5, Q8NBH6, Q86XU5, A0A024R321, A2A2V4, Q5NKV8, P02647, P00734, A0A024R5M3, L8B567 | G125: 164 | H125: 1321 | I125: 16663 | J125: 1.692112406 | K125: 0.9999995098 | L125: 0.08054960515 | M125: 24.81951991
A126: GOTERM_BP_3 | B126: GO:0033002~muscle cell proliferation | C126: 5 | D126: 2.857142857 | E126: 0.06559799938 | F126: B5MCZ3, H0YKP3, Q9Y4K3, P05090, B4DIT7 | G126: 164 | H126: 155 | I126: 16663 | J126: 3.277537372 | K126: 1 | L126: 0.1998952842 | M126: 64.57800574
A127: GOTERM_BP_3 | B127: GO:0033627~cell adhesion mediated by integrin | C127: 4 | D127: 2.285714286 | E127: 0.009074086635 | F127: C9JPM3, E7ERX5, Q5NKV8, P23229 | G127: 164 | H127: 44 | I127: 16663 | J127: 9.236696231 | K127: 0.9991757032 | L127: 0.04844444007 | M127: 13.01498416
A128: GOTERM_BP_3 | B128: GO:0034369~plasma lipoprotein particle remodeling | C128: 3 | D128: 1.714285714 | E128: 0.02279731547 | F128: P02656, V9GYM3, P02647 | G128: 164 | H128: 24 | I128: 16663 | J128: 12.70045732 | K128: 0.9999999842 | L128: 0.09448579507 | M128: 29.72491818
A129: GOTERM_BP_3 | B129: GO:0034377~plasma lipoprotein particle assembly | C129: 3 | D129: 1.714285714 | E129: 0.01458133603 | F129: P02656, V9GYM3, P02647 | G129: 164 | H129: 19 | I129: 16663 | J129: 16.04268293 | K129: 0.9999892702 | L129: 0.06699844777 | M129: 20.12312923
A130: GOTERM_BP_3 | B130: GO:0034381~plasma lipoprotein particle clearance | C130: 5 | D130: 2.857142857 | E130: 0.0002563033746 | F130: J3KMZ9, P02656, V9GYM3, Q9UH51, P02647, P80108 | G130: 164 | H130: 32 | I130: 16663 | J130: 15.87557165 | K130: 0.1810120596 | L130: 0.002694820812 | M130: 0.3913340747
A131: GOTERM_BP_3 | B131: GO:0035234~ectopic germ cell programmed cell death | C131: 2 | D131: 1.142857143 | E131: 0.075645015 | F131: P10721, B5BUQ8 | G131: 164 | H131: 8 | I131: 16663 | J131: 25.40091463 | K131: 1 | L131: 0.2220778642 | M131: 69.97680516
A132: GOTERM_BP_3 | B132: GO:0035821~modification of morphology or physiology of other organism | C132: 5 | D132: 2.857142857 | E132: 0.02427075881 | F132: U5LGW0, E9PKE3, A0A087WWT3, Q8NBH6, P02743 | G132: 164 | H132: 112 | I132: 16663 | J132: 4.535877613 | K132: 0.9999999951 | L132: 0.09930713094 | M132: 31.32840043
A133: GOTERM_BP_3 | B133: GO:0035966~response to topologically incorrect protein | C133: 7 | D133: 4 | E133: 0.01051929505 | F133: E9PKE3, P13500, E9PK86, H0YAB0, Q8IZZ5, P50454, Q6PK50, A0A024RDA5 | G133: 164 | H133: 188 | I133: 16663 | J133: 3.783114946 | K133: 0.9997355705 | L133: 0.05343872541 | M133: 14.9354237
A134: GOTERM_BP_3 | B134: GO:0040017~positive regulation of locomotion | C134: 20 | D134: 11.42857143 | E134: 3.248276281e-08 | F134: F5GY03, P09341, C9JPM3, P13500, G5EA09, P98066, D6RF92, P13521, P80108, Q7Z3T9, A0A024RDA5, P10721, B5MCZ3, O60687, Q8NBH6, A2A2V4, Q5NKV8, P42830, P19876, P23229 | G134: 164 | H134: 422 | I134: 16663 | J134: 4.815339267 | K134: 2.53037525e-05 | L134: 1.405780825e-06 | M134: 4.968687684e-05
A135: GOTERM_BP_3 | B135: GO:0042127~regulation of cell proliferation | C135: 40 | D135: 22.85714286 | E135: 2.645387163e-08 | F135: P02750, P09341, P25311, G5EA09, P17813, Q59GA2, P31947, H0YKP3, P05090, A0A024RDA5, B2MUX6, O00391, E7ERX5, Q8NBH6, P19876, P42830, P02538, P00734, Q9Y4K3, L8B567, F5GY03, P19320, C9J7B5, A0A060VHD0, P13500, A0A0A0MSC8, H0YAB0, D6RF92, P13521, P80108, Q7Z3T9, Q9NQ30, B5MCZ3, P10721, B5BUQ8, K7ENJ4, A2A2V4, P00747, K7EQA1, B4DIT7 | G135: 164 | H135: 1552 | I135: 16663 | J135: 2.618650993 | K135: 2.060735395e-05 | L135: 1.212209047e-06 | M135: 4.046485598e-05
A136: GOTERM_BP_3 | B136: GO:0042330~taxis | C136: 19 | D136: 10.85714286 | E136: 8.111554811e-06 | F136: P19320, P09341, A8K3H6, P13500, Q6NUR7, A0A0A0MSC8, P17813, D6RF92, P13521, Q7Z3T9, A0A024RDA5, P10721, B5MCZ3, B5BUQ8, A2A2V4, P42830, P19876, P02647, L8B567 | G136: 164 | H136: 553 | I136: 16663 | J136: 3.490903277 | K136: 0.006299004392 | L136: 0.0001579606935 | M136: 0.01240702807
A137: GOTERM_BP_3 | B137: GO:0042493~response to drug | C137: 11 | D137: 6.285714286 | E137: 0.00728212949 | F137: B5MCZ3, B5BUQ8, F8WBC0, P13929, P13500, Q5NKV8, V9GYM3, P02647, P80108, P05090, Q6PK50 | G137: 164 | H137: 411 | I137: 16663 | J137: 2.719319328 | K137: 0.9966323316 | L137: 0.04100002042 | M137: 10.57749697
A138: GOTERM_BP_3 | B138: GO:0042592~homeostatic process | C138: 30 | D138: 17.14285714 | E138: 0.001256527217 | F138: P25311, P31947, O00391, J3KMZ9, P02656, Q5NKV8, G3V3A0, P00734, Q9Y4K3, A0A087X130, C9JB55, P02787, C9J7B5, P16860, P13500, A0A087WWT3, P08779, Q4VXY6, V9GYM3, Q9UH51, E9PFZ2, P80108, D6RHJ6, B5MCZ3, P10721, B5BUQ8, P80297, A2A2V4, P02790, P01036, P02647, B4DIT7 | G138: 164 | H138: 1645 | I138: 16663 | J138: 1.852954259 | K138: 0.6244824924 | L138: 0.01025703605 | M138: 1.904864823
A139: GOTERM_BP_3 | B139: GO:0042698~ovulation cycle | C139: 4 | D139: 2.285714286 | E139: 0.08386552748 | F139: P10721, A0A0A0MSC8, A2A2V4, Q5NKV8 | G139: 164 | H139: 105 | I139: 16663 | J139: 3.870615563 | K139: 1 | L139: 0.2413783221 | M139: 73.81131944
A140: GOTERM_BP_3 | B140: GO:0043062~extracellular structure organization | C140: 19 | D140: 10.85714286 | E140: 5.065970548e-09 | F140: P27658, F5GY03, E9PF17, P19320, A0A024RAB6, E9KL36, Q5PR22, A8K9A9, P17813, E9PK86, P50454, Q4VXY6, Q6PK50, Q9UG85, A0A087WZI0, E9PKE3, E7ERX5, Q8NBH6, Q5NKV8, P23229, P00747 | G140: 164 | H140: 335 | I140: 16663 | J140: 5.762595559 | K140: 3.946383267e-06 | L140: 3.288658671e-07 | M140: 7.749103881e-06
A141: GOTERM_BP_3 | B141: GO:0043170~macromolecule metabolic process | C141: 104 | D141: 59.42857143 | E141: 0.01795487647 | F141: E9PF17, I3L195, A0A024R6I7, P06313, P04220, E7ERX5, Q5NKV8, Q9BXX3, B1AKG0, A8K3T7, F8WBC0, P13500, P01603, P02747, P02743, Q9UH51, P80108, B5MCZ3, E9PKE3, G3V543, P02647, E9PNL9, Q04695, G5EA09, P13671, H7BXY6, A0A024RDA5, Q92988, P02656, Q13219, C9J7B5, P01861, U5LGW0, A0A087WWT3, A0A024R4H0, J3QT41, P50454, Q4VXY6, Q8IZN1, B3KP42, B5BUQ8, A0A087WZI0, P27169, Q86XU5, A2A2V4, P0C0L4, K7EQA1, E9KL36, Q9NZP8, P17813, E9PK86, P31947, P80748, B4DJQ5, B2MUX6, J3KMZ9, Q8NBH6, P01859, G3V3A0, P00734, A0A087X130, A0A024RAB6, Q53FS6, B4DJF2, A0A087WYJ9, Q96T58, V9GYM3, Q6PK50, P02790, P01036, P00747, P33908, B4DIT7, P27658, Q6NW40, Q6IS14, P04003, P25311, Q6NUR7, P61981, P05090, K7EJ43, P00751, C9JT76, P01779, Q09666, A0A087WWY0, Q8IZZ5, Q9Y4K3, P02760, L8B567, C9JPM3, Q5PR22, P0CF74, A8K9A9, A0A0A0MSC8, H0YAB0, P13521, E5RGA1, D6RA26, P10721, P26641, A0A024RDN3, P04206, P01623, Q7L7L0, P06318, A4D2D2, P23229 | G141: 164 | H141: 9130 | I141: 16663 | J141: 1.157369166 | K141: 0.999999258 | L141: 0.07878127208 | M141: 24.20518098
A142: GOTERM_BP_3 | B142: GO:0043207~response to external biotic stimulus | C142: 27 | D142: 15.42857143 | E142: 1.324623671e-07 | F142: P09341, Q95HL2, A0A024RDA5, P04220, C9JT76, P01859, P01779, P00738, Q5NKV8, P42830, P19876, Q9Y4K3, A0A087X130, F5GY03, P19320, C9JPM3, P01861, A8K3T7, Q29664, A0A060VHD0, P0CF74, P13500, A0A087WYJ9, D6RF92, Q16778, B5MCZ3, D6RHJ6, P26641, B5BUQ8 | G142: 164 | H142: 829 | I142: 16663 | J142: 3.309166201 | K142: 0.0001031828671 | L142: 4.690361309e-06 | M142: 0.0002026193601
A143: GOTERM_BP_3 | B143: GO:0044057~regulation of system process | C143: 10 | D143: 5.714285714 | E143: 0.05976358059 | F143: B5MCZ3, B5BUQ8, I3L195, P16860, B4DJF2, Q5NKV8, H0YKP3, V9GYM3, P02647, A0A024R5M3 | G143: 164 | H143: 504 | I143: 16663 | J143: 2.015945606 | K143: 1 | L143: 0.1891149603 | M143: 61.03955787
A144: GOTERM_BP_3 | B144: GO:0044089~positive regulation of cellular component biogenesis | C144: 10 | D144: 5.714285714 | E144: 0.02960842381 | F144: D6RHJ6, P10721, O60687, G5EA09, A2A2V4, Q5NKV8, H0YKP3, P02647, A0A024R5M3, B3KP42 | G144: 164 | H144: 441 | I144: 16663 | J144: 2.303937835 | K144: 0.9999999999 | L144: 0.1131401177 | M144: 36.85535235
A145: GOTERM_BP_3 | B145: GO:0044092~negative regulation of molecular function | C145: 21 | D145: 12 | E145: 0.005406335031 | F145: B4DJF2, P17813, E9PK86, P31947, A6NMY6, P50454, P02743, V9GYM3, P61981, A0A024R6I7, B5MCZ3, B5BUQ8, C9JT76, A0A087WWY0, P00738, A2A2V4, P02656, G3V3A0, P02647, P0C0L4, P01036, P02760 | G145: 164 | H145: 1100 | I145: 16663 | J145: 1.939706208 | K145: 0.985344809 | L145: 0.0332193892 | M145: 7.957682536
A146: GOTERM_BP_3 | B146: GO:0044236~multicellular organism metabolic process | C146: 9 | D146: 5.142857143 | E146: 4.911134315e-05 | F146: B5MCZ3, P27658, A0A087WZI0, Q5PR22, E7ERX5, P13500, P17813, E9PK86, Q4VXY6, P50454, P00734 | G146: 164 | H146: 133 | I146: 16663 | J146: 6.87543554 | K146: 0.03753605744 | L146: 0.0006829573176 | M146: 0.0750962404
A147: GOTERM_BP_3 | B147: GO:0044246~regulation of multicellular organismal metabolic process | C147: 5 | D147: 2.857142857 | E147: 0.0004531800447 | F147: B5MCZ3, E7ERX5, P13500, P17813, P00734 | G147: 164 | H147: 37 | I147: 16663 | J147: 13.73022413 | K147: 0.297498169 | L147: 0.004459737999 | M147: 0.6909606303
A148: GOTERM_BP_3 | B148: GO:0044253~positive regulation of multicellular organismal metabolic process | C148: 3 | D148: 1.714285714 | E148: 0.02279731547 | F148: P13500, P17813, P00734 | G148: 164 | H148: 24 | I148: 16663 | J148: 12.70045732 | K148: 0.9999999842 | L148: 0.09448579507 | M148: 29.72491818
A149: GOTERM_BP_3 | B149: GO:0044403~symbiosis, encompassing mutualism through parasitism | C149: 20 | D149: 11.42857143 | E149: 0.004108020155 | F149: P19320, Q95HL2, Q29664, A0A060VHD0, A0A087WWT3, P13500, B4DJF2, Q96T58, P02743, Q9UH51, V9GYM3, Q6PK50, A0A024RDA5, B5MCZ3, P26641, E9PKE3, E7ERX5, J3KMZ9, Q8NBH6, Q5NKV8, P02790, P02760 | G149: 164 | H149: 998 | I149: 16663 | J149: 2.036145462 | K149: 0.9595115647 | L149: 0.02726569392 | M149: 6.102581
A150: GOTERM_BP_3 | B150: GO:0044650~adhesion of symbiont to host cell | C150: 2 | D150: 1.142857143 | E150: 0.08469153932 | F150: Q5NKV8, Q6PK50 | G150: 164 | H150: 9 | I150: 16663 | J150: 22.57859079 | K150: 1 | L150: 0.2426816403 | M150: 74.17018571
A151: GOTERM_BP_3 | B151: GO:0044765~single-organism transport | C151: 69 | D151: 39.42857143 | E151: 5.172649269e-10 | F151: E9KL36, P17813, P80748, A0A024R6I7, P06313, P04220, B2MUX6, O00391, E7ERX5, J3KMZ9, P01859, Q8NBH6, Q5NKV8, G3V3A0, P00734, A0A087X130, V9HWD8, P02787, A8K3T7, F8WBC0, P13500, B4DJF2, A0A087WYJ9, P01603, P19652, Q9UH51, V9GYM3, P80108, Q6PK50, O14950, B5MCZ3, E9PKE3, P02790, D6RIZ6, P02647, P00747, B4DIT7, P04003, P25311, Q6NUR7, G5EA09, P05090, P40222, A0A024RDA5, Q09666, P01779, A0A087WWY0, P02656, Q9Y4K3, P02763, F5GY03, C9JB55, P01861, C9JPM3, U5LGW0, P16860, A0A087WWT3, P0CF74, H0YAB0, P13521, E9PFZ2, P10721, B5BUQ8, C8C504, P27169, P04206, P01623, Q86XU5, K7ENJ4, A2A2V4, P06318, Q9UK54, P0C0L4, K7EQA1 | G151: 164 | H151: 3415 | I151: 16663 | J151: 2.052899689 | K151: 4.029492742e-07 | L151: 4.477214954e-08 | M151: 7.912283606e-07
A152: GOTERM_BP_3 | B152: GO:0045087~innate immune response | C152: 26 | D152: 14.85714286 | E152: 5.782541317e-07 | F152: Q95HL2, P04003, Q9NZP8, P13671, P04220, P00751, P01859, P01779, Q8IZZ5, Q5NKV8, Q9Y4K3, A0A087X130, P19320, P01861, U5LGW0, Q29664, A0A060VHD0, P0CF74, P13500, P02747, A0A087WYJ9, P08779, P02743, Q16778, Q6PK50, D6RHJ6, P02790, P0C0L4 | G152: 164 | H152: 836 | I152: 16663 | J152: 3.159922395 | K152: 0.0004503586569 | L152: 1.668356819e-05 | M152: 0.0008845161939
A153: GOTERM_BP_3 | B153: GO:0045103~intermediate filament-based process | C153: 3 | D153: 1.714285714 | E153: 0.06616561107 | F153: Q04695, P08779, P02538 | G153: 164 | H153: 43 | I153: 16663 | J153: 7.08862734 | K153: 1 | L153: 0.2007364387 | M153: 64.90571943
A154: GOTERM_BP_3 | B154: GO:0045123~cellular extravasation | C154: 4 | D154: 2.285714286 | E154: 0.009653510013 | F154: P19320, E7ERX5, P13500, Q5NKV8 | G154: 164 | H154: 45 | I154: 16663 | J154: 9.031436314 | K154: 0.9994773598 | L154: 0.04977665724 | M154: 13.78975592
A155: GOTERM_BP_3 | B155: GO:0045184~establishment of protein localization | C155: 33 | D155: 18.85714286 | E155: 0.003865305924 | F155: Q6IS14, P25311, Q6NUR7, G5EA09, P31947, A0A024RDW5, P61981, P05090, H7BXY6, Q96JC1, E7ERX5, Q8NBH6, Q9Y4K3, C9JB55, C9J7B5, P02787, C9JPM3, A8K3T7, P13500, B4DJF2, H0YAB0, P13521, V9GYM3, P80108, Q6PK50, O14950, B3KP42, B5MCZ3, B5BUQ8, E9PKE3, Q86XU5, K7EQA1, P02647, A0A024R5M3 | G155: 164 | H155: 2021 | I155: 16663 | J155: 1.659040441 | K155: 0.9510476407 | L155: 0.02611699707 | M155: 5.751924209
A156: GOTERM_BP_3 | B156: GO:0045595~regulation of cell differentiation | C156: 23 | D156: 13.14285714 | E156: 0.04674974551 | F156: Q95HL2, Q5PR22, Q29664, P17813, A0A0A0MSC8, P02747, G5EA09, P31947, Q96T58, P02743, P61981, B4DJQ5, Q6PK50, B5MCZ3, P10721, B5BUQ8, E7ERX5, Q8NBH6, A2A2V4, P02647, P00734, Q9Y4K3, A0A024R5M3, L8B567 | G156: 164 | H156: 1544 | I156: 16663 | J156: 1.513526002 | K156: 1 | L156: 0.15858514 | M156: 51.92257822
A157: GOTERM_BP_3 | B157: GO:0045785~positive regulation of cell adhesion | C157: 15 | D157: 8.571428571 | E157: 2.608850996e-05 | F157: P27658, P19320, C9JPM3, A0A060VHD0, P13500, H0YKP3, B5MCZ3, B5BUQ8, B2MUX6, A0A087WZI0, Q8NBH6, A2A2V4, P23229, P02647, Q9Y4K3, B4DIT7 | G157: 164 | H157: 385 | I157: 16663 | J157: 3.958584099 | K157: 0.02011808978 | L157: 0.0003984150108 | M157: 0.03989855124
A158: GOTERM_BP_3 | B158: GO:0045807~positive regulation of endocytosis | C158: 5 | D158: 2.857142857 | E158: 0.02497562411 | F158: C9JB55, B5BUQ8, P02787, P13500, A2A2V4, P0C0L4 | G158: 164 | H158: 113 | I158: 16663 | J158: 4.495737103 | K158: 0.9999999972 | L158: 0.1010278526 | M158: 32.08332154
A159: GOTERM_BP_3 | B159: GO:0045833~negative regulation of lipid metabolic process | C159: 5 | D159: 2.857142857 | E159: 0.008912996441 | F159: B5BUQ8, P02656, V9GYM3, P80108, P05090 | G159: 164 | H159: 83 | I159: 16663 | J159: 6.120702321 | K159: 0.9990644274 | L159: 0.04792851094 | M159: 12.79843029
A160: GOTERM_BP_3 | B160: GO:0045834~positive regulation of lipid metabolic process | C160: 7 | D160: 4 | E160: 0.001498019795 | F160: P10721, B5BUQ8, J3KMZ9, V9GYM3, Q9UH51, P02647, P00734, P80108 | G160: 164 | H160: 126 | I160: 16663 | J160: 5.644647696 | K160: 0.6889595642 | L160: 0.01161039663 | M160: 2.26705416
A161: GOTERM_BP_3 | B161: GO:0045927~positive regulation of growth | C161: 7 | D161: 4 | E161: 0.03413318106 | F161: Q04695, G5EA09, Q6NUR7, Q59GA2, P31947, A2A2V4, P00734 | G161: 164 | H161: 246 | I161: 16663 | J161: 2.891161015 | K161: 1 | L161: 0.127713264 | M161: 41.21204117
A162: GOTERM_BP_3 | B162: GO:0046649~lymphocyte activation | C162: 20 | D162: 11.42857143 | E162: 1.753430609e-05 | F162: P19320, P01861, A0A060VHD0, P13500, P0CF74, A0A087WYJ9, Q59GA2, P40222, B5MCZ3, P10721, B5BUQ8, B2MUX6, P04220, E7ERX5, P01859, P01779, Q86XU5, Q5NKV8, Q9Y4K3, A0A087X130, L8B567 | G162: 164 | H162: 643 | I162: 16663 | J162: 3.160300421 | K162: 0.01356647867 | L162: 0.0003034949183 | M162: 0.02681779025
A163: GOTERM_BP_3 | B163: GO:0046677~response to antibiotic | C163: 3 | D163: 1.714285714 | E163: 0.06348421632 | F163: B5MCZ3, P13500, Q16853 | G163: 164 | H163: 42 | I163: 16663 | J163: 7.257404181 | K163: 1 | L163: 0.1961554573 | M163: 63.33227309
A164: GOTERM_BP_3 | B164: GO:0048468~cell development | C164: 33 | D164: 18.85714286 | E164: 0.002559173493 | F164: A8K3H6, Q6NUR7, G5EA09, P17813, P31947, E9PK86, Q59GA2, H0YKP3, P61981, P05090, B4DJQ5, Q9UG85, E7ERX5, Q8NBH6, A0A024R321, Q5NKV8, Q59H94, P00734, Q9Y4K3, L8B567, F8WBC0, A0A0A0MSC8, Q96T58, H0YAB0, P50454, Q7Z3T9, B5MCZ3, P10721, B5BUQ8, Q86XU5, P80297, A2A2V4, P02647, A0A024R5M3 | G164: 164 | H164: 1968 | I164: 16663 | J164: 1.703719884 | K164: 0.8641428742 | L164: 0.01831312317 | M164: 3.843804714
A165: GOTERM_BP_3 | B165: GO:0048513~animal organ development | C165: 45 | D165: 25.71428571 | E165: 0.006200509059 | F165: P27658, A8K3H6, Q95HL2, Q04695, Q6NUR7, G5EA09, P17813, Q59GA2, P31947, E9PK86, H0YKP3, B4DJQ5, P05090, A0A024RDA5, Q9UG85, P13929, E7ERX5, A0A024R321, Q5NKV8, Q9Y4K3, L8B567, F5GY03, P19320, C9JPM3, Q5PR22, Q29664, P13500, B4DJF2, P02747, A0A0A0MSC8, H0YAB0, P08779, P50454, Q4VXY6, P02743, V9GYM3, P80108, Q6PK50, Q7Z3T9, C9JD84, B5MCZ3, P10721, A0A087WZI0, Q86XU5, A2A2V4, P23229, P02647, B4DIT7 | G165: 164 | H165: 3129 | I165: 16663 | J165: 1.461222318 | K165: 0.9921342201 | L165: 0.03686332432 | M165: 9.075495709
A166: GOTERM_BP_3 | B166: GO:0048514~blood vessel morphogenesis | C166: 19 | D166: 10.85714286 | E166: 1.54979415e-06 | F166: P27658, F5GY03, P02750, A0A024RAB6, P16860, P13500, P17813, P13521, P13671, P80108, Q7Z3T9, P05090, A0A024RDA5, Q9NQ30, B5BUQ8, A0A087WZI0, O60687, E7ERX5, Q86XU5, A2A2V4 | G166: 164 | H166: 491 | I166: 16663 | J166: 3.931709801 | K166: 0.001206562097 | L166: 4.024220955e-05 | M166: 0.002370598718
A167: GOTERM_BP_3 | B167: GO:0048522~positive regulation of cellular process | C167: 76 | D167: 43.42857143 | E167: 1.323015515e-06 | F167: P17813, F6RFD5, Q59GA2, P31947, P04220, B2MUX6, E7ERX5, J3KMZ9, P01859, Q8NBH6, P00738, Q5NKV8, P42830, P02538, P00734, A0A087X130, P02787, A8K3T7, F8WBC0, A0A060VHD0, P13500, B4DJF2, A0A087WYJ9, Q96T58, Q9UH51, V9GYM3, P80108, Q6PK50, B5MCZ3, O60687, E9PKE3, P02790, P02647, G3V543, A0A024R5M3, B4DIT7, P02750, Q6NW40, Q6IS14, P09341, Q04695, Q6NUR7, G5EA09, P98066, P13671, H0YKP3, P61981, H7BXY6, A0A024RDA5, P01779, Q8IZZ5, P19876, Q9Y4K3, L8B567, F5GY03, C9JB55, P19320, P01861, C9JPM3, C9J7B5, A8K9A9, P0CF74, D6RF92, H0YAB0, P13521, D6RA26, Q7Z3T9, Q9NQ30, B3KP42, D6RHJ6, P10721, B5BUQ8, C8C504, Q86XU5, A2A2V4, Q9UK54, A4D2D2, P23229, P0C0L4, K7EQA1 | G167: 164 | H167: 4744 | I167: 16663 | J167: 1.627714597 | K167: 0.001030098852 | L167: 3.553832602e-05 | M167: 0.002023716484
A168: GOTERM_BP_3 | B168: GO:0048523~negative regulation of cellular process | C168: 66 | D168: 37.71428571 | E168: 5.461370829e-05 | F168: P17813, P31947, E9PK86, A0A024R6I7, B4DJQ5, O00391, E7ERX5, Q8NBH6, P00738, Q5NKV8, G3V3A0, P00734, Q53FS6, F8WBC0, P13500, B4DJF2, P02747, Q96T58, P08779, P02743, V9GYM3, P80108, Q6PK50, B5MCZ3, E9PKE3, P02647, P01036, P00747, A0A024R5M3, B4DIT7, P09341, P04003, P25311, Q6NUR7, G5EA09, H0YKP3, P61981, P05090, Q92988, A0A024RDA5, K7EJ43, C9JT76, A0A087WWY0, P02656, Q9Y4K3, P02760, L8B567, F5GY03, Q5PR22, P16860, A0A087WWT3, A0A0A0MSC8, H0YAB0, P13521, E5RGA1, P50454, P10721, C9JD84, B5BUQ8, P27169, Q86XU5, K7ENJ4, Q7L7L0, A2A2V4, P23229, P0C0L4, K7EQA1 | G168: 164 | H168: 4300 | I168: 16663 | J168: 1.559498015 | K168: 0.0416528916 | L168: 0.0007332696563 | M168: 0.08350663225
A169: GOTERM_BP_3 | B169: GO:0048584~positive regulation of response to stimulus | C169: 57 | D169: 32.57142857 | E169: 1.248836459e-13 | F169: Q95HL2, P17813, Q9NZP8, P31947, P80748, P06313, P04220, B2MUX6, J3KMZ9, P01859, Q5NKV8, P42830, B1AKG0, P00734, A0A087X130, Q29664, F8WBC0, A0A060VHD0, P13500, B4DJF2, A0A087WYJ9, P01603, P02747, Q9UH51, P80108, Q6PK50, B5MCZ3, P02790, P00747, P02647, B4DIT7, P02750, P09341, P04003, G5EA09, Q6NUR7, P13671, P61981, H7BXY6, A0A024RDA5, P00751, P01779, Q8IZZ5, P19876, Q9Y4K3, P01861, C9JPM3, A8K9A9, P0CF74, D6RF92, P13521, Q9NQ30, B3KP42, P10721, B5BUQ8, P01623, P04206, A2A2V4, P06318, P0C0L4, K7EQA1 | G169: 164 | H169: 2030 | I169: 16663 | J169: 2.852910609 | K169: 9.729717032e-11 | L169: 1.945943406e-11 | M169: 1.910471781e-10
A170: GOTERM_BP_3 | B170: GO:0048585~negative regulation of response to stimulus | C170: 30 | D170: 17.14285714 | E170: 5.820115518e-05 | F170: Q95HL2, P04003, P17813, P98066, Q6NUR7, P05090, A0A024RDA5, E7ERX5, Q8NBH6, Q8IZZ5, Q5NKV8, P00734, P02760, Q53FS6, Q29664, A0A060VHD0, A8K9A9, P13500, A0A0A0MSC8, H0YAB0, P13521, P02743, E5RGA1, V9GYM3, B5MCZ3, C9JD84, B5BUQ8, P23229, P00747, P02647, A0A024R5M3 | G170: 164 | H170: 1369 | I170: 16663 | J170: 2.226522831 | K170: 0.04432752052 | L170: 0.0007553815442 | M170: 0.08898970598
A171: GOTERM_BP_3 | B171: GO:0048646~anatomical structure formation involved in morphogenesis | C171: 26 | D171: 14.85714286 | E171: 0.0001371572692 | F171: P02750, P27658, P17813, P13671, H0YKP3, P05090, A0A024RDA5, E7ERX5, Q9Y4K3, F5GY03, A0A024RAB6, C9JPM3, Q5PR22, P16860, P13500, P13521, P80108, Q7Z3T9, Q9NQ30, B5BUQ8, A0A087WZI0, O60687, Q86XU5, A2A2V4, P23229, B4DIT7, E9PNL9 | G171: 164 | H171: 1151 | I171: 16663 | J171: 2.295130427 | K171: 0.1013420908 | L171: 0.001525304691 | M171: 0.2095954859
A172: GOTERM_BP_3 | B172: GO:0048729~tissue morphogenesis | C172: 15 | D172: 8.571428571 | E172: 0.003216154512 | F172: A8K3H6, Q04695, P17813, Q6NUR7, H0YKP3, P08779, Q7Z3T9, Q9UG85, B5MCZ3, E7ERX5, A2A2V4, P02538, Q9Y4K3, E9PNL9, B4DIT7 | G172: 164 | H172: 622 | I172: 16663 | J172: 2.450249 | K172: 0.918684764 | L172: 0.02215641225 | M172: 4.808051433
A173: GOTERM_BP_3 | B173: GO:0048731~system development | C173: 61 | D173: 34.85714286 | E173: 0.001138692743 | F173: E9PF17, A8K3H6, Q95HL2, P17813, Q59GA2, P31947, E9PK86, B4DJQ5, Q9UG85, B2MUX6, E7ERX5, A0A024R321, Q5NKV8, P00734, A0A024RAB6, Q29664, P13500, B4DJF2, P02747, Q96T58, P08779, P02743, V9GYM3, P80108, Q6PK50, B5MCZ3, O60687, P02647, A0A024R5M3, B4DIT7, P02750, P27658, P09341, Q04695, Q6NUR7, G5EA09, P13671, H0YKP3, P61981, P05090, A0A024RDA5, P13929, Q9Y4K3, L8B567, F5GY03, P19320, C9JPM3, Q5PR22, P16860, A0A0A0MSC8, H0YAB0, P13521, Q4VXY6, P50454, Q7Z3T9, Q9NQ30, P10721, C9JD84, B5BUQ8, A0A087WZI0, Q86XU5, P80297, A2A2V4, P23229 | G173: 164 | H173: 4291 | I173: 16663 | J173: 1.444377341 | K173: 0.5883356987 | L173: 0.009498121988 | M173: 1.72768224
A174: GOTERM_BP_3 | B174: GO:0048869~cellular developmental process | C174: 56 | D174: 32 | E174: 0.002914677685 | F174: E9PF17, A8K3H6, Q95HL2, P17813, Q59GA2, P31947, E9PK86, B4DJQ5, Q9UG85, E7ERX5, Q8NBH6, A0A024R321, Q5NKV8, Q59H94, P02538, P00734, X6RJP6, Q29664, F8WBC0, P13500, B4DJF2, P02747, Q96T58, P08779, P02743, P80108, Q6PK50, O14950, B5MCZ3, P02647, A0A024R5M3, E9PNL9, P02750, P27658, L0R849, Q04695, Q6NUR7, G5EA09, H0YKP3, P61981, P05090, Q9Y4K3, L8B567, P19320, C9JPM3, Q5PR22, A0A0A0MSC8, H0YAB0, Q4VXY6, P50454, Q8IZN1, Q7Z3T9, P10721, B5BUQ8, A0A087WZI0, Q86XU5, P80297, A2A2V4, P23229 | G174: 164 | H174: 3992 | I174: 16663 | J174: 1.425301823 | K174: 0.8970847348 | L174: 0.02045916933 | M174: 4.366703421
A175: GOTERM_BP_3 | B175: GO:0048870~cell motility | C175: 36 | D175: 20.57142857 | E175: 5.287041485e-08 | F175: E9PF17, P09341, P98066, G5EA09, P17813, H0YKP3, P05090, A0A024RDA5, E7ERX5, Q8NBH6, Q5NKV8, P19876, P42830, P00734, F5GY03, P19320, C9JPM3, P13500, B4DJF2, A0A0A0MSC8, H0YAB0, D6RF92, P13521, P08779, E5RGA1, P80108, Q7Z3T9, B5MCZ3, P10721, B5BUQ8, O60687, Q86XU5, A2A2V4, P23229, P02647, A0A024R5M3 | G175: 164 | H175: 1330 | I175: 16663 | J175: 2.750174216 | K175: 4.11852061e-05 | L175: 2.167684716e-06 | M175: 8.087259763e-05
A176: GOTERM_BP_3 | B176: GO:0048871~multicellular organismal homeostasis | C176: 14 | D176: 8 | E176: 1.462932204e-05 | F176: C9JB55, P02787, P25311, A0A087WWT3, P31947, Q4VXY6, P08779, D6RHJ6, B5MCZ3, B5BUQ8, A2A2V4, G3V3A0, Q9Y4K3, P01036, A0A087X130 | G176: 164 | H176: 317 | I176: 16663 | J176: 4.487227822 | K176: 0.0113316331 | L176: 0.000258973852 | M176: 0.02237523598
A177: GOTERM_BP_3 | B177: GO:0050673~epithelial cell proliferation | C177: 14 | D177: 8 | E177: 3.763969052e-05 | F177: F5GY03, P27658, P02750, P13500, P17813, P31947, P13521, Q7Z3T9, P10721, B5MCZ3, A0A087WZI0, K7ENJ4, A2A2V4, P02647, L8B567 | G177: 164 | H177: 347 | I177: 16663 | J177: 4.099283053 | K177: 0.02889615577 | L177: 0.00054285021 | M177: 0.0575596358
A178: GOTERM_BP_3 | B178: GO:0050776~regulation of immune response | C178: 34 | D178: 19.42857143 | E178: 5.008352397e-11 | F178: Q95HL2, P04003, Q9NZP8, Q6NUR7, P13671, P80748, P06313, P04220, P00751, E7ERX5, P01779, P01859, Q5NKV8, B1AKG0, Q9Y4K3, A0A087X130, P02760, P19320, P01861, Q29664, A0A060VHD0, P0CF74, A0A087WYJ9, P01603, P02747, V9GYM3, P80108, Q6PK50, B5MCZ3, P10721, B5BUQ8, P04206, P01623, P06318, P02790, P0C0L4, P02647 | G178: 164 | H178: 912 | I178: 16663 | J178: 3.787855691 | K178: 3.90150402e-08 | L178: 4.876880122e-09 | M178: 7.660964085e-08
A179: GOTERM_BP_3 | B179: GO:0050777~negative regulation of immune response | C179: 6 | D179: 3.428571429 | E179: 0.007212434977 | F179: Q95HL2, Q29664, P04003, A0A060VHD0, V9GYM3, P02647, P02760 | G179: 164 | H179: 123 | I179: 16663 | J179: 4.956276026 | K179: 0.9964430302 | L179: 0.04090891719 | M179: 10.48141844
A180: GOTERM_BP_3 | B180: GO:0050778~positive regulation of immune response | C180: 27 | D180: 15.42857143 | E180: 2.704453867e-09 | F180: Q95HL2, P04003, Q9NZP8, Q6NUR7, P13671, P80748, P06313, P00751, P04220, P01859, P01779, B1AKG0, Q9Y4K3, A0A087X130, P01861, Q29664, A0A060VHD0, P0CF74, P02747, P01603, A0A087WYJ9, P80108, Q6PK50, B5MCZ3, B5BUQ8, P01623, P04206, P06318, P02790, P0C0L4 | G180: 164 | H180: 684 | I180: 16663 | J180: 4.010670732 | K180: 2.106767359e-06 | L180: 1.915244887e-07 | M180: 4.136837017e-06
A181: GOTERM_BP_3 | B181: GO:0050790~regulation of catalytic activity | C181: 39 | D181: 22.28571429 | E181: 0.001094609631 | F181: P09341, P17813, Q59GA2, P31947, E9PK86, A6NMY6, H0YKP3, P61981, A0A024R6I7, B2MUX6, C9JT76, E7ERX5, Q8NBH6, A0A087WWY0, P00738, P02656, Q5NKV8, G3V3A0, P00734, Q9Y4K3, P02760, C9JPM3, P13500, B4DJF2, P02743, P50454, V9GYM3, P80108, Q6PK50, B5MCZ3, P10721, B5BUQ8, A2A2V4, A4D2D2, P23229, P0C0L4, Q16537, K7EQA1, P01036, P02647 | G181: 164 | H181: 2357 | I181: 16663 | J181: 1.681180604 | K181: 0.5739369466 | L181: 0.00923069758 | M181: 1.661319532
A182: GOTERM_BP_3 | B182: GO:0050817~coagulation | C182: 12 | D182: 6.857142857 | E182: 0.0008079360643 | F182: B5MCZ3, C9JT76, C8C504, A8K9A9, Q8NBH6, Q86XU5, Q8IZZ5, Q9UK54, E5RGA1, P00747, P00734, A0A024R6I7, O14950 | G182: 164 | H182: 358 | I182: 16663 | J182: 3.405709225 | K182: 0.4672146101 | L182: 0.007211076601 | M182: 1.228738314
A183: GOTERM_BP_3 | B183: GO:0050818~regulation of coagulation | C183: 5 | D183: 2.857142857 | E183: 0.01132290238 | F183: A8K9A9, Q8IZZ5, E5RGA1, P00747, P00734 | G183: 164 | H183: 89 | I183: 16663 | J183: 5.708070704 | K183: 0.999859578 | L183: 0.05562443079 | M183: 15.98606542
A184: GOTERM_BP_3 | B184: GO:0050819~negative regulation of coagulation | C184: 5 | D184: 2.857142857 | E184: 0.001431953957 | F184: A8K9A9, Q8IZZ5, E5RGA1, P00747, P00734 | G184: 164 | H184: 50 | I184: 16663 | J184: 10.16036585 | K184: 0.6725079707 | L184: 0.01132610148 | M184: 2.168093345
A185: GOTERM_BP_3 | B185: GO:0050820~positive regulation of coagulation | C185: 3 | D185: 1.714285714 | E185: 0.02650592195 | F185: Q8IZZ5, P00747, P00734 | G185: 164 | H185: 26 | I185: 16663 | J185: 11.72349906 | K185: 0.9999999992 | L185: 0.1048135488 | M185: 33.69567393
A186: GOTERM_BP_3 | B186: GO:0050865~regulation of cell activation | C186: 14 | D186: 8 | E186: 0.001312493889 | F186: P19320, P01861, A0A060VHD0, P0CF74, P13500, A0A087WYJ9, B5MCZ3, B5BUQ8, B2MUX6, P04220, P01859, P01779, Q9Y4K3, P00734, A0A087X130 | G186: 164 | H186: 501 | I186: 16663 | J186: 2.839223991 | K186: 0.6405227175 | L186: 0.01049203749 | M186: 1.988914856
A187: GOTERM_BP_3 | B187: GO:0050867~positive regulation of cell activation | C187: 13 | D187: 7.428571429 | E187: 7.472150078e-05 | F187: P19320, P01861, A0A060VHD0, P0CF74, P13500, A0A087WYJ9, B5MCZ3, B5BUQ8, B2MUX6, P04220, P01859, P01779, Q9Y4K3, A0A087X130 | G187: 164 | H187: 320 | I187: 16663 | J187: 4.127648628 | K187: 0.0565484095 | L187: 0.0009384339744 | M187: 0.1142358646
A188: GOTERM_BP_3 | B188: GO:0050878~regulation of body fluid levels | C188: 16 | D188: 9.142857143 | E188: 0.0001273989065 | F188: P16860, A8K9A9, P31947, E5RGA1, P08779, A0A024R6I7, O14950, B5MCZ3, C9JT76, C8C504, Q8NBH6, Q86XU5, Q8IZZ5, A2A2V4, Q9UK54, P00747, P00734 | G188: 164 | H188: 503 | I188: 16663 | J188: 3.23192552 | K188: 0.09448376317 | L188: 0.001437372807 | M188: 0.1946969207
A189: GOTERM_BP_3 | B189: GO:0050920~regulation of chemotaxis | C189: 9 | D189: 5.142857143 | E189: 0.0004941450039 | F189: B5MCZ3, P09341, P13500, D6RF92, A2A2V4, P13521, P19876, P42830, A0A024RDA5 | G189: 164 | H189: 186 | I189: 16663 | J189: 4.916306058 | K189: 0.3195725649 | L189: 0.004801362645 | M189: 0.7531992252
A190: GOTERM_BP_3 | B190: GO:0050921~positive regulation of chemotaxis | C190: 9 | D190: 5.142857143 | E190: 2.48994226e-05 | F190: B5MCZ3, P09341, P13500, D6RF92, A2A2V4, P13521, P19876, P42830, A0A024RDA5 | G190: 164 | H190: 121 | I190: 16663 | J190: 7.557296916 | K190: 0.01920998242 | L190: 0.0003878625957 | M190: 0.03808034012
A191: GOTERM_BP_3 | B191: GO:0051047~positive regulation of secretion | C191: 8 | D191: 4.571428571 | E191: 0.06021567781 | F191: B5MCZ3, B5BUQ8, C9JPM3, A8K3T7, P16860, G5EA09, Q6NUR7, P80108 | G191: 164 | H191: 355 | I191: 16663 | J191: 2.289659911 | K191: 1 | L191: 0.1889583897 | M191: 61.32512971
A192: GOTERM_BP_3 | B192: GO:0051048~negative regulation of secretion | C192: 7 | D192: 4 | E192: 0.01187816701 | F192: B5MCZ3, B5BUQ8, F8WBC0, Q8NBH6, Q6NUR7, V9GYM3, P02647 | G192: 164 | H192: 193 | I192: 16663 | J192: 3.685106786 | K192: 0.9999093483 | L192: 0.05756631251 | M192: 16.70492328
A193: GOTERM_BP_3 | B193: GO:0051049~regulation of transport | C193: 30 | D193: 17.14285714 | E193: 0.004603529914 | F193: P04003, G5EA09, Q6NUR7, P31947, P61981, P05090, Q8NBH6, Q09666, P02656, Q5NKV8, P00734, Q9Y4K3, C9JB55, C9JPM3, P02787, A8K3T7, F8WBC0, P16860, P13500, B4DJF2, V9GYM3, P80108, Q6PK50, B5MCZ3, B5BUQ8, E9PKE3, P27169, A2A2V4, P0C0L4, K7EQA1, P02647 | G193: 164 | H193: 1796 | I193: 16663 | J193: 1.697165788 | K193: 0.9725236515 | L193: 0.0297536703 | M193: 6.814676949
A194: GOTERM_BP_3 | B194: GO:0051050~positive regulation of transport | C194: 19 | D194: 10.85714286 | E194: 0.003923858613 | F194: C9JB55, C9JPM3, P02787, A8K3T7, P16860, P13500, B4DJF2, G5EA09, Q6NUR7, P31947, P80108, P61981, Q6PK50, B5MCZ3, B5BUQ8, P27169, A2A2V4, P0C0L4, P00734, K7EQA1 | G194: 164 | H194: 920 | I194: 16663 | J194: 2.098336426 | K194: 0.9532386651 | L194: 0.02628065307 | M194: 5.836628936
A195: GOTERM_BP_3 | B195: GO:0051051~negative regulation of transport | C195: 11 | D195: 6.285714286 | E195: 0.01319968144 | F195: B5MCZ3, B5BUQ8, F8WBC0, Q8NBH6, G5EA09, Q6NUR7, P02656, Q5NKV8, V9GYM3, P02647, P05090 | G195: 164 | H195: 450 | I195: 16663 | J195: 2.483644986 | K195: 0.9999680398 | L195: 0.06189666808 | M195: 18.39272919
A196: GOTERM_BP_3 | B196: GO:0051091~positive regulation of sequence-specific DNA binding transcription factor activity | C196: 7 | D196: 4 | E196: 0.02712298863 | F196: B5MCZ3, P10721, B5BUQ8, A2A2V4, Q5NKV8, Q9Y4K3, Q8IZN1 | G196: 164 | H196: 233 | I196: 16663 | J196: 3.052470428 | K196: 0.9999999995 | L196: 0.1066172564 | M196: 34.33564857
A197: GOTERM_BP_3 | B197: GO:0051094~positive regulation of developmental process | C197: 19 | D197: 10.85714286 | E197: 0.02016117327 | F197: P02750, C9JPM3, Q04695, P17813, Q6NUR7, G5EA09, P31947, H0YAB0, Q59GA2, Q96T58, P13671, A0A024RDA5, B5MCZ3, P10721, B5BUQ8, O60687, A2A2V4, P02647, Q9Y4K3 | G197: 164 | H197: 1089 | I197: 16663 | J197: 1.772699277 | K197: 0.9999998713 | L197: 0.08667460685 | M197: 26.76848331
A198: GOTERM_BP_3 | B198: GO:0051128~regulation of cellular component organization | C198: 45 | D198: 25.71428571 | E198: 8.089051442e-06 | F198: Q6IS14, Q04695, P04003, Q6NUR7, G5EA09, P17813, F6RFD5, P31947, H0YKP3, P61981, B4DJQ5, P05090, B2MUX6, E7ERX5, Q8NBH6, P02656, Q5NKV8, P00734, F5GY03, C9JB55, C9J7B5, P02787, C9JPM3, F8WBC0, P16860, P13500, B4DJF2, A0A0A0MSC8, H0YAB0, V9GYM3, Q9NQ30, O14950, B3KP42, D6RHJ6, B5MCZ3, P10721, B5BUQ8, O60687, E9PKE3, Q86XU5, A2A2V4, P0C0L4, P02647, K7EQA1, G3V543, A0A024R5M3 | G198: 164 | H198: 2323 | I198: 16663 | J198: 1.968215512 | K198: 0.006281584397 | L198: 0.0001615612183 | M198: 0.01237261003
A199: GOTERM_BP_3 | B199: GO:0051130~positive regulation of cellular component organization | C199: 28 | D199: 16 | E199: 3.053047498e-05 | F199: Q6IS14, G5EA09, P17813, Q6NUR7, F6RFD5, P31947, H0YKP3, P61981, B2MUX6, E7ERX5, Q5NKV8, C9JB55, C9JPM3, C9J7B5, P02787, B4DJF2, P13500, B3KP42, D6RHJ6, P10721, B5MCZ3, B5BUQ8, O60687, A2A2V4, P0C0L4, G3V543, K7EQA1, P02647, A0A024R5M3 | G199: 164 | H199: 1183 | I199: 16663 | J199: 2.40482032 | K199: 0.02350300216 | L199: 0.0004572724013 | M199: 0.04669040307
A200: GOTERM_BP_3 | B200: GO:0051204~protein insertion into mitochondrial membrane | C200: 3 | D200: 1.714285714 | E200: 0.04349623659 | F200: B4DJF2, P31947, P61981 | G200: 164 | H200: 34 | I200: 16663 | J200: 8.965028694 | K200: 1 | L200: 0.1520762669 | M200: 49.35039686
A201: GOTERM_BP_3 | B201: GO:0051222~positive regulation of protein transport | C201: 10 | D201: 5.714285714 | E201: 0.0372242599 | F201: B5MCZ3, B5BUQ8, C9JPM3, A8K3T7, P13500, Q6NUR7, P31947, K7EQA1, P80108, Q6PK50 | G201: 164 | H201: 460 | I201: 16663 | J201: 2.208775186 | K201: 1 | L201: 0.1373583672 | M201: 44.02499313
... 66 more rows

Sheet 6B - C Veh
A1: Figure 6B-C
A2: Veh Comparisons
A4: ID | B4: log2FoldChange | C4: pvalue | D4: padj | E4: hVCF-veh-557-CD4 | F4: hVCF-veh-282-CD4 | G4: hVCF-veh-202-CD4 | H4: Avg veh CD4+ | I4: hVCF-veh-282-CD4- | J4: hVCF-veh-557-CD4- | K4: hVCF-veh-202-CD4- | L4: Avg veh CD4- | M4: Gene.name
A5: ENSG00000105464 | B5: -5.950606921 | C5: 0.000313193 | D5: 0.400320473 | E5: 7.359363751 | F5: 19.84303286 | G5: 16.28707741 | H5: 14.49649134 | I5: 0 | J5: 0 | K5: 0 | L5: 0 | M5: GRIN2D
A6: ENSG00000126353 | B6: -5.911245699 | C6: 0.000394264 | D6: 0.444801822 | E6: 13.49216688 | F6: 21.67469743 | G6: 7.125596365 | H6: 14.09748689 | I6: 0 | J6: 0 | K6: 0 | L6: 0 | M6: CCR7
A7: ENSG00000132563 | B7: -5.787321534 | C7: 0.001332359 | D7: 0.727223279 | E7: 2.45312125 | F7: 26.86441371 | G7: 9.16148104 | H7: 12.82633867 | I7: 0 | J7: 0 | K7: 0 | L7: 0 | M7: REEP2
A8: ENSG00000183742 | B8: -6.671325661 | C8: 1.22E-05 | D8: 0.050373477 | E8: 28.21089438 | F8: 34.49634943 | G8: 9.16148104 | H8: 23.95624162 | I8: 0 | J8: 0 | K8: 0 | L8: 0 | M8: MACC1
A9: ENSG00000183891 | B9: -4.800769264 | C9: 0.052710537 | D9: 0.999469618 | E9: 0 | F9: 18.31664571 | G9: 1.017942338 | H9: 6.444862684 | I9: 0 | J9: 0 | K9: 0 | L9: 0 | M9: TTC32
A10: ENSG00000188501 | B10: -4.7880074 | C10: 0.081378688 | D10: 0.999469618 | E10: 0 | F10: 19.232478 | G10: 0 | H10: 6.410826 | I10: 0 | J10: 0 | K10: 0 | L10: 0 | M10: LCTL
A11: ENSG00000231574 | B11: -5.166265515 | C11: 0.019397006 | D11: 0.999469618 | E11: 0 | F11: 18.92720057 | G11: 6.107654027 | H11: 8.344951533 | I11: 0 | J11: 0 | K11: 0 | L11: 0 | M11: LINC02015
A12: ENSG00000232774 | B12: -5.500830545 | C12: 0.002940949 | D12: 0.949231786 | E12: 15.94528813 | F12: 14.04276171 | G12: 2.035884676 | H12: 10.67464484 | I12: 0 | J12: 0 | K12: 0 | L12: 0 | M12: AL355916.1
A13: ENSG00000259721 | B13: -4.918413161 | C13: 0.066838801 | D13: 0.999469618 | E13: 0 | F13: 21.06414257 | G13: 0 | H13: 7.021380857 | I13: 0 | J13: 0 | K13: 0 | L13: 0 | M13: AC090877.2
A14: ENSG00000273038 | B14: -5.559587911 | C14: 0.002231078 | D14: 0.890543134 | E14: 3.679681875 | F14: 21.06414257 | G14: 8.143538703 | H14: 10.96245438 | I14: 0 | J14: 0 | K14: 0 | L14: 0 | M14: AL365203.2
A15: ENSG00000176222 | B15: -3.762311698 | C15: 0.141595844 | D15: 0.999469618 | E15: 0 | F15: 18.31664571 | G15: 0 | H15: 6.105548571 | I15: 0 | J15: 0.97288497 | K15: 0 | L15: 0.32429499 | M15: ZNF404
A16: ENSG00000178776 | B16: -4.910000274 | C16: 0.0094424 | D16: 0.999469618 | E16: 0 | F16: 28.69607829 | G16: 12.21530805 | H16: 13.63712878 | I16: 0 | J16: 0.97288497 | K16: 0 | L16: 0.32429499 | M16: C5orf46
A17: ENSG00000183250 | B17: -5.27891601 | C17: 0.000508518 | D17: 0.485439254 | E17: 19.62497 | F17: 16.79025857 | G17: 17.30501974 | H17: 17.90674944 | I17: 0 | J17: 0.97288497 | K17: 0 | L17: 0.32429499 | M17: LINC01547
A18: ENSG00000253953 | B18: -5.7750053 | C18: 0.000473512 | D18: 0.485439254 | E18: 2.45312125 | F18: 60.75020829 | G18: 11.19736572 | H18: 24.80023175 | I18: 0 | J18: 0.97288497 | K18: 0 | L18: 0.32429499 | M18: PCDHGB4
A19: ENSG00000273748 | B19: -4.798399529 | C19: 0.00320755 | D19: 0.995142417 | E19: 17.17184875 | F19: 12.21109714 | G19: 9.16148104 | H19: 12.84814231 | I19: 0 | J19: 0.97288497 | K19: 0 | L19: 0.32429499 | M19: AL592183.1
A20: ENSG00000095539 | B20: -3.941528666 | C20: 0.1118505 | D20: 0.999469618 | E20: 0 | F20: 20.75886514 | G20: 0 | H20: 6.919621714 | I20: 1.418510446 | J20: 0 | K20: 0 | L20: 0.472836815 | M20: SEMA4G
A21: ENSG00000169682 | B21: -5.210458131 | C21: 0.00093567 | D21: 0.646847326 | E21: 25.75777313 | F21: 18.31664571 | G21: 7.125596365 | H21: 17.06667174 | I21: 1.418510446 | J21: 0 | K21: 0 | L21: 0.472836815 | M21: SPNS1
A22: ENSG00000083838 | B22: -4.753196873 | C22: 0.013387878 | D22: 0.999469618 | E22: 24.5312125 | F22: 12.821652 | G22: 0 | H22: 12.45095483 | I22: 0 | J22: 0 | K22: 1.53776251 | L22: 0.512587503 | M22: ZNF446
A23: ENSG00000230715 | B23: -4.957691164 | C23: 0.008070836 | D23: 0.999469618 | E23: 0 | F23: 28.08552343 | G23: 14.25119273 | H23: 14.11223872 | I23: 0 | J23: 0 | K23: 1.53776251 | L23: 0.512587503 | M23: AC018638.2
A24: ENSG00000169951 | B24: -4.545230864 | C24: 0.001745858 | D24: 0.802447896 | E24: 12.26560625 | F24: 15.87442629 | G24: 26.46650078 | H24: 18.20217777 | I24: 0 | J24: 1.94576994 | K24: 0 | L24: 0.64858998 | M24: ZNF764
A25: ENSG00000204767 | B25: -3.626053793 | C25: NA | D25: NA | E25: 0 | F25: 26.25385886 | G25: 0 | H25: 8.751286286 | I25: 0 | J25: 1.94576994 | K25: 0 | L25: 0.64858998 | M25: FAM196B
A26: ENSG00000251003 | B26: -3.501005928 | C26: 0.084687522 | D26: 0.999469618 | E26: 0 | F26: 17.40081343 | G26: 7.125596365 | H26: 8.175469931 | I26: 0 | J26: 1.94576994 | K26: 0 | L26: 0.64858998 | M26: ZFPM2-AS1
A27: ENSG00000278621 | B27: -4.564327667 | C27: 0.00986253 | D27: 0.999469618 | E27: 20.85153063 | F27: 32.05413 | G27: 0 | H27: 17.63522021 | I27: 0 | J27: 1.94576994 | K27: 0 | L27: 0.64858998 | M27: AC037198.2
A28: ENSG00000173531 | B28: -3.956055566 | C28: 0.016890353 | D28: 0.999469618 | E28: 1.226560625 | F28: 28.69607829 | G28: 8.143538703 | H28: 12.68872587 | I28: 0 | J28: 0.97288497 | K28: 1.53776251 | L28: 0.836882493 | M28: MST1
A29: ENSG00000197714 | B29: -3.417770176 | C29: 0.074084259 | D29: 0.999469618 | E29: 0 | F29: 16.48498114 | G29: 12.21530805 | H29: 9.566763066 | I29: 2.837020891 | J29: 0 | K29: 0 | L29: 0.94567363 | M29: ZNF460
A30: ENSG00000126562 | B30: -3.812441364 | C30: 0.029400551 | D30: 0.999469618 | E30: 11.03904563 | F30: 34.191072 | G30: 0 | H30: 15.07670588 | I30: 0 | J30: 2.918654911 | K30: 0 | L30: 0.97288497 | M30: WNK4
A31: ENSG00000160050 | B31: -3.468306534 | C31: 0.009915486 | D31: 0.999469618 | E31: 12.26560625 | F31: 16.17970371 | G31: 11.19736572 | H31: 13.21422523 | I31: 1.418510446 | J31: 1.94576994 | K31: 0 | L31: 1.121426795 | M31: CCDC28B
A32: ENSG00000147592 | B32: -3.337295754 | C32: 0.016611615 | D32: 0.999469618 | E32: 7.359363751 | F32: 17.70609086 | G32: 11.19736572 | H32: 12.08760677 | I32: 0 | J32: 1.94576994 | K32: 1.53776251 | L32: 1.161177484 | M32: LACTB2
A33: ENSG00000180346 | B33: -3.102299543 | C33: 0.049905361 | D33: 0.999469618 | E33: 1.226560625 | F33: 20.14831029 | G33: 15.26913507 | H33: 12.21466866 | I33: 0 | J33: 3.891539881 | K33: 0 | L33: 1.29717996 | M33: TIGD2
A34: ENSG00000235790 | B34: -3.54444578 | C34: 0.028078272 | D34: 0.999469618 | E34: 0 | F34: 33.88579457 | G34: 11.19736572 | H34: 15.0277201 | I34: 0 | J34: 0.97288497 | K34: 3.07552502 | L34: 1.349469997 | M34: AC114488.2
A35: ENSG00000138658 | B35: -3.774180854 | C35: 0.006903172 | D35: 0.999469618 | E35: 36.79681875 | F35: 12.821652 | G35: 6.107654027 | H35: 18.57537493 | I35: 4.255531337 | J35: 0 | K35: 0 | L35: 1.418510446 | M35: ZGRF1
A36: ENSG00000159882 | B36: -4.052291748 | C36: 0.001444457 | D36: 0.728710668 | E36: 22.07809125 | F36: 12.21109714 | G36: 32.57415481 | H36: 22.28778107 | I36: 4.255531337 | J36: 0 | K36: 0 | L36: 1.418510446 | M36: ZNF230
A37: ENSG00000206052 | B37: -3.192136428 | C37: 0.02831629 | D37: 0.999469618 | E37: 11.03904563 | F37: 22.89580714 | G37: 3.053827013 | H37: 12.32955993 | I37: 2.837020891 | J37: 0 | K37: 1.53776251 | L37: 1.458261134 | M37: DOK6
A38: ENSG00000245958 | B38: -4.093993853 | C38: 0.000938215 | D38: 0.646847326 | E38: 8.585924376 | F38: 31.13829771 | G38: 28.50238546 | H38: 22.74220252 | I38: 2.837020891 | J38: 0 | K38: 1.53776251 | L38: 1.458261134 | M38: AC093752.1
A39: ENSG00000235501 | B39: -3.19129392 | C39: 0.043155972 | D39: 0.999469618 | E39: 25.75777313 | F39: 16.79025857 | G39: 0 | H39: 14.18267723 | I39: 0 | J39: 2.918654911 | K39: 1.53776251 | L39: 1.485472474 | M39: AC105942.1
A40: ENSG00000248587 | B40: -2.463697692 | C40: 0.100058008 | D40: 0.999469618 | E40: 4.9062425 | F40: 15.26387143 | G40: 5.089711689 | H40: 8.419941873 | I40: 0 | J40: 2.918654911 | K40: 1.53776251 | L40: 1.485472474 | M40: GDNF-AS1
A41: ENSG00000137273 | B41: -2.578436137 | C41: 0.118013687 | D41: 0.999469618 | E41: 4.9062425 | F41: 15.26387143 | G41: 5.089711689 | H41: 8.419941873 | I41: 0 | J41: 0 | K41: 4.613287531 | L41: 1.53776251 | M41: FOXF2
A42: ENSG00000187699 | B42: -3.156567644 | C42: 0.033502497 | D42: 0.999469618 | E42: 13.49216688 | F42: 18.92720057 | G42: 5.089711689 | H42: 12.50302638 | I42: 0 | J42: 0 | K42: 4.613287531 | L42: 1.53776251 | M42: C2orf88
A43: ENSG00000106462 | B43: -2.684218817 | C43: 0.049534296 | D43: 0.999469618 | E43: 2.45312125 | F43: 12.821652 | G43: 16.28707741 | H43: 10.52061689 | I43: 1.418510446 | J43: 1.94576994 | K43: 1.53776251 | L43: 1.634014299 | M43: EZH2
A44: ENSG00000184227 | B44: -3.180343928 | C44: 0.012625083 | D44: 0.999469618 | E44: 8.585924376 | F44: 25.94858143 | G44: 10.17942338 | H44: 14.90464306 | I44: 0 | J44: 1.94576994 | K44: 3.07552502 | L44: 1.673764987 | M44: ACOT1
A45: ENSG00000138395 | B45: -3.205314947 | C45: 0.005867609 | D45: 0.999469618 | E45: 22.07809125 | F45: 11.90581971 | G45: 20.35884676 | H45: 18.11425257 | I45: 0 | J45: 3.891539881 | K45: 1.53776251 | L45: 1.809767464 | M45: CDK15
A46: ENSG00000223508 | B46: -2.772597766 | C46: 0.050305734 | D46: 0.999469618 | E46: 8.585924376 | F46: 15.26387143 | G46: 13.23325039 | H46: 12.3610154 | I46: 5.674041783 | J46: 0 | K46: 0 | L46: 1.891347261 | M46: RPL23AP53
A47: ENSG00000108423 | B47: -2.910695939 | C47: 0.025900801 | D47: 0.999469618 | E47: 26.98433375 | F47: 12.821652 | G47: 9.16148104 | H47: 16.32248893 | I47: 0 | J47: 5.837309821 | K47: 0 | L47: 1.94576994 | M47: TUBD1
A48: ENSG00000145242 | B48: -3.267804113 | C48: 0.027575038 | D48: 0.999469618 | E48: 0 | F48: 31.13829771 | G48: 22.39473143 | H48: 17.84434305 | I48: 2.837020891 | J48: 0 | K48: 3.07552502 | L48: 1.970848637 | M48: EPHA5
A49: ENSG00000128617 | B49: -3.295676539 | C49: 0.005504195 | D49: 0.999469618 | E49: 24.5312125 | F49: 5.800271143 | G49: 30.53827013 | H49: 20.28991793 | I49: 0 | J49: 2.918654911 | K49: 3.07552502 | L49: 1.998059977 | M49: OPN1SW
A50: ENSG00000172345 | B50: -2.952604977 | C50: 0.048609845 | D50: 0.999469618 | E50: 0 | F50: 32.05413 | G50: 14.25119273 | H50: 15.43510758 | I50: 0 | J50: 2.918654911 | K50: 3.07552502 | L50: 1.998059977 | M50: STARD5
A51: ENSG00000179715 | B51: -1.69194617 | C51: 0.354771729 | D51: 0.999469618 | E51: 2.45312125 | F51: 17.095536 | G51: 0 | H51: 6.516219083 | I51: 4.255531337 | J51: 1.94576994 | K51: 0 | L51: 2.067100426 | M51: PCED1B
A52: ENSG00000255769 | B52: -1.896596333 | C52: 0.239449426 | D52: 0.999469618 | E52: 3.679681875 | F52: 19.232478 | G52: 1.017942338 | H52: 7.976700738 | I52: 1.418510446 | J52: 4.864424851 | K52: 0 | L52: 2.094311766 | M52: GOLGA2P10
A53: ENSG00000232187 | B53: -1.719406203 | C53: 0.268588247 | D53: 0.999469618 | E53: 2.45312125 | F53: 14.958594 | G53: 4.071769351 | H53: 7.161161534 | I53: 0 | J53: 4.864424851 | K53: 1.53776251 | L53: 2.134062454 | M53: FTH1P7
A54: ENSG00000158483 | B54: -1.940014151 | C54: 0.161488286 | D54: 0.999469618 | E54: 7.359363751 | F54: 14.958594 | G54: 4.071769351 | H54: 8.796575701 | I54: 2.837020891 | J54: 3.891539881 | K54: 0 | L54: 2.242853591 | M54: FAM86C1
A55: ENSG00000108852 | B55: -1.933023205 | C55: 0.299792022 | D55: 0.999469618 | E55: 4.9062425 | F55: 21.97997486 | G55: 0 | H55: 8.962072453 | I55: 0 | J55: 6.810194792 | K55: 0 | L55: 2.270064931 | M55: MPP2
A56: ENSG00000162366 | B56: -1.992141279 | C56: 0.178162358 | D56: 0.999469618 | E56: 9.812485001 | F56: 13.12692943 | G56: 6.107654027 | H56: 9.682356152 | I56: 0 | J56: 6.810194792 | K56: 0 | L56: 2.270064931 | M56: PDZK1IP1
A57: ENSG00000182141 | B57: -1.793838626 | C57: 0.229743212 | D57: 0.999469618 | E57: 4.9062425 | F57: 17.095536 | G57: 2.035884676 | H57: 8.012554392 | I57: 0 | J57: 3.891539881 | K57: 3.07552502 | L57: 2.322354967 | M57: ZNF708
A58: ENSG00000229152 | B58: -2.090808483 | C58: 0.12855377 | D58: 0.999469618 | E58: 3.679681875 | F58: 18.92720057 | G58: 7.125596365 | H58: 9.910826271 | I58: 0 | J58: 3.891539881 | K58: 3.07552502 | L58: 2.322354967 | M58: ANKRD10-IT1
A59: ENSG00000154874 | B59: -2.522853072 | C59: 0.061629077 | D59: 0.999469618 | E59: 4.9062425 | F59: 24.42219429 | G59: 9.16148104 | H59: 12.82997261 | I59: 0 | J59: 0.97288497 | K59: 6.151050041 | L59: 2.374645004 | M59: CCDC144B
A60: ENSG00000184381 | B60: -2.623355261 | C60: 0.037995168 | D60: 0.999469618 | E60: 1.226560625 | F60: 25.643304 | G60: 18.32296208 | H60: 15.06427557 | I60: 1.418510446 | J60: 2.918654911 | K60: 3.07552502 | L60: 2.470896792 | M60: PLA2G6
A61: ENSG00000113368 | B61: -3.324136657 | C61: 0.002040658 | D61: 0.860919429 | E61: 26.98433375 | F61: 9.463600286 | G61: 39.69975118 | H61: 25.38256174 | I61: 0 | J61: 2.918654911 | K61: 4.613287531 | L61: 2.51064748 | M61: LMNB1
A62: ENSG00000230838 | B62: -3.019407675 | C62: 0.006634242 | D62: 0.999469618 | E62: 8.585924376 | F62: 22.59052971 | G62: 29.5203278 | H62: 20.23226063 | I62: 0 | J62: 2.918654911 | K62: 4.613287531 | L62: 2.51064748 | M62: LINC01614
A63: ENSG00000149571 | B63: -3.618537424 | C63: 0.001826098 | D63: 0.809352596 | E63: 17.17184875 | F63: 57.697434 | G63: 10.17942338 | H63: 28.34956871 | I63: 1.418510446 | J63: 0 | K63: 6.151050041 | L63: 2.523186829 | M63: KIRREL3
A64: ENSG00000248441 | B64: -2.368606486 | C64: 0.094168611 | D64: 0.999469618 | E64: 15.94528813 | F64: 14.34803914 | G64: 7.125596365 | H64: 12.47297454 | I64: 0 | J64: 0 | K64: 7.688812551 | L64: 2.562937517 | M64: LINC01197
A65: ENSG00000154027 | B65: -2.327331053 | C65: 0.098347458 | D65: 0.999469618 | E65: 9.812485001 | F65: 26.55913629 | G65: 5.089711689 | H65: 13.82044433 | I65: 0 | J65: 7.783079762 | K65: 0 | L65: 2.594359921 | M65: AK5
A66: ENSG00000164707 | B66: -1.843969953 | C66: 0.209923374 | D66: 0.999469618 | E66: 6.132803125 | F66: 14.34803914 | G66: 9.16148104 | H66: 9.880774436 | I66: 0 | J66: 7.783079762 | K66: 0 | L66: 2.594359921 | M66: SLC13A4
A67: ENSG00000110844 | B67: -1.683201889 | C67: 0.292728166 | D67: 0.999469618 | E67: 0 | F67: 12.51637457 | G67: 13.23325039 | H67: 8.583208321 | I67: 0 | J67: 4.864424851 | K67: 3.07552502 | L67: 2.646649957 | M67: PRPF40B
A68: ENSG00000108733 | B68: -2.547908531 | C68: 0.024052318 | D68: 0.999469618 | E68: 11.03904563 | F68: 11.90581971 | G68: 26.46650078 | H68: 16.47045537 | I68: 4.255531337 | J68: 3.891539881 | K68: 0 | L68: 2.715690406 | M68: PEX12
A69: ENSG00000234771 | B69: -2.085822 | C69: 0.17607278 | D69: 0.999469618 | E69: 0 | F69: 18.92720057 | G69: 17.30501974 | H69: 12.07740677 | I69: 1.418510446 | J69: 6.810194792 | K69: 0 | L69: 2.742901746 | M69: SLC25A25-AS1
A70: ENSG00000178773 | B70: -1.916634596 | C70: 0.137828537 | D70: 0.999469618 | E70: 2.45312125 | F70: 21.36942 | G70: 7.125596365 | H70: 10.31604587 | I70: 2.837020891 | J70: 3.891539881 | K70: 1.53776251 | L70: 2.755441094 | M70: CPNE7
A71: ENSG00000102524 | B71: -3.275946144 | C71: 0.002457521 | D71: 0.924176989 | E71: 44.1561825 | F71: 6.716103429 | G71: 33.59209715 | H71: 28.15479436 | I71: 0 | J71: 3.891539881 | K71: 4.613287531 | L71: 2.834942471 | M71: TNFSF13B
A72: ENSG00000107338 | B72: -2.923997136 | C72: 0.005122067 | D72: 0.999469618 | E72: 12.26560625 | F72: 26.25385886 | G72: 26.46650078 | H72: 21.66198863 | I72: 0 | J72: 3.891539881 | K72: 4.613287531 | L72: 2.834942471 | M72: SHB
A73: ENSG00000176890 | B73: -2.150403916 | C73: 0.103089633 | D73: 0.999469618 | E73: 4.9062425 | F73: 27.16969114 | G73: 5.089711689 | H73: 12.38854844 | I73: 0 | J73: 3.891539881 | K73: 4.613287531 | L73: 2.834942471 | M73: TYMS
A74: ENSG00000095752 | B74: -1.502202523 | C74: 0.382229131 | D74: 0.999469618 | E74: 7.359363751 | F74: 16.17970371 | G74: 0 | H74: 7.846355822 | I74: 7.092552229 | J74: 0 | K74: 1.53776251 | L74: 2.87677158 | M74: IL11
A75: ENSG00000212978 | B75: -2.270956246 | C75: 0.072916205 | D75: 0.999469618 | E75: 20.85153063 | F75: 10.37943257 | G75: 9.16148104 | H75: 13.46414808 | I75: 7.092552229 | J75: 0 | K75: 1.53776251 | L75: 2.87677158 | M75: AC016747.1
A76: ENSG00000163435 | B76: -2.093010681 | C76: 0.174568069 | D76: 0.999469618 | E76: 3.679681875 | F76: 32.05413 | G76: 3.053827013 | H76: 12.92921296 | I76: 0 | J76: 8.755964732 | K76: 0 | L76: 2.918654911 | M76: ELF3
A77: ENSG00000197557 | B77: -2.254059879 | C77: 0.086249275 | D77: 0.999469618 | E77: 8.585924376 | F77: 19.84303286 | G77: 16.28707741 | H77: 14.90534488 | I77: 0 | J77: 8.755964732 | K77: 0 | L77: 2.918654911 | M77: TTC30A
A78: ENSG00000259498 | B78: -2.775090295 | C78: 0.350880292 | D78: 0.999469618 | E78: 0 | F78: 35.41218171 | G78: 25.44855845 | H78: 20.28691339 | I78: 0 | J78: 8.755964732 | K78: 0 | L78: 2.918654911 | M78: TPM1-AS
A79: ENSG00000280385 | B79: -2.406892635 | C79: 0.089200508 | D79: 0.999469618 | E79: 39.24994 | F79: 4.884438857 | G79: 6.107654027 | H79: 16.7473443 | I79: 0 | J79: 8.755964732 | K79: 0 | L79: 2.918654911 | M79: AP000648.3
A80: ENSG00000274370 | B80: -2.029005948 | C80: 0.113855785 | D80: 0.999469618 | E80: 4.9062425 | F80: 9.463600286 | G80: 22.39473143 | H80: 12.25485807 | I80: 7.092552229 | J80: 1.94576994 | K80: 0 | L80: 3.012774056 | M80: AC130371.2
A81: ENSG00000148291 | B81: -2.617160398 | C81: 0.016240076 | D81: 0.999469618 | E81: 19.62497 | F81: 11.29526486 | G81: 24.43061611 | H81: 18.45028366 | I81: 0 | J81: 2.918654911 | K81: 6.151050041 | L81: 3.023234984 | M81: SURF2
A82: ENSG00000123572 | B82: -1.694546497 | C82: 0.308449531 | D82: 0.999469618 | E82: 9.812485001 | F82: 18.31664571 | G82: 0 | H82: 9.376376905 | I82: 1.418510446 | J82: 0 | K82: 7.688812551 | L82: 3.035774332 | M82: NRK
A83: ENSG00000218891 | B83: -1.920227013 | C83: 0.205595252 | D83: 0.999469618 | E83: 12.26560625 | F83: 22.59052971 | G83: 0 | H83: 11.61871199 | I83: 4.255531337 | J83: 4.864424851 | K83: 0 | L83: 3.039985396 | M83: ZNF579
A84: ENSG00000220804 | B84: -1.903114982 | C84: 0.109835283 | D84: 0.999469618 | E84: 15.94528813 | F84: 10.37943257 | G84: 9.16148104 | H84: 11.82873391 | I84: 4.255531337 | J84: 4.864424851 | K84: 0 | L84: 3.039985396 | M84: LINC01881
A85: ENSG00000156787 | B85: -2.269608798 | C85: 0.070244954 | D85: 0.999469618 | E85: 1.226560625 | F85: 17.70609086 | G85: 24.43061611 | H85: 14.45442253 | I85: 5.674041783 | J85: 1.94576994 | K85: 1.53776251 | L85: 3.052524744 | M85: TBC1D31
A86: ENSG00000263002 | B86: -2.371367364 | C86: 0.022031585 | D86: 0.999469618 | E86: 11.03904563 | F86: 20.75886514 | G86: 17.30501974 | H86: 16.3676435 | I86: 2.837020891 | J86: 4.864424851 | K86: 1.53776251 | L86: 3.079736084 | M86: ZNF234
A87: ENSG00000198046 | B87: -2.113086261 | C87: 0.083466065 | D87: 0.999469618 | E87: 7.359363751 | F87: 14.958594 | G87: 20.35884676 | H87: 14.2256015 | I87: 0 | J87: 7.783079762 | K87: 1.53776251 | L87: 3.106947424 | M87: ZNF667
A88: ENSG00000073150 | B88: -1.876815457 | C88: 0.220609168 | D88: 0.999469618 | E88: 0 | F88: 13.12692943 | G88: 21.37678909 | H88: 11.50123951 | I88: 0 | J88: 1.94576994 | K88: 7.688812551 | L88: 3.211527497 | M88: PANX2
A89: ENSG00000164197 | B89: -2.211160515 | C89: 0.060816324 | D89: 0.999469618 | E89: 9.812485001 | F89: 14.04276171 | G89: 19.34090442 | H89: 14.39871704 | I89: 0 | J89: 1.94576994 | K89: 7.688812551 | L89: 3.211527497 | M89: RNF180
A90: ENSG00000257354 | B90: -2.028969536 | C90: 0.182957231 | D90: 0.999469618 | E90: 15.94528813 | F90: 22.28525229 | G90: 0 | H90: 12.74351347 | I90: 0 | J90: 1.94576994 | K90: 7.688812551 | L90: 3.211527497 | M90: AC048341.1
A91: ENSG00000003249 | B91: -1.63168201 | C91: 0.346506597 | D91: 0.999469618 | E91: 0 | F91: 10.98998743 | G91: 20.35884676 | H91: 10.4496114 | I91: 0 | J91: 9.728849702 | K91: 0 | L91: 3.242949901 | M91: DBNDD1
A92: ENSG00000106701 | B92: -2.031912228 | C92: 0.099549351 | D92: 0.999469618 | E92: 28.21089438 | F92: 8.242490572 | G92: 6.107654027 | H92: 14.18701299 | I92: 0 | J92: 6.810194792 | K92: 3.07552502 | L92: 3.295239937 | M92: FSD1L
A93: ENSG00000164162 | B93: -2.242163685 | C93: 0.048191335 | D93: 0.999469618 | E93: 22.07809125 | F93: 18.62192314 | G93: 8.143538703 | H93: 16.28118437 | I93: 0 | J93: 6.810194792 | K93: 3.07552502 | L93: 3.295239937 | M93: ANAPC10
A94: ENSG00000104880 | B94: -1.57343987 | C94: 0.379263875 | D94: 0.999469618 | E94: 15.94528813 | F94: 13.12692943 | G94: 0 | H94: 9.690739185 | I94: 9.92957312 | J94: 0 | K94: 0 | L94: 3.309857707 | M94: ARHGEF18
A95: ENSG00000105889 | B95: -1.367294588 | C95: 0.458213357 | D95: 0.999469618 | E95: 0 | F95: 17.70609086 | G95: 7.125596365 | H95: 8.277229074 | I95: 9.92957312 | J95: 0 | K95: 0 | L95: 3.309857707 | M95: STEAP1B
A96: ENSG00000175832 | B96: -2.14729243 | C96: 0.101018262 | D96: 0.999469618 | E96: 26.98433375 | F96: 18.62192314 | G96: 2.035884676 | H96: 15.88071386 | I96: 1.418510446 | J96: 8.755964732 | K96: 0 | L96: 3.391491726 | M96: ETV4
A97: ENSG00000166448 | B97: -2.565347391 | C97: 0.040244921 | D97: 0.999469618 | E97: 4.9062425 | F97: 14.34803914 | G97: 38.68180884 | H97: 19.31203016 | I97: 0 | J97: 0.97288497 | K97: 9.226575061 | L97: 3.39982001 | M97: TMEM130
A98: ENSG00000178184 | B98: -1.415617604 | C98: 0.380168245 | D98: 0.999469618 | E98: 17.17184875 | F98: 11.29526486 | G98: 0 | H98: 9.489037869 | I98: 0 | J98: 8.755964732 | K98: 1.53776251 | L98: 3.431242414 | M98: PARD6G
A99: ENSG00000105696 | B99: -2.34666156 | C99: 0.035334073 | D99: 0.999469618 | E99: 25.75777313 | F99: 14.04276171 | G99: 13.23325039 | H99: 17.67792841 | I99: 8.511062674 | J99: 1.94576994 | K99: 0 | L99: 3.485610872 | M99: TMEM59L
A100: ENSG00000225697 | B100: -2.76279903 | C100: 0.016572088 | D100: 0.999469618 | E100: 7.359363751 | F100: 47.62327886 | G100: 14.25119273 | H100: 23.07794511 | I100: 8.511062674 | J100: 1.94576994 | K100: 0 | L100: 3.485610872 | M100: SLC26A6
A101: ENSG00000143469 | B101: -1.942080164 | C101: 0.172130394 | D101: 0.999469618 | E101: 9.812485001 | F101: 27.47496857 | G101: 1.017942338 | H101: 12.7684653 | I101: 2.837020891 | J101: 0 | K101: 7.688812551 | L101: 3.508611147 | M101: SYT14
A102: ENSG00000278318 | B102: -0.770252613 | C102: 0.667223691 | D102: 0.999469618 | E102: 0 | F102: 16.48498114 | G102: 1.017942338 | H102: 5.834307827 | I102: 5.674041783 | J102: 4.864424851 | K102: 0 | L102: 3.512822211 | M102: ZNF229
A103: ENSG00000141428 | B103: -1.996233404 | C103: 0.088812558 | D103: 0.999469618 | E103: 22.07809125 | F103: 10.68471 | G103: 9.16148104 | H103: 13.97476076 | I103: 0 | J103: 2.918654911 | K103: 7.688812551 | L103: 3.535822487 | M103: C18orf21
A104: ENSG00000146250 | B104: -2.187529525 | C104: 0.117901446 | D104: 0.999469618 | E104: 14.7187275 | F104: 2.747496857 | G104: 34.61003949 | H104: 17.35875461 | I104: 0 | J104: 10.70173467 | K104: 0 | L104: 3.567244891 | M104: PRSS35
A105: ENSG00000159259 | B105: -1.490506031 | C105: 0.291438877 | D105: 0.999469618 | E105: 12.26560625 | F105: 9.463600286 | G105: 10.17942338 | H105: 10.63620997 | I105: 0 | J105: 10.70173467 | K105: 0 | L105: 3.567244891 | M105: CHAF1B
A106: ENSG00000254093 | B106: -1.169063884 | C106: 0.472513642 | D106: 0.999469618 | E106: 4.9062425 | F106: 17.70609086 | G106: 2.035884676 | H106: 8.216072678 | I106: 0 | J106: 10.70173467 | K106: 0 | L106: 3.567244891 | M106: PINX1
A107: ENSG00000107443 | B107: -1.950508459 | C107: 0.174589633 | D107: 0.999469618 | E107: 19.62497 | F107: 16.17970371 | G107: 4.071769351 | H107: 13.29214769 | I107: 0 | J107: 0 | K107: 10.76433757 | L107: 3.588112524 | M107: CCNJ
A108: ENSG00000128165 | B108: -1.501246133 | C108: 0.322060837 | D108: 0.999469618 | E108: 4.9062425 | F108: 14.958594 | G108: 9.16148104 | H108: 9.67543918 | I108: 0 | J108: 0 | K108: 10.76433757 | L108: 3.588112524 | M108: ADM2
A109: ENSG00000125965 | B109: -2.185001251 | C109: 0.050182957 | D109: 0.999469618 | E109: 9.812485001 | F109: 25.03274914 | G109: 16.28707741 | H109: 17.04410385 | I109: 0 | J109: 7.783079762 | K109: 3.07552502 | L109: 3.619534927 | M109: GDF5
A110: ENSG00000152154 | B110: -1.511827267 | C110: 0.215996101 | D110: 0.999469618 | E110: 11.03904563 | F110: 10.98998743 | G110: 10.17942338 | H110: 10.73615214 | I110: 0 | J110: 7.783079762 | K110: 3.07552502 | L110: 3.619534927 | M110: TMEM178A
A111: ENSG00000158286 | B111: -1.365011803 | C111: 0.328750046 | D111: 0.999469618 | E111: 3.679681875 | F111: 12.51637457 | G111: 11.19736572 | H111: 9.131140721 | I111: 9.92957312 | J111: 0.97288497 | K111: 0 | L111: 3.634152697 | M111: RNF207
A112: ENSG00000113645 | B112: -2.071134257 | C112: 0.084667808 | D112: 0.999469618 | E112: 3.679681875 | F112: 25.94858143 | G112: 16.28707741 | H112: 15.30511357 | I112: 7.092552229 | J112: 3.891539881 | K112: 0 | L112: 3.661364036 | M112: WWC1
A113: ENSG00000082684 | B113: -2.54615919 | C113: 0.011989418 | D113: 0.999469618 | E113: 29.437455 | F113: 22.28525229 | G113: 13.23325039 | H113: 21.65198589 | I113: 0 | J113: 4.864424851 | K113: 6.151050041 | L113: 3.671824964 | M113: SEMA5B
A114: ENSG00000176371 | B114: -1.5022635 | C114: 0.236169506 | D114: 0.999469618 | E114: 3.679681875 | F114: 13.12692943 | G114: 14.25119273 | H114: 10.35260134 | I114: 0 | J114: 4.864424851 | K114: 6.151050041 | L114: 3.671824964 | M114: ZSCAN2
A115: ENSG00000162994 | B115: -0.763564863 | C115: 0.663169737 | D115: 0.999469618 | E115: 0 | F115: 15.87442629 | G115: 3.053827013 | H115: 6.309417766 | I115: 1.418510446 | J115: 9.728849702 | K115: 0 | L115: 3.715786716 | M115: CLHC1
A116: ENSG00000015479 | B116: -1.329397735 | C116: 0.305708845 | D116: 0.999469618 | E116: 9.812485001 | F116: 9.768877714 | G116: 10.17942338 | H116: 9.920262031 | I116: 0 | J116: 9.728849702 | K116: 1.53776251 | L116: 3.755537404 | M116: MATR3
A117: ENSG00000109911 | B117: -1.259380923 | C117: 0.32191654 | D117: 0.999469618 | E117: 4.9062425 | F117: 11.60054229 | G117: 11.19736572 | H117: 9.234716834 | I117: 0 | J117: 6.810194792 | K117: 4.613287531 | L117: 3.807827441 | M117: ELP4
A118: ENSG00000174939 | B118: -1.283671381 | C118: 0.3477062 | D118: 0.999469618 | E118: 3.679681875 | F118: 19.84303286 | G118: 4.071769351 | H118: 9.198161361 | I118: 0 | J118: 6.810194792 | K118: 4.613287531 | L118: 3.807827441 | M118: ASPHD1
A119: ENSG00000247903 | B119: -2.765384276 | C119: 0.004997212 | D119: 0.999469618 | E119: 30.66401563 | F119: 12.821652 | G119: 37.6638665 | H119: 27.04984471 | I119: 0 | J119: 6.810194792 | K119: 4.613287531 | L119: 3.807827441 | M119: AC024896.1
A120: ENSG00000145217 | B120: -1.728484275 | C120: 0.139204099 | D120: 0.999469618 | E120: 13.49216688 | F120: 7.631935714 | G120: 17.30501974 | H120: 12.80970744 | I120: 0 | J120: 3.891539881 | K120: 7.688812551 | L120: 3.860117477 | M120: SLC26A1
A121: ENSG00000213551 | B121: -2.413315887 | C121: 0.014553166 | D121: 0.999469618 | E121: 15.94528813 | F121: 19.84303286 | G121: 30.53827013 | H121: 22.10886371 | I121: 1.418510446 | J121: 8.755964732 | K121: 1.53776251 | L121: 3.904079229 | M121: DNAJC9
A122: ENSG00000065665 | B122: -2.407582286 | C122: 0.070454433 | D122: 0.999469618 | E122: 1.226560625 | F122: 25.03274914 | G122: 33.59209715 | H122: 19.95046897 | I122: 0 | J122: 0.97288497 | K122: 10.76433757 | L122: 3.912407514 | M122: SEC61A2
A123: ENSG00000161681 | B123: -1.283976741 | C123: 0.359413374 | D123: 0.999469618 | E123: 3.679681875 | F123: 12.51637457 | G123: 11.19736572 | H123: 9.131140721 | I123: 0 | J123: 0.97288497 | K123: 10.76433757 | L123: 3.912407514 | M123: SHANK1
A124: ENSG00000221926 | B124: -1.620659096 | C124: 0.150358209 | D124: 0.999469618 | E124: 3.679681875 | F124: 19.232478 | G124: 13.23325039 | H124: 12.04847009 | I124: 2.837020891 | J124: 5.837309821 | K124: 3.07552502 | L124: 3.916618578 | M124: TRIM16
A125: ENSG00000136574 | B125: -3.079786207 | C125: 0.002969687 | D125: 0.949231786 | E125: 7.359363751 | F125: 55.25521457 | G125: 41.73563585 | H125: 34.78340472 | I125: 0 | J125: 8.755964732 | K125: 3.07552502 | L125: 3.943829917 | M125: GATA4
A126: ENSG00000171428 | B126: -0.885421601 | C126: 0.532565576 | D126: 0.999469618 | E126: 2.45312125 | F126: 13.43220686 | G126: 6.107654027 | H126: 7.330994045 | I126: 0 | J126: 8.755964732 | K126: 3.07552502 | L126: 3.943829917 | M126: NAT1
A127: ENSG00000176124 | B127: -1.519216447 | C127: 0.277396833 | D127: 0.999469618 | E127: 25.75777313 | F127: 8.547768 | G127: 1.017942338 | H127: 11.77449449 | I127: 0 | J127: 8.755964732 | K127: 3.07552502 | L127: 3.943829917 | M127: DLEU1
A128: ENSG00000107984 | B128: -1.600310484 | C128: 0.308386781 | D128: 0.999469618 | E128: 0 | F128: 32.66468486 | G128: 3.053827013 | H128: 11.90617062 | I128: 0 | J128: 5.837309821 | K128: 6.151050041 | L128: 3.996119954 | M128: DKK1
A129: ENSG00000160124 | B129: -1.472408312 | C129: 0.250898046 | D129: 0.999469618 | E129: 23.30465188 | F129: 8.547768 | G129: 3.053827013 | H129: 11.63541563 | I129: 4.255531337 | J129: 7.783079762 | K129: 0 | L129: 4.012870366 | M129: CCDC58
A130: ENSG00000282057 | B130: -1.176694758 | C130: 0.462109796 | D130: 0.999469618 | E130: 14.7187275 | F130: 13.73748429 | G130: 0 | H130: 9.485403929 | I130: 0 | J130: 10.70173467 | K130: 1.53776251 | L130: 4.079832394 | M130: AC092807.3
A131: ENSG00000168876 | B131: -2.198110011 | C131: 0.088175977 | D131: 0.999469618 | E131: 11.03904563 | F131: 21.36942 | G131: 21.37678909 | H131: 17.92841824 | I131: 0 | J131: 0 | K131: 12.30210008 | L131: 4.100700027 | M131: ANKRD49
A132: ENSG00000153832 | B132: -1.460517249 | C132: 0.288405351 | D132: 0.999469618 | E132: 20.85153063 | F132: 9.768877714 | G132: 3.053827013 | H132: 11.22474512 | I132: 11.34808357 | J132: 0.97288497 | K132: 0 | L132: 4.106989512 | M132: FBXO36
A133: ENSG00000168646 | B133: -1.590174877 | C133: 0.24146601 | D133: 0.999469618 | E133: 3.679681875 | F133: 8.547768 | G133: 24.43061611 | H133: 12.21935533 | I133: 11.34808357 | J133: 0.97288497 | K133: 0 | L133: 4.106989512 | M133: AXIN2
A134: ENSG00000267080 | B134: -1.30080598 | C134: 0.282651213 | D134: 0.999469618 | E134: 7.359363751 | F134: 10.68471 | G134: 13.23325039 | H134: 10.42577471 | I134: 0 | J134: 7.783079762 | K134: 4.613287531 | L134: 4.132122431 | M134: ASB16-AS1
A135: ENSG00000272617 | B135: -1.789663699 | C135: 0.13897069 | D135: 0.999469618 | E135: 3.679681875 | F135: 13.73748429 | G135: 26.46650078 | H135: 14.62788898 | I135: 0 | J135: 7.783079762 | K135: 4.613287531 | L135: 4.132122431 | M135: COG8
A136: ENSG00000254901 | B136: -1.439620472 | C136: 0.222673618 | D136: 0.999469618 | E136: 2.45312125 | F136: 15.56914886 | G136: 15.26913507 | H136: 11.09713506 | I136: 1.418510446 | J136: 4.864424851 | K136: 6.151050041 | L136: 4.144661779 | M136: BORCS8
A137: ENSG00000160323 | B137: -2.649997834 | C137: 0.015702179 | D137: 0.999469618 | E137: 6.132803125 | F137: 17.70609086 | G137: 54.96888624 | H137: 26.26926008 | I137: 0 | J137: 4.864424851 | K137: 7.688812551 | L137: 4.184412467 | M137: ADAMTS13
A138: ENSG00000105963 | B138: -1.908123632 | C138: 0.057003398 | D138: 0.999469618 | E138: 23.30465188 | F138: 15.56914886 | G138: 10.17942338 | H138: 16.3510747 | I138: 4.255531337 | J138: 6.810194792 | K138: 1.53776251 | L138: 4.20116288 | M138: ADAP1
A139: ENSG00000269378 | B139: -2.192910937 | C139: 0.040263248 | D139: 0.999469618 | E139: 6.132803125 | F139: 39.68606571 | G139: 12.21530805 | H139: 19.34472563 | I139: 4.255531337 | J139: 6.810194792 | K139: 1.53776251 | L139: 4.20116288 | M139: ITGB1P1
A140: ENSG00000111850 | B140: -1.691849991 | C140: 0.240949377 | D140: 0.999469618 | E140: 2.45312125 | F140: 12.821652 | G140: 27.48444312 | H140: 14.25307212 | I140: 0 | J140: 12.64750461 | K140: 0 | L140: 4.215834871 | M140: SMIM8
A141: ENSG00000228451 | B141: -1.299857181 | C141: 0.359649888 | D141: 0.999469618 | E141: 8.585924376 | F141: 7.937213143 | G141: 16.28707741 | H141: 10.93673831 | I141: 0 | J141: 12.64750461 | K141: 0 | L141: 4.215834871 | M141: SDAD1P1
A142: ENSG00000274349 | B142: -1.781087489 | C142: 0.173517826 | D142: 0.999469618 | E142: 18.39840938 | F142: 8.547768 | G142: 19.34090442 | H142: 15.42902727 | I142: 0 | J142: 12.64750461 | K142: 0 | L142: 4.215834871 | M142: ZNF658
A143: ENSG00000189120 | B143: -2.537252813 | C143: 0.063261547 | D143: 0.999469618 | E143: 9.812485001 | F143: 65.32936971 | G143: 0 | H143: 25.04728491 | I143: 1.418510446 | J143: 9.728849702 | K143: 1.53776251 | L143: 4.228374219 | M143: SP6
A144: ENSG00000176678 | B144: -2.02229899 | C144: 0.18249609 | D144: 0.999469618 | E144: 0 | F144: 43.65467229 | G144: 6.107654027 | H144: 16.5874421 | I144: 0 | J144: 1.94576994 | K144: 10.76433757 | L144: 4.236702504 | M144: FOXL1
A145: ENSG00000272695 | B145: -0.858078733 | C145: 0.619894038 | D145: 0.999469618 | E145: 1.226560625 | F145: 18.01136829 | G145: 3.053827013 | H145: 7.430585308 | I145: 12.76659401 | J145: 0 | K145: 0 | L145: 4.255531337 | M145: GAS6-AS2
A146: ENSG00000148082 | B146: -2.656620047 | C146: 0.01357062 | D146: 0.999469618 | E146: 17.17184875 | F146: 56.17104686 | G146: 10.17942338 | H146: 27.840773 | I146: 0 | J146: 9.728849702 | K146: 3.07552502 | L146: 4.268124908 | M146: SHC3
A147: ENSG00000159055 | B147: -1.95618945 | C147: 0.079761423 | D147: 0.999469618 | E147: 28.21089438 | F147: 10.07415514 | G147: 14.25119273 | H147: 17.51208075 | I147: 0 | J147: 9.728849702 | K147: 3.07552502 | L147: 4.268124908 | M147: MIS18A
A148: ENSG00000250462 | B148: -1.498805925 | C148: 0.200431013 | D148: 0.999469618 | E148: 12.26560625 | F148: 11.29526486 | G148: 14.25119273 | H148: 12.60402128 | I148: 0 | J148: 9.728849702 | K148: 3.07552502 | L148: 4.268124908 | M148: LRRC37BP1
A149: ENSG00000169629 | B149: -0.672950767 | C149: 0.653046393 | D149: 0.999469618 | E149: 0 | F149: 15.87442629 | G149: 4.071769351 | H149: 6.648731879 | I149: 1.418510446 | J149: 6.810194792 | K149: 4.613287531 | L149: 4.280664256 | M149: RGPD8
A150: ENSG00000215067 | B150: -2.670521654 | C150: 0.012050419 | D150: 0.999469618 | E150: 35.57025813 | F150: 17.70609086 | G150: 26.46650078 | H150: 26.58094992 | I150: 11.34808357 | J150: 0 | K150: 1.53776251 | L150: 4.295282025 | M150: ALOX12-AS1
A151: ENSG00000126950 | B151: -1.068884337 | C151: 0.417568878 | D151: 0.999469618 | E151: 13.49216688 | F151: 11.90581971 | G151: 2.035884676 | H151: 9.144623755 | I151: 7.092552229 | J151: 5.837309821 | K151: 0 | L151: 4.309954017 | M151: TMEM35A
A152: ENSG00000141499 | B152: -1.391295053 | C152: 0.269753441 | D152: 0.999469618 | E152: 2.45312125 | F152: 13.43220686 | G152: 18.32296208 | H152: 11.4027634 | I152: 7.092552229 | J152: 5.837309821 | K152: 0 | L152: 4.309954017 | M152: WRAP53
A153: ENSG00000166133 | B153: -1.584243253 | C153: 0.136035364 | D153: 0.999469618 | E153: 15.94528813 | F153: 9.768877714 | G153: 13.23325039 | H153: 12.98247208 | I153: 8.511062674 | J153: 2.918654911 | K153: 1.53776251 | L153: 4.322493365 | M153: RPUSD2
A154: ENSG00000272768 | B154: -0.290679271 | C154: 0.882326675 | D154: 0.999469618 | E154: 0 | F154: 15.56914886 | G154: 0 | H154: 5.189716286 | I154: 4.255531337 | J154: 8.755964732 | K154: 0 | L154: 4.337165356 | M154: AC004854.2
A155: ENSG00000279821 | B155: -1.52834732 | C155: 0.315258631 | D155: 0.999469618 | E155: 0 | F155: 25.33802657 | G155: 13.23325039 | H155: 12.85709232 | I155: 1.418510446 | J155: 11.67461964 | K155: 0 | L155: 4.364376696 | M155: AC145098.2
A156: ENSG00000119782 | B156: -1.373322865 | C156: 0.244591946 | D156: 0.999469618 | E156: 11.03904563 | F156: 10.37943257 | G156: 12.21530805 | H156: 11.21126208 | I156: 0 | J156: 3.891539881 | K156: 9.226575061 | L156: 4.372704981 | M156: FKBP1B
A157: ENSG00000273802 | B157: -0.811902505 | C157: 0.617505433 | D157: 0.999469618 | E157: 4.9062425 | F157: 17.40081343 | G157: 0 | H157: 7.43568531 | I157: 0 | J157: 3.891539881 | K157: 9.226575061 | L157: 4.372704981 | M157: HIST1H2BG
A158: ENSG00000161980 | B158: -1.508554307 | C158: 0.206729631 | D158: 0.999469618 | E158: 14.7187275 | F158: 10.37943257 | G158: 11.19736572 | H158: 12.0985086 | I158: 8.511062674 | J158: 0 | K158: 4.613287531 | L158: 4.374783402 | M158: POLR3K
A159: ENSG00000226445 | B159: -1.790269865 | C159: 0.152552173 | D159: 0.999469618 | E159: 6.132803125 | F159: 29.917188 | G159: 7.125596365 | H159: 14.3918625 | I159: 8.511062674 | J159: 0 | K159: 4.613287531 | L159: 4.374783402 | M159: BX322234.1
A160: ENSG00000279118 | B160: -0.914112421 | C160: 0.46351912 | D160: 0.999469618 | E160: 1.226560625 | F160: 14.04276171 | G160: 9.16148104 | H160: 8.143601127 | I160: 4.255531337 | J160: 5.837309821 | K160: 3.07552502 | L160: 4.389455393 | M160: AC093535.2
A161: ENSG00000233184 | B161: -0.486803217 | C161: 0.775086822 | D161: 0.999469618 | E161: 0 | F161: 13.43220686 | G161: 5.089711689 | H161: 6.173972849 | I161: 0 | J161: 11.67461964 | K161: 1.53776251 | L161: 4.404127384 | M161: AC093157.1
A162: ENSG00000197182 | B162: -0.992697878 | C162: 0.488574423 | D162: 0.999469618 | E162: 1.226560625 | F162: 13.43220686 | G162: 11.19736572 | H162: 8.618711066 | I162: 11.34808357 | J162: 1.94576994 | K162: 0 | L162: 4.431284502 | M162: MIRLET7BHG
A163: ENSG00000123977 | B163: -1.881646324 | C163: 0.143366992 | D163: 0.999469618 | E163: 24.5312125 | F163: 1.221109714 | G163: 25.44855845 | H163: 17.06696022 | I163: 0 | J163: 8.755964732 | K163: 4.613287531 | L163: 4.456417421 | M163: DAW1
A164: ENSG00000232677 | B164: -2.382307087 | C164: 0.031696939 | D164: 0.999469618 | E164: 15.94528813 | F164: 6.716103429 | G164: 49.87917455 | H164: 24.1801887 | I164: 0 | J164: 8.755964732 | K164: 4.613287531 | L164: 4.456417421 | M164: LINC00665
A165: ENSG00000264538 | B165: -1.11823876 | C165: 0.350312987 | D165: 0.999469618 | E165: 9.812485001 | F165: 15.56914886 | G165: 3.053827013 | H165: 9.478486957 | I165: 8.511062674 | J165: 1.94576994 | K165: 3.07552502 | L165: 4.510785878 | M165: SUZ12P1
A166: ENSG00000159217 | B166: -1.194232744 | C166: 0.490753861 | D166: 0.999469618 | E166: 0 | F166: 23.506362 | G166: 8.143538703 | H166: 10.5499669 | I166: 0 | J166: 13.62038958 | K166: 0 | L166: 4.540129861 | M166: IGF2BP1
A167: ENSG00000162999 | B167: -0.947003743 | C167: 0.516618753 | D167: 0.999469618 | E167: 9.812485001 | F167: 9.463600286 | G167: 8.143538703 | H167: 9.139874663 | I167: 0 | J167: 13.62038958 | K167: 0 | L167: 4.540129861 | M167: DUSP19
A168: ENSG00000247095 | B168: -2.230538499 | C168: 0.110821387 | D168: 0.999469618 | E168: 1.226560625 | F168: 39.68606571 | G168: 25.44855845 | H168: 22.12039493 | I168: 0 | J168: 13.62038958 | K168: 0 | L168: 4.540129861 | M168: MIR210HG
A169: ENSG00000234380 | B169: -1.179077528 | C169: 0.310337058 | D169: 0.999469618 | E169: 6.132803125 | F169: 18.31664571 | G169: 5.089711689 | H169: 9.846386843 | I169: 7.092552229 | J169: 1.94576994 | K169: 4.613287531 | L169: 4.550536567 | M169: LINC01426
A170: ENSG00000151014 | B170: -2.253450833 | C170: 0.027544278 | D170: 0.999469618 | E170: 19.62497 | F170: 20.45358771 | G170: 23.41267377 | H170: 21.16374383 | I170: 0 | J170: 2.918654911 | K170: 10.76433757 | L170: 4.560997494 | M170: NOCT
A171: ENSG00000163462 | B171: -0.871317375 | C171: 0.577052169 | D171: 0.999469618 | E171: 0 | F171: 13.12692943 | G171: 11.19736572 | H171: 8.108098382 | I171: 0 | J171: 2.918654911 | K171: 10.76433757 | L171: 4.560997494 | M171: TRIM46
A172: ENSG00000270015 | B172: -2.187677764 | C172: 0.017426101 | D172: 0.999469618 | E172: 35.57025813 | F172: 13.73748429 | G172: 14.25119273 | H172: 21.18631171 | I172: 4.255531337 | J172: 4.864424851 | K172: 4.613287531 | L172: 4.577747906 | M172: AC087481.3
A173: ENSG00000169914 | B173: -2.203996375 | C173: 0.030108186 | D173: 0.999469618 | E173: 30.66401563 | F173: 13.43220686 | G173: 20.35884676 | H173: 21.48502308 | I173: 9.92957312 | J173: 3.891539881 | K173: 0 | L173: 4.607037667 | M173: OTUD3
A174: ENSG00000160352 | B174: -1.35635527 | C174: 0.213172855 | D174: 0.999469618 | E174: 18.39840938 | F174: 10.37943257 | G174: 6.107654027 | H174: 11.62849866 | I174: 4.255531337 | J174: 1.94576994 | K174: 7.688812551 | L174: 4.630037943 | M174: ZNF714
A175: ENSG00000162490 | B175: -0.973553233 | C175: 0.44523882 | D175: 0.999469618 | E175: 11.03904563 | F175: 13.43220686 | G175: 3.053827013 | H175: 9.175026499 | I175: 7.092552229 | J175: 6.810194792 | K175: 0 | L175: 4.634249007 | M175: DRAXIN
A176: ENSG00000166321 | B176: -1.194054129 | C176: 0.305280385 | D176: 0.999469618 | E176: 14.7187275 | F176: 8.853045429 | G176: 9.16148104 | H176: 10.91108466 | I176: 7.092552229 | J176: 6.810194792 | K176: 0 | L176: 4.634249007 | M176: NUDT13
A177: ENSG00000166922 | B177: -0.562530821 | C177: 0.736125275 | D177: 0.999469618 | E177: 0 | F177: 18.01136829 | G177: 2.035884676 | H177: 6.682417654 | I177: 0 | J177: 7.783079762 | K177: 6.151050041 | L177: 4.644709934 | M177: SCG5
A178: ENSG00000171448 | B178: -1.746349763 | C178: 0.129111416 | D178: 0.999469618 | E178: 31.89057625 | F178: 8.242490572 | G178: 8.143538703 | H178: 16.09220184 | I178: 0 | J178: 7.783079762 | K178: 6.151050041 | L178: 4.644709934 | M178: ZBTB26
A179: ENSG00000179909 | B179: -1.422564051 | C179: 0.352874659 | D179: 0.999469618 | E179: 4.9062425 | F179: 32.05413 | G179: 0 | H179: 12.32012417 | I179: 0 | J179: 7.783079762 | K179: 6.151050041 | L179: 4.644709934 | M179: ZNF154
A180: ENSG00000283103 | B180: -1.074981716 | C180: 0.344247813 | D180: 0.999469618 | E180: 4.9062425 | F180: 12.821652 | G180: 11.19736572 | H180: 9.641753406 | I180: 1.418510446 | J180: 4.864424851 | K180: 7.688812551 | L180: 4.657249283 | M180: AC010642.2
A181: ENSG00000135643 | B181: -1.608565425 | C181: 0.262405884 | D181: 0.999469618 | E181: 0 | F181: 30.83302029 | G181: 12.21530805 | H181: 14.34944278 | I181: 4.255531337 | J181: 9.728849702 | K181: 0 | L181: 4.661460346 | M181: KCNMB4
A182: ENSG00000184838 | B182: -0.873843756 | C182: 0.486067749 | D182: 0.999469618 | E182: 6.132803125 | F182: 10.98998743 | G182: 9.16148104 | H182: 8.761423865 | I182: 4.255531337 | J182: 9.728849702 | K182: 0 | L182: 4.661460346 | M182: PRR16
A183: ENSG00000206195 | B183: -1.573621556 | C183: 0.16825749 | D183: 0.999469618 | E183: 14.7187275 | F183: 21.06414257 | G183: 7.125596365 | H183: 14.30282215 | I183: 4.255531337 | J183: 9.728849702 | K183: 0 | L183: 4.661460346 | M183: DUXAP8
A184: ENSG00000169933 | B184: -0.631063419 | C184: 0.666917253 | D184: 0.999469618 | E184: 0 | F184: 17.095536 | G184: 4.071769351 | H184: 7.05576845 | I184: 5.674041783 | J184: 6.810194792 | K184: 1.53776251 | L184: 4.673999695 | M184: FRMPD4
A185: ENSG00000241014 | B185: -1.122946074 | C185: 0.348222171 | D185: 0.999469618 | E185: 8.585924376 | F185: 11.60054229 | G185: 10.17942338 | H185: 10.12196335 | I185: 0 | J185: 4.864424851 | K185: 9.226575061 | L185: 4.696999971 | M185: AC114490.1
A186: ENSG00000114859 | B186: -1.482058465 | C186: 0.286998783 | D186: 0.999469618 | E186: 18.39840938 | F186: 12.51637457 | G186: 8.143538703 | H186: 13.01944088 | I186: 14.18510446 | J186: 0 | K186: 0 | L186: 4.728368152 | M186: CLCN2
A187: ENSG00000167034 | B187: -1.492509587 | C187: 0.222520009 | D187: 0.999469618 | E187: 7.359363751 | F187: 18.01136829 | G187: 13.23325039 | H187: 12.86799414 | I187: 0 | J187: 1.94576994 | K187: 12.30210008 | L187: 4.749290007 | M187: NKX3-1
A188: ENSG00000267023 | B188: -2.246339206 | C188: 0.036411816 | D188: 0.999469618 | E188: 30.66401563 | F188: 13.73748429 | G188: 21.37678909 | H188: 21.92609634 | I188: 0 | J188: 1.94576994 | K188: 12.30210008 | L188: 4.749290007 | M188: LRRC37A16P
A189: ENSG00000170325 | B189: -1.628394399 | C189: 0.092451599 | D189: 0.999469618 | E189: 20.85153063 | F189: 12.21109714 | G189: 12.21530805 | H189: 15.09264527 | I189: 2.837020891 | J189: 6.810194792 | K189: 4.613287531 | L189: 4.753501071 | M189: PRDM10
A190: ENSG00000167264 | B190: -1.727007453 | C190: 0.130347786 | D190: 0.999469618 | E190: 7.359363751 | F190: 18.01136829 | G190: 21.37678909 | H190: 15.58250704 | I190: 11.34808357 | J190: 2.918654911 | K190: 0 | L190: 4.755579492 | M190: DUS2
A191: ENSG00000272779 | B191: -1.159821678 | C191: 0.444039702 | D191: 0.999469618 | E191: 19.62497 | F191: 12.21109714 | G191: 0 | H191: 10.61202238 | I191: 11.34808357 | J191: 2.918654911 | K191: 0 | L191: 4.755579492 | M191: AC245060.4
A192: ENSG00000279030 | B192: -1.35744008 | C192: 0.357042849 | D192: 0.999469618 | E192: 0 | F192: 21.67469743 | G192: 14.25119273 | H192: 11.97529672 | I192: 11.34808357 | J192: 2.918654911 | K192: 0 | L192: 4.755579492 | M192: AC007336.3
A193: ENSG00000099625 | B193: -1.44805777 | C193: 0.188816784 | D193: 0.999469618 | E193: 13.49216688 | F193: 11.29526486 | G193: 15.26913507 | H193: 13.35218893 | I193: 0 | J193: 6.810194792 | K193: 7.688812551 | L193: 4.833002448 | M193: CBARP
A194: ENSG00000138336 | B194: -1.269604521 | C194: 0.292706224 | D194: 0.999469618 | E194: 14.7187275 | F194: 16.17970371 | G194: 4.071769351 | H194: 11.65673352 | I194: 0 | J194: 6.810194792 | K194: 7.688812551 | L194: 4.833002448 | M194: TET1
A195: ENSG00000280789 | B195: -0.939291698 | C195: 0.468472431 | D195: 0.999469618 | E195: 2.45312125 | F195: 10.07415514 | G195: 15.26913507 | H195: 9.265470487 | I195: 0 | J195: 6.810194792 | K195: 7.688812551 | L195: 4.833002448 | M195: PAGR1
A196: ENSG00000171877 | B196: -1.756581169 | C196: 0.117196835 | D196: 0.999469618 | E196: 26.98433375 | F196: 15.56914886 | G196: 9.16148104 | H196: 17.23832122 | I196: 2.837020891 | J196: 11.67461964 | K196: 0 | L196: 4.837213511 | M196: FRMD5
A197: ENSG00000134864 | B197: -1.448805054 | C197: 0.197786423 | D197: 0.999469618 | E197: 25.75777313 | F197: 8.853045429 | G197: 5.089711689 | H197: 13.23351008 | I197: 1.418510446 | J197: 3.891539881 | K197: 9.226575061 | L197: 4.845541796 | M197: GGACT
A198: ENSG00000172346 | B198: -1.278093143 | C198: 0.401634815 | D198: 0.999469618 | E198: 0 | F198: 33.88579457 | G198: 1.017942338 | H198: 11.63457897 | I198: 4.255531337 | J198: 8.755964732 | K198: 1.53776251 | L198: 4.84975286 | M198: CSDC2
A199: ENSG00000178295 | B199: -1.538743382 | C199: 0.180072231 | D199: 0.999469618 | E199: 4.9062425 | F199: 20.14831029 | G199: 15.26913507 | H199: 13.44122928 | I199: 2.837020891 | J199: 0.97288497 | K199: 10.76433757 | L199: 4.858081144 | M199: GEN1
A200: ENSG00000180423 | B200: -1.121838769 | C200: 0.434071822 | D200: 0.999469618 | E200: 12.26560625 | F200: 15.56914886 | G200: 5.089711689 | H200: 10.97482227 | I200: 0 | J200: 14.59327455 | K200: 0 | L200: 4.864424851 | M200: HARBI1
A201: ENSG00000204516 | B201: -1.218051857 | C201: 0.413745091 | D201: 0.999469618 | E201: 14.7187275 | F201: 18.31664571 | G201: 2.035884676 | H201: 11.6904193 | I201: 0 | J201: 14.59327455 | K201: 0 | L201: 4.864424851 | M201: MICB
... 4299 more rows

Sheet 6B - C IL1B
A1: Figure 6B-C
A2: IL-1B Changes
A4: ID | B4: log2FoldChange | C4: pvalue | D4: padj | E4: hVCF-IL1B-557-CD4 | F4: hVCF-IL1B-282-CD4 | G4: hVCF-IL1B-202-CD4 | H4: Avg IL1B CD4+ | I4: hVCF-IL1B-282-CD4- | J4: hVCF-IL1B-557-CD4- | K4: hVCF-IL1B-202-CD4- | L4: Avg IL1B CD4- | M4: Gene.name | N4: minus log2 adj p value
A5: ENSG00000061492 | B5: -6.392186389 | C5: NA | D5: NA | E5: 0 | F5: 47.44627152 | G5: 0 | H5: 15.81542384 | I5: 0 | J5: 0 | K5: 0 | L5: 0 | M5: WNT8A
A6: ENSG00000087510 | B6: -6.54493176 | C6: 0.08184096 | D6: 0.999871378 | E6: 7.341271798 | F6: 45.44149948 | G6: 0 | H6: 17.59425709 | I6: 0 | J6: 0 | K6: 0 | L6: 0 | M6: TFAP2C | N6: 0.000185574
A7: ENSG00000092377 | B7: -6.471120639 | C7: NA | D7: NA | E7: 0 | F7: 50.1193009 | G7: 0 | H7: 16.70643363 | I7: 0 | J7: 0 | K7: 0 | L7: 0 | M7: TBL1Y
A8: ENSG00000100218 | B8: -7.461201789 | C8: 0.001522352 | D8: 0.263461178 | E8: 70.47620926 | F8: 9.355602835 | G8: 20.17242434 | H8: 33.33474548 | I8: 0 | J8: 0 | K8: 0 | L8: 0 | M8: RSPH14 | N8: 1.924337704
A9: ENSG00000100314 | B9: -7.272494615 | C9: 0.001698234 | D9: 0.267805336 | E9: 45.51588515 | F9: 23.38900709 | G9: 18.73153689 | H9: 29.21214304 | I9: 0 | J9: 0 | K9: 0 | L9: 0 | M9: CABP7 | N9: 1.900743388
A10: ENSG00000100665 | B10: -7.30633345 | C10: 0.022936347 | D10: 0.956382114 | E10: 57.26192002 | F10: 0 | G10: 32.41996769 | H10: 29.89396257 | I10: 0 | J10: 0 | K10: 0 | L10: 0 | M10: SERPINA4 | N10: 0.064340945
A11: ENSG00000102924 | B11: -6.897028841 | C11: 0.006545832 | D11: 0.507977307 | E11: 11.74603488 | F11: 35.4176393 | G11: 20.17242434 | H11: 22.44536617 | I11: 0 | J11: 0 | K11: 0 | L11: 0 | M11: CBLN1 | N11: 0.977164046
A12: ENSG00000103310 | B12: -6.402485905 | C12: 0.087850565 | D12: 0.999871378 | E12: 0 | F12: 15.36991894 | G12: 32.41996769 | H12: 15.92996221 | I12: 0 | J12: 0 | K12: 0 | L12: 0 | M12: ZP2 | N12: 0.000185574
A13: ENSG00000105352 | B13: -22.32439241 | C13: NA | D13: NA | E13: 149.7619447 | F13: 0 | G13: 0 | H13: 49.92064822 | I13: 0 | J13: 0 | K13: 0 | L13: 0 | M13: CEACAM4
A14: ENSG00000105427 | B14: -6.614022105 | C14: 0.013168346 | D14: 0.742318029 | E14: 17.61905231 | F14: 23.38900709 | G14: 14.40887453 | H14: 18.47231131 | I14: 0 | J14: 0 | K14: 0 | L14: 0 | M14: CNFN | N14: 0.429890686
A15: ENSG00000106304 | B15: -7.363721595 | C15: 0.020125986 | D15: 0.896546208 | E15: 41.11112207 | F15: 52.12407294 | G15: 0 | H15: 31.07839834 | I15: 0 | J15: 0 | K15: 0 | L15: 0 | M15: SPAM1 | N15: 0.157550153
A16: ENSG00000110195 | B16: -7.001808605 | C16: 0.034637761 | D16: 0.999871378 | E16: 0 | F16: 41.43195541 | G16: 30.97908024 | H16: 24.13701188 | I16: 0 | J16: 0 | K16: 0 | L16: 0 | M16: FOLR1 | N16: 0.000185574
A17: ENSG00000114771 | B17: -6.411670455 | C17: 0.085889413 | D17: 0.999871378 | E17: 0 | F17: 20.71597771 | G17: 27.37686161 | H17: 16.03094644 | I17: 0 | J17: 0 | K17: 0 | L17: 0 | M17: AADAC | N17: 0.000185574
A18: ENSG00000115616 | B18: -6.860318764 | C18: 0.013638946 | D18: 0.753455438 | E18: 32.30159591 | F18: 32.07635258 | G18: 1.440887453 | H18: 21.93961198 | I18: 0 | J18: 0 | K18: 0 | L18: 0 | M18: SLC9A2 | N18: 0.408405907
A19: ENSG00000116031 | B19: -7.127375781 | C19: 0.003054813 | D19: 0.345041512 | E19: 44.04763079 | F19: 19.37946302 | G19: 15.84976198 | H19: 26.4256186 | I19: 0 | J19: 0 | K19: 0 | L19: 0 | M19: CD207 | N19: 1.535158152
A20: ENSG00000120075 | B20: -7.114784022 | C20: 0.004041476 | D20: 0.389335526 | E20: 7.341271798 | F20: 32.74460992 | G20: 38.18351751 | H20: 26.08979974 | I20: 0 | J20: 0 | K20: 0 | L20: 0 | M20: HOXB5 | N20: 1.360914101
A21: ENSG00000120094 | B21: -7.443371343 | C21: 0.018747421 | D21: 0.870842191 | E21: 79.28573542 | F21: 19.37946302 | G21: 0 | H21: 32.88839948 | I21: 0 | J21: 0 | K21: 0 | L21: 0 | M21: HOXB1 | N21: 0.199516789
A22: ENSG00000125815 | B22: -8.107364991 | C22: NA | D22: NA | E22: 155.6349621 | F22: 0.668257345 | G22: 0 | H22: 52.10107315 | I22: 0 | J22: 0 | K22: 0 | L22: 0 | M22: CST8
A23: ENSG00000125850 | B23: -7.639227805 | C23: 0.001459067 | D23: 0.258543604 | E23: 88.09526157 | F23: 20.71597771 | G23: 4.322662359 | H23: 37.71130055 | I23: 0 | J23: 0 | K23: 0 | L23: 0 | M23: OVOL2 | N23: 1.95152048
A24: ENSG00000125895 | B24: -7.425145317 | C24: 0.002628199 | D24: 0.32300241 | E24: 77.81748106 | F24: 5.346058763 | G24: 14.40887453 | H24: 32.52413812 | I24: 0 | J24: 0 | K24: 0 | L24: 0 | M24: TMEM74B | N24: 1.630383166
A25: ENSG00000125997 | B25: -7.394952178 | C25: 0.02349455 | D25: 0.97137298 | E25: 88.09526157 | F25: 7.350830799 | G25: 0 | H25: 31.81536412 | I25: 0 | J25: 0 | K25: 0 | L25: 0 | M25: BPIFB9P | N25: 0.041902738
A26: ENSG00000126337 | B26: -7.108012518 | C26: 0.033873502 | D26: 0.999871378 | E26: 60.19842874 | F26: 0 | G26: 18.01109316 | H26: 26.06984063 | I26: 0 | J26: 0 | K26: 0 | L26: 0 | M26: KRT36 | N26: 0.000185574
A27: ENSG00000126890 | B27: -7.118503302 | C27: 0.032008381 | D27: 0.999871378 | E27: 49.92064822 | F27: 0 | G27: 28.81774906 | H27: 26.24613243 | I27: 0 | J27: 0 | K27: 0 | L27: 0 | M27: CTAG2 | N27: 0.000185574
A28: ENSG00000132259 | B28: -21.75436604 | C28: 2.63E-08 | D28: 4.57E-05 | E28: 98.37304209 | F28: 0 | G28: 0 | H28: 32.79101403 | I28: 0 | J28: 0 | K28: 0 | L28: 0 | M28: CNGA4 | N28: 14.41744631
A29: ENSG00000133317 | B29: -8.025755103 | C29: 8.11E-05 | D29: 0.030404707 | E29: 38.17461335 | F29: 22.0524924 | G29: 87.17369091 | H29: 49.13359888 | I29: 0 | J29: 0 | K29: 0 | L29: 0 | M29: LGALS12 | N29: 5.039561503
A30: ENSG00000134398 | B30: -7.660135921 | C30: 0.013399564 | D30: 0.744437169 | E30: 101.3095508 | F30: 13.36514691 | G30: 0 | H30: 38.22489924 | I30: 0 | J30: 0 | K30: 0 | L30: 0 | M30: ERN2 | N30: 0.425778005
A31: ENSG00000135114 | B31: -7.741689794 | C31: 0.000327974 | D31: 0.106897608 | E31: 76.3492267 | F31: 22.72074974 | G31: 22.33375552 | H31: 40.46791065 | I31: 0 | J31: 0 | K31: 0 | L31: 0 | M31: OASL | N31: 3.225698524
A32: ENSG00000135409 | B32: -6.402129762 | C32: 0.094531248 | D32: 0.999871378 | E32: 11.74603488 | F32: 36.08589665 | G32: 0 | H32: 15.94397718 | I32: 0 | J32: 0 | K32: 0 | L32: 0 | M32: AMHR2 | N32: 0.000185574
A33: ENSG00000142698 | B33: -6.546960389 | C33: 0.071050001 | D33: 0.999871378 | E33: 0 | F33: 24.72552178 | G33: 28.09730533 | H33: 17.60760904 | I33: 0 | J33: 0 | K33: 0 | L33: 0 | M33: C1orf94 | N33: 0.000185574
A34: ENSG00000147256 | B34: -6.485677743 | C34: 0.019728558 | D34: 0.888967002 | E34: 14.6825436 | F34: 9.355602835 | G34: 26.65641788 | H34: 16.8981881 | I34: 0 | J34: 0 | K34: 0 | L34: 0 | M34: ARHGAP36 | N34: 0.169798227
A35: ENSG00000149654 | B35: -6.275891334 | C35: 0.102366294 | D35: 0.999871378 | E35: 0 | F35: 20.71597771 | G35: 23.05419925 | H35: 14.59005898 | I35: 0 | J35: 0 | K35: 0 | L35: 0 | M35: CDH22 | N35: 0.000185574
A36: ENSG00000152969 | B36: -7.048350052 | C36: 0.003609454 | D36: 0.379497192 | E36: 35.23810463 | F36: 16.70643363 | G36: 23.05419925 | H36: 24.99957917 | I36: 0 | J36: 0 | K36: 0 | L36: 0 | M36: JAKMIP1 | N36: 1.397838884
A37: ENSG00000156127 | B37: -7.754091439 | C37: 0.000472234 | D37: 0.133227226 | E37: 79.28573542 | F37: 10.02386018 | G37: 33.14041142 | H37: 40.81666901 | I37: 0 | J37: 0 | K37: 0 | L37: 0 | M37: BATF | N37: 2.908039157
A38: ENSG00000157060 | B38: -6.61680414 | C38: 0.064145309 | D38: 0.999871378 | E38: 0 | F38: 28.0668085 | G38: 27.37686161 | H38: 18.48122337 | I38: 0 | J38: 0 | K38: 0 | L38: 0 | M38: SHCBP1L | N38: 0.000185574
A39: ENSG00000158481 | B39: -7.454245857 | C39: 0.00068048 | D39: 0.157356151 | E39: 33.76985027 | F39: 38.09066869 | G39: 27.37686161 | H39: 33.07912685 | I39: 0 | J39: 0 | K39: 0 | L39: 0 | M39: CD1C | N39: 2.667894521
A40: ENSG00000160505 | B40: -6.684253932 | C40: 0.062671233 | D40: 0.999871378 | E40: 0 | F40: 49.45104356 | G40: 8.645324718 | H40: 19.36545609 | I40: 0 | J40: 0 | K40: 0 | L40: 0 | M40: NLRP4 | N40: 0.000185574
A41: ENSG00000163216 | B41: -6.9885818 | C41: 0.039510147 | D41: 0.999871378 | E41: 30.83334155 | F41: 0 | G41: 41.06529241 | H41: 23.96621132 | I41: 0 | J41: 0 | K41: 0 | L41: 0 | M41: SPRR2D | N41: 0.000185574
A42: ENSG00000163568 | B42: -8.060063064 | C42: 0.005503569 | D42: 0.457990643 | E42: 129.2063836 | F42: 22.0524924 | G42: 0 | H42: 50.41962535 | I42: 0 | J42: 0 | K42: 0 | L42: 0 | M42: AIM2 | N42: 1.126609971
A43: ENSG00000163600 | B43: -7.388176472 | C43: 0.020225269 | D43: 0.896882892 | E43: 69.0079549 | F43: 0 | G43: 25.93597415 | H43: 31.64797635 | I43: 0 | J43: 0 | K43: 0 | L43: 0 | M43: ICOS | N43: 0.157008473
A44: ENSG00000163746 | B44: -7.632656546 | C44: 0.016518111 | D44: 0.813672982 | E44: 107.1825682 | F44: 5.346058763 | G44: 0 | H44: 37.50954234 | I44: 0 | J44: 0 | K44: 0 | L44: 0 | M44: PLSCR2 | N44: 0.297479008
A45: ENSG00000164458 | B45: -6.599481279 | C45: 0.066681254 | D45: 0.999871378 | E45: 0 | F45: 18.04294832 | G45: 36.74263005 | H45: 18.26185946 | I45: 0 | J45: 0 | K45: 0 | L45: 0 | M45: TBXT | N45: 0.000185574
A46: ENSG00000164729 | B46: -7.258397334 | C46: 0.025708389 | D46: 0.999871378 | E46: 66.07144618 | F46: 20.71597771 | G46: 0 | H46: 28.9291413 | I46: 0 | J46: 0 | K46: 0 | L46: 0 | M46: SLC35G3 | N46: 0.000185574
A47: ENSG00000164744 | B47: -7.30991458 | C47: 0.025641751 | D47: 0.999871378 | E47: 79.28573542 | F47: 10.69211753 | G47: 0 | H47: 29.99261765 | I47: 0 | J47: 0 | K47: 0 | L47: 0 | M47: SUN3 | N47: 0.000185574
A48: ENSG00000166763 | B48: -6.963641169 | C48: 0.04143164 | D48: 0.999871378 | E48: 45.51588515 | F48: 0 | G48: 25.21553043 | H48: 23.57713852 | I48: 0 | J48: 0 | K48: 0 | L48: 0 | M48: STRCP1 | N48: 0.000185574
A49: ENSG00000166828 | B49: -7.519287816 | C49: 0.016610142 | D49: 0.814105111 | E49: 86.62700721 | F49: 17.37469098 | G49: 0 | H49: 34.66723273 | I49: 0 | J49: 0 | K49: 0 | L49: 0 | M49: SCNN1G | N49: 0.296713019
A50: ENSG00000167780 | B50: -6.883516488 | C50: 0.009379133 | D50: 0.622601849 | E50: 5.873017438 | F50: 14.7016616 | G50: 46.1083985 | H50: 22.22769251 | I50: 0 | J50: 0 | K50: 0 | L50: 0 | M50: SOAT2 | N50: 0.683618234
A51: ENSG00000167916 | B51: -7.520494882 | C51: 0.000612268 | D51: 0.148445744 | E51: 41.11112207 | F51: 44.10498479 | G51: 18.73153689 | H51: 34.64921458 | I51: 0 | J51: 0 | K51: 0 | L51: 0 | M51: KRT24 | N51: 2.751992364
A52: ENSG00000168263 | B52: -6.312352439 | C52: 0.100265279 | D52: 0.999871378 | E52: 0 | F52: 34.08112461 | G52: 10.8066559 | H52: 14.9625935 | I52: 0 | J52: 0 | K52: 0 | L52: 0 | M52: KCNV2 | N52: 0.000185574
A53: ENSG00000168367 | B53: -6.739218153 | C53: 0.009214812 | D53: 0.622214487 | E53: 24.96032411 | F53: 15.36991894 | G53: 20.17242434 | H53: 20.1675558 | I53: 0 | J53: 0 | K53: 0 | L53: 0 | M53: LINC00917 | N53: 0.684516109
A54: ENSG00000168634 | B54: -21.68460488 | C54: 2.91E-08 | D54: 4.57E-05 | E54: 93.96827901 | F54: 0 | G54: 0 | H54: 31.32275967 | I54: 0 | J54: 0 | K54: 0 | L54: 0 | M54: WFDC13 | N54: 14.41744631
A55: ENSG00000168995 | B55: -7.666279193 | C55: 0.000479506 | D55: 0.133227226 | E55: 73.41271798 | F55: 18.04294832 | G55: 23.77464297 | H55: 38.41010309 | I55: 0 | J55: 0 | K55: 0 | L55: 0 | M55: SIGLEC7 | N55: 2.908039157
A56: ENSG00000169248 | B56: -6.220044675 | C56: 0.111907153 | D56: 0.999871378 | E56: 0 | F56: 42.10021276 | G56: 0 | H56: 14.03340425 | I56: 0 | J56: 0 | K56: 0 | L56: 0 | M56: CXCL11 | N56: 0.000185574
A57: ENSG00000169469 | B57: -7.617289983 | C57: 0.000586252 | D57: 0.148445744 | E57: 67.53970054 | F57: 29.4033232 | G57: 14.40887453 | H57: 37.11729942 | I57: 0 | J57: 0 | K57: 0 | L57: 0 | M57: SPRR1B | N57: 2.751992364
A58: ENSG00000171804 | B58: -6.491157753 | C58: 0.076946814 | D58: 0.999871378 | E58: 0 | F58: 22.72074974 | G58: 28.09730533 | H58: 16.93935169 | I58: 0 | J58: 0 | K58: 0 | L58: 0 | M58: WDR87 | N58: 0.000185574
A59: ENSG00000173572 | B59: -7.491105167 | C59: 0.017806696 | D59: 0.851412563 | E59: 86.62700721 | F59: 15.36991894 | G59: 0 | H59: 33.99897539 | I59: 0 | J59: 0 | K59: 0 | L59: 0 | M59: NLRP13 | N59: 0.232069717
A60: ENSG00000175699 | B60: -21.16445306 | C60: 6.17E-08 | D60: 4.57E-05 | E60: 96.90478773 | F60: 0 | G60: 0 | H60: 32.30159591 | I60: 0 | J60: 0 | K60: 0 | L60: 0 | M60: CCDC197 | N60: 14.41744631
A61: ENSG00000175857 | B61: -7.161682312 | C61: 0.006211814 | D61: 0.497164062 | E61: 54.3254113 | F61: 24.72552178 | G61: 2.16133118 | H61: 27.07075475 | I61: 0 | J61: 0 | K61: 0 | L61: 0 | M61: GAPT | N61: 1.008206081
A62: ENSG00000176075 | B62: -7.101687529 | C62: 0.033213865 | D62: 0.999871378 | E62: 55.79366566 | F62: 22.0524924 | G62: 0 | H62: 25.94871935 | I62: 0 | J62: 0 | K62: 0 | L62: 0 | M62: LINC00302 | N62: 0.000185574
A63: ENSG00000176769 | B63: -7.250720811 | C63: 0.027520085 | D63: 0.999871378 | E63: 71.94446362 | F63: 0 | G63: 14.40887453 | H63: 28.78444605 | I63: 0 | J63: 0 | K63: 0 | L63: 0 | M63: TCERG1L | N63: 0.000185574
A64: ENSG00000177596 | B64: -21.9816755 | C64: 1.87E-08 | D64: 4.57E-05 | E64: 115.9920944 | F64: 0 | G64: 0 | H64: 38.66403147 | I64: 0 | J64: 0 | K64: 0 | L64: 0 | M64: AL355390.1 | N64: 14.41744631
A65: ENSG00000177699 | B65: -21.75436604 | C65: 2.63E-08 | D65: 4.57E-05 | E65: 98.37304209 | F65: 0 | G65: 0 | H65: 32.79101403 | I65: 0 | J65: 0 | K65: 0 | L65: 0 | M65: AC011944.1 | N65: 14.41744631
A66: ENSG00000178084 | B66: -6.197239349 | C66: 0.1132365 | D66: 0.999871378 | E66: 0 | F66: 32.07635258 | G66: 9.365768445 | H66: 13.81404034 | I66: 0 | J66: 0 | K66: 0 | L66: 0 | M66: HTR3C | N66: 0.000185574
A67: ENSG00000179059 | B67: -6.928537733 | C67: 0.043713709 | D67: 0.999871378 | E67: 46.98413951 | F67: 22.0524924 | G67: 0 | H67: 23.01221063 | I67: 0 | J67: 0 | K67: 0 | L67: 0 | M67: ZFP42 | N67: 0.000185574
A68: ENSG00000179477 | B68: -7.137288666 | C68: 0.034794903 | D68: 0.999871378 | E68: 70.47620926 | F68: 0 | G68: 9.365768445 | H68: 26.61399257 | I68: 0 | J68: 0 | K68: 0 | L68: 0 | M68: ALOX12B | N68: 0.000185574
A69: ENSG00000179930 | B69: -6.9421803 | C69: 0.038523855 | D69: 0.999871378 | E69: 0 | F69: 42.10021276 | G69: 27.37686161 | H69: 23.15902479 | I69: 0 | J69: 0 | K69: 0 | L69: 0 | M69: ZNF648 | N69: 0.000185574
A70: ENSG00000180176 | B70: -6.319270244 | C70: 0.096836956 | D70: 0.999871378 | E70: 0 | F70: 22.0524924 | G70: 23.05419925 | H70: 15.03556388 | I70: 0 | J70: 0 | K70: 0 | L70: 0 | M70: TH | N70: 0.000185574
A71: ENSG00000180210 | B71: -6.533101279 | C71: 0.083029535 | D71: 0.999871378 | E71: 0 | F71: 3.341286727 | G71: 48.9901734 | H71: 17.44382004 | I71: 0 | J71: 0 | K71: 0 | L71: 0 | M71: F2 | N71: 0.000185574
A72: ENSG00000182489 | B72: -6.723013909 | C72: 0.011230953 | D72: 0.697246093 | E72: 8.809526157 | F72: 31.40809523 | G72: 19.45198062 | H72: 19.88986733 | I72: 0 | J72: 0 | K72: 0 | L72: 0 | M72: XKRX | N72: 0.52026015
A73: ENSG00000183036 | B73: -7.136053214 | C73: 0.03335208 | D73: 0.999871378 | E73: 66.07144618 | F73: 0 | G73: 13.6884308 | H73: 26.58662566 | I73: 0 | J73: 0 | K73: 0 | L73: 0 | M73: PCP4 | N73: 0.000185574
A74: ENSG00000183674 | B74: -21.92763504 | C74: 2.03E-08 | D74: 4.57E-05 | E74: 111.5873313 | F74: 0 | G74: 0 | H74: 37.19577711 | I74: 0 | J74: 0 | K74: 0 | L74: 0 | M74: LINC00518 | N74: 14.41744631
A75: ENSG00000183960 | B75: -7.737928825 | C75: 0.000286585 | D75: 0.094990653 | E75: 67.53970054 | F75: 34.74938196 | G75: 18.73153689 | H75: 40.34020646 | I75: 0 | J75: 0 | K75: 0 | L75: 0 | M75: KCNH8 | N75: 3.396070629
A76: ENSG00000184788 | B76: -7.3356434 | C76: 0.021200719 | D76: 0.91663878 | E76: 51.38890258 | F76: 40.09544072 | G76: 0 | H76: 30.4947811 | I76: 0 | J76: 0 | K76: 0 | L76: 0 | M76: SATL1 | N76: 0.125574772
A77: ENSG00000184809 | B77: -6.246880966 | C77: 0.048668987 | D77: 0.999871378 | E77: 1.46825436 | F77: 32.74460992 | G77: 8.645324718 | H77: 14.286063 | I77: 0 | J77: 0 | K77: 0 | L77: 0 | M77: B3GALT5-AS1 | N77: 0.000185574
A78: ENSG00000185069 | B78: -7.093488393 | C78: 0.003521261 | D78: 0.37222583 | E78: 41.11112207 | F78: 24.05726443 | G78: 12.24754335 | H78: 25.80530995 | I78: 0 | J78: 0 | K78: 0 | L78: 0 | M78: KRT76 | N78: 1.425749923
A79: ENSG00000185177 | B79: -6.987771434 | C79: 0.041314733 | D79: 0.999871378 | E79: 57.26192002 | F79: 14.7016616 | G79: 0 | H79: 23.98786054 | I79: 0 | J79: 0 | K79: 0 | L79: 0 | M79: ZNF479 | N79: 0.000185574
A80: ENSG00000186891 | B80: -7.349646257 | C80: 0.001863165 | D80: 0.280986752 | E80: 58.73017438 | F80: 10.02386018 | G80: 23.77464297 | H80: 30.84289251 | I80: 0 | J80: 0 | K80: 0 | L80: 0 | M80: TNFRSF18 | N80: 1.831425983
A81: ENSG00000188011 | B81: -21.92763504 | C81: 2.03E-08 | D81: 4.57E-05 | E81: 111.5873313 | F81: 0 | G81: 0 | H81: 37.19577711 | I81: 0 | J81: 0 | K81: 0 | L81: 0 | M81: RTP5 | N81: 14.41744631
A82: ENSG00000188910 | B82: -7.078987686 | C82: 0.034867169 | D82: 0.999871378 | E82: 57.26192002 | F82: 19.37946302 | G82: 0 | H82: 25.54712768 | I82: 0 | J82: 0 | K82: 0 | L82: 0 | M82: GJB3 | N82: 0.000185574
A83: ENSG00000189253 | B83: -6.971699622 | C83: 0.042160095 | D83: 0.999871378 | E83: 55.79366566 | F83: 15.36991894 | G83: 0 | H83: 23.72119487 | I83: 0 | J83: 0 | K83: 0 | L83: 0 | M83: TRIM64B | N83: 0.000185574
A84: ENSG00000189375 | B84: -7.282596353 | C84: 0.024662469 | D84: 0.999871378 | E84: 67.53970054 | F84: 20.71597771 | G84: 0 | H84: 29.41855942 | I84: 0 | J84: 0 | K84: 0 | L84: 0 | M84: TBC1D28 | N84: 0.000185574
A85: ENSG00000196593 | B85: -6.330015165 | C85: 0.105669806 | D85: 0.999871378 | E85: 0 | F85: 45.44149948 | G85: 0 | H85: 15.14716649 | I85: 0 | J85: 0 | K85: 0 | L85: 0 | M85: ANKRD20A19P | N85: 0.000185574
A86: ENSG00000197134 | B86: -7.144526423 | C86: 0.029972298 | D86: 0.999871378 | E86: 44.04763079 | F86: 36.08589665 | G86: 0 | H86: 26.71117581 | I86: 0 | J86: 0 | K86: 0 | L86: 0 | M86: ZNF257 | N86: 0.000185574
A87: ENSG00000197721 | B87: -7.56739429 | C87: 0.015003461 | D87: 0.789335049 | E87: 86.62700721 | F87: 0 | G87: 20.89286807 | H87: 35.83995843 | I87: 0 | J87: 0 | K87: 0 | L87: 0 | M87: CR1L | N87: 0.341290284
A88: ENSG00000199053 | B88: -6.61545229 | C88: 0.064283327 | D88: 0.999871378 | E88: 0 | F88: 28.73506585 | G88: 26.65641788 | H88: 18.46382791 | I88: 0 | J88: 0 | K88: 0 | L88: 0 | M88: MIR324 | N88: 0.000185574
A89: ENSG00000199319 | B89: -21.9097724 | C89: 2.08E-08 | D89: 4.57E-05 | E89: 110.119077 | F89: 0 | G89: 0 | H89: 36.70635899 | I89: 0 | J89: 0 | K89: 0 | L89: 0 | M89: RN7SKP25 | N89: 14.41744631
A90: ENSG00000203408 | B90: -7.007627352 | C90: 0.038562154 | D90: 0.999871378 | E90: 46.98413951 | F90: 0 | G90: 25.93597415 | H90: 24.30670455 | I90: 0 | J90: 0 | K90: 0 | L90: 0 | M90: OR6C71P | N90: 0.000185574
A91: ENSG00000203733 | B91: -6.566649466 | C91: 0.070476681 | D91: 0.999871378 | E91: 0 | F91: 15.36991894 | G91: 38.18351751 | H91: 17.85114548 | I91: 0 | J91: 0 | K91: 0 | L91: 0 | M91: GJE1 | N91: 0.000185574
A92: ENSG00000203971 | B92: -7.24574168 | C92: 0.02544613 | D92: 0.999871378 | E92: 57.26192002 | F92: 28.73506585 | G92: 0 | H92: 28.66566196 | I92: 0 | J92: 0 | K92: 0 | L92: 0 | M92: AL354984.1 | N92: 0.000185574
A93: ENSG00000204544 | B93: -7.258759202 | C93: 0.001645803 | D93: 0.265796206 | E93: 35.23810463 | F93: 32.74460992 | G93: 18.73153689 | H93: 28.90475048 | I93: 0 | J93: 0 | K93: 0 | L93: 0 | M93: MUC21 | N93: 1.911607583
A94: ENSG00000204860 | B94: -6.894657267 | C94: 0.006530669 | D94: 0.507977307 | E94: 36.70635899 | F94: 12.02863222 | G94: 18.73153689 | H94: 22.4888427 | I94: 0 | J94: 0 | K94: 0 | L94: 0 | M94: FAM201A | N94: 0.977164046
A95: ENSG00000205494 | B95: -6.528737239 | C95: 0.079163769 | D95: 0.999871378 | E95: 16.15079796 | F95: 36.08589665 | G95: 0 | H95: 17.41223153 | I95: 0 | J95: 0 | K95: 0 | L95: 0 | M95: OR52A4P | N95: 0.000185574
A96: ENSG00000211642 | B96: -6.264461523 | C96: 0.044524229 | D96: 0.999871378 | E96: 1.46825436 | F96: 16.70643363 | G96: 25.21553043 | H96: 14.46340614 | I96: 0 | J96: 0 | K96: 0 | L96: 0 | M96: IGLV10-54 | N96: 0.000185574
A97: ENSG00000213150 | B97: -6.902904963 | C97: 0.045881756 | D97: 0.999871378 | E97: 48.45239387 | F97: 19.37946302 | G97: 0 | H97: 22.61061896 | I97: 0 | J97: 0 | K97: 0 | L97: 0 | M97: AL512430.1 | N97: 0.000185574
A98: ENSG00000213962 | B98: -6.471579158 | C98: 0.02693447 | D98: 0.999871378 | E98: 13.21428924 | F98: 34.08112461 | G98: 2.881774906 | H98: 16.72572959 | I98: 0 | J98: 0 | K98: 0 | L98: 0 | M98: API5P2 | N98: 0.000185574
A99: ENSG00000214100 | B99: -6.947679868 | C99: 0.042718632 | D99: 0.999871378 | E99: 49.92064822 | F99: 20.04772036 | G99: 0 | H99: 23.32278953 | I99: 0 | J99: 0 | K99: 0 | L99: 0 | M99: PLAC9P1 | N99: 0.000185574
A100: ENSG00000214211 | B100: -7.26950404 | C100: 0.025134188 | D100: 0.999871378 | E100: 66.07144618 | F100: 21.38423505 | G100: 0 | H100: 29.15189374 | I100: 0 | J100: 0 | K100: 0 | L100: 0 | M100: CTAGE14P | N100: 0.000185574
A101: ENSG00000215217 | B101: -6.688380794 | C101: 0.058310192 | D101: 0.999871378 | E101: 0 | F101: 38.09066869 | G101: 20.17242434 | H101: 19.42103101 | I101: 0 | J101: 0 | K101: 0 | L101: 0 | M101: C5orf49 | N101: 0.000185574
A102: ENSG00000215262 | B102: -6.197008065 | C102: 0.113250046 | D102: 0.999871378 | E102: 0 | F102: 41.43195541 | G102: 0 | H102: 13.8106518 | I102: 0 | J102: 0 | K102: 0 | L102: 0 | M102: KCNU1 | N102: 0.000185574
A103: ENSG00000218186 | B103: -7.653301762 | C103: 0.013963651 | D103: 0.757632553 | E103: 102.7778052 | F103: 11.36037487 | G103: 0 | H103: 38.04606001 | I103: 0 | J103: 0 | K103: 0 | L103: 0 | M103: KRT8P43 | N103: 0.400429775
A104: ENSG00000218823 | B104: -7.522025835 | C104: 0.015262617 | D104: 0.789335049 | E104: 73.41271798 | F104: 30.73983789 | G104: 0 | H104: 34.71751862 | I104: 0 | J104: 0 | K104: 0 | L104: 0 | M104: PAPOLB | N104: 0.341290284
A105: ENSG00000220494 | B105: -6.365681919 | C105: 0.096984589 | D105: 0.999871378 | E105: 0 | F105: 40.09544072 | G105: 6.483993539 | H105: 15.52647809 | I105: 0 | J105: 0 | K105: 0 | L105: 0 | M105: YAP1P1 | N105: 0.000185574
A106: ENSG00000221900 | B106: -6.744800229 | C106: 0.057500202 | D106: 0.999871378 | E106: 36.70635899 | F106: 24.05726443 | G106: 0 | H106: 20.25454114 | I106: 0 | J106: 0 | K106: 0 | L106: 0 | M106: POM121L12 | N106: 0.000185574
A107: ENSG00000223351 | B107: -6.350509319 | C107: 0.104538664 | D107: 0.999871378 | E107: 0 | F107: 0 | G107: 46.1083985 | H107: 15.36946617 | I107: 0 | J107: 0 | K107: 0 | L107: 0 | M107: ZNF385D-AS2 | N107: 0.000185574
A108: ENSG00000223484 | B108: -7.047373446 | C108: 0.009579686 | D108: 0.632906559 | E108: 49.92064822 | F108: 1.336514691 | G108: 23.77464297 | H108: 25.01060196 | I108: 0 | J108: 0 | K108: 0 | L108: 0 | M108: TRPC6P | N108: 0.659935576
A109: ENSG00000223810 | B109: -6.402297559 | C109: 0.086835855 | D109: 0.999871378 | E109: 0 | F109: 24.72552178 | G109: 23.05419925 | H109: 15.92657368 | I109: 0 | J109: 0 | K109: 0 | L109: 0 | M109: KRT8P28 | N109: 0.000185574
A110: ENSG00000224101 | B110: -6.495024919 | C110: 0.01840518 | D110: 0.861080617 | E110: 11.74603488 | F110: 23.38900709 | G110: 15.84976198 | H110: 16.99493465 | I110: 0 | J110: 0 | K110: 0 | L110: 0 | M110: ELMO1-AS1 | N110: 0.215779781
A111: ENSG00000224203 | B111: -7.233161816 | C111: 0.028265437 | D111: 0.999871378 | E111: 71.94446362 | F111: 13.36514691 | G111: 0 | H111: 28.43653684 | I111: 0 | J111: 0 | K111: 0 | L111: 0 | M111: RPS23P10 | N111: 0.000185574
A112: ENSG00000224714 | B112: -6.521400399 | C112: 0.073683898 | D112: 0.999871378 | E112: 0 | F112: 27.39855116 | G112: 24.4950867 | H112: 17.29787929 | I112: 0 | J112: 0 | K112: 0 | L112: 0 | M112: AC024600.1 | N112: 0.000185574
A113: ENSG00000224863 | B113: -7.133257182 | C113: 0.031677341 | D113: 0.999871378 | E113: 55.79366566 | F113: 0 | G113: 23.77464297 | H113: 26.52276955 | I113: 0 | J113: 0 | K113: 0 | L113: 0 | M113: LINC01398 | N113: 0.000185574
A114: ENSG00000225198 | B114: -7.390190399 | C114: 0.01986696 | D114: 0.891096931 | E114: 69.0079549 | F114: 26.06203647 | G114: 0 | H114: 31.68999712 | I114: 0 | J114: 0 | K114: 0 | L114: 0 | M114: SSXP3 | N114: 0.166345722
A115: ENSG00000225333 | B115: -6.279649648 | C115: 0.10849115 | D115: 0.999871378 | E115: 0 | F115: 0.668257345 | G115: 43.22662359 | H115: 14.63162698 | I115: 0 | J115: 0 | K115: 0 | L115: 0 | M115: AL035404.1 | N115: 0.000185574
A116: ENSG00000225767 | B116: -6.432193118 | C116: NA | D116: NA | E116: 0 | F116: 48.78278621 | G116: 0 | H116: 16.26092874 | I116: 0 | J116: 0 | K116: 0 | L116: 0 | M116: AL049637.1
A117: ENSG00000225769 | B117: -6.472612838 | C117: 0.097998368 | D117: 0.999871378 | E117: 0 | F117: 49.45104356 | G117: 0.720443727 | H117: 16.72382909 | I117: 0 | J117: 0 | K117: 0 | L117: 0 | M117: CROCCP1 | N117: 0.000185574
A118: ENSG00000226026 | B118: -7.410258354 | C118: 0.000971951 | D118: 0.196460447 | E118: 49.92064822 | F118: 22.72074974 | G118: 23.77464297 | H118: 32.13868031 | I118: 0 | J118: 0 | K118: 0 | L118: 0 | M118: AC092802.1 | N118: 2.347689208
A119: ENSG00000226122 | B119: -6.173597281 | C119: 0.114627803 | D119: 0.999871378 | E119: 0 | F119: 40.76369807 | G119: 0 | H119: 13.58789936 | I119: 0 | J119: 0 | K119: 0 | L119: 0 | M119: DDC-AS1 | N119: 0.000185574
A120: ENSG00000226157 | B120: -7.071849895 | C120: 0.034696148 | D120: 0.999871378 | E120: 52.85715694 | F120: 23.38900709 | G120: 0 | H120: 25.41538801 | I120: 0 | J120: 0 | K120: 0 | L120: 0 | M120: OR52E3P | N120: 0.000185574
A121: ENSG00000226159 | B121: -6.87560481 | C121: 0.00757227 | D121: 0.556704167 | E121: 41.11112207 | F121: 14.7016616 | G121: 10.8066559 | H121: 22.20647985 | I121: 0 | J121: 0 | K121: 0 | L121: 0 | M121: LINC01375 | N121: 0.845017213
A122: ENSG00000226533 | B122: -6.351037131 | C122: 0.104509661 | D122: 0.999871378 | E122: 0 | F122: 46.10975683 | G122: 0 | H122: 15.36991894 | I122: 0 | J122: 0 | K122: 0 | L122: 0 | M122: BTBD9-AS1 | N122: 0.000185574
A123: ENSG00000226650 | B123: -7.296484445 | C123: 0.002685731 | D123: 0.32303751 | E123: 54.3254113 | F123: 6.014316108 | G123: 28.81774906 | H123: 29.71915882 | I123: 0 | J123: 0 | K123: 0 | L123: 0 | M123: KIF4B | N123: 1.630226399
A124: ENSG00000226668 | B124: -6.630070626 | C124: 0.06296265 | D124: 0.999871378 | E124: 0 | F124: 30.73983789 | G124: 25.21553043 | H124: 18.65178944 | I124: 0 | J124: 0 | K124: 0 | L124: 0 | M124: AL136981.1 | N124: 0.000185574
A125: ENSG00000226942 | B125: -7.676609568 | C125: 0.0007689 | D125: 0.167073335 | E125: 83.69049849 | F125: 9.355602835 | G125: 23.05419925 | H125: 38.70010019 | I125: 0 | J125: 0 | K125: 0 | L125: 0 | M125: IL9RP3 | N125: 2.581446598
A126: ENSG00000227039 | B126: -7.090511099 | C126: 0.003512563 | D126: 0.37222583 | E126: 20.55556103 | F126: 42.10021276 | G126: 14.40887453 | H126: 25.68821611 | I126: 0 | J126: 0 | K126: 0 | L126: 0 | M126: ITGB2-AS1 | N126: 1.425749923
A127: ENSG00000227562 | B127: -6.962736986 | C127: 0.008273559 | D127: 0.588355367 | E127: 54.3254113 | F127: 10.02386018 | G127: 6.483993539 | H127: 23.61108834 | I127: 0 | J127: 0 | K127: 0 | L127: 0 | M127: AC074257.1 | N127: 0.765240288
A128: ENSG00000227617 | B128: -6.389908568 | C128: 0.088396418 | D128: 0.999871378 | E128: 0 | F128: 20.71597771 | G128: 26.65641788 | H128: 15.79079853 | I128: 0 | J128: 0 | K128: 0 | L128: 0 | M128: CERS6-AS1 | N128: 0.000185574
A129: ENSG00000228035 | B129: -6.968614095 | C129: 0.004928184 | D129: 0.445965726 | E129: 35.23810463 | F129: 22.0524924 | G129: 13.6884308 | H129: 23.65967594 | I129: 0 | J129: 0 | K129: 0 | L129: 0 | M129: AL512638.2 | N129: 1.164995257
A130: ENSG00000228317 | B130: -6.70135885 | C130: 0.056921598 | D130: 0.999871378 | E130: 0 | F130: 22.0524924 | G130: 36.74263005 | H130: 19.59837415 | I130: 0 | J130: 0 | K130: 0 | L130: 0 | M130: AL158070.1 | N130: 0.000185574
A131: ENSG00000229052 | B131: -6.993581734 | C131: NA | D131: NA | E131: 0 | F131: 0 | G131: 72.04437265 | H131: 24.01479088 | I131: 0 | J131: 0 | K131: 0 | L131: 0 | M131: AL449283.1
A132: ENSG00000229628 | B132: -6.519955821 | C132: 0.073863526 | D132: 0.999871378 | E132: 0 | F132: 28.0668085 | G132: 23.77464297 | H132: 17.28048383 | I132: 0 | J132: 0 | K132: 0 | L132: 0 | M132: AC073115.1 | N132: 0.000185574
A133: ENSG00000229754 | B133: -6.914453104 | C133: 0.044768188 | D133: 0.999871378 | E133: 46.98413951 | F133: 21.38423505 | G133: 0 | H133: 22.78945819 | I133: 0 | J133: 0 | K133: 0 | L133: 0 | M133: CXCR2P1 | N133: 0.000185574
A134: ENSG00000229782 | B134: -6.994461046 | C134: 0.038929968 | D134: 0.999871378 | E134: 45.51588515 | F134: 26.73029381 | G134: 0 | H134: 24.08205965 | I134: 0 | J134: 0 | K134: 0 | L134: 0 | M134: AC118754.1 | N134: 0.000185574
A135: ENSG00000229967 | B135: -21.16445306 | C135: 6.17E-08 | D135: 4.57E-05 | E135: 96.90478773 | F135: 0 | G135: 0 | H135: 32.30159591 | I135: 0 | J135: 0 | K135: 0 | L135: 0 | M135: AF274855.1 | N135: 14.41744631
A136: ENSG00000229972 | B136: -6.350509319 | C136: 0.104538664 | D136: 0.999871378 | E136: 0 | F136: 0 | G136: 46.1083985 | H136: 15.36946617 | I136: 0 | J136: 0 | K136: 0 | L136: 0 | M136: IQCF3 | N136: 0.000185574
A137: ENSG00000230023 | B137: -6.262355408 | C137: 0.104540976 | D137: 0.999871378 | E137: 0 | F137: 16.70643363 | G137: 26.65641788 | H137: 14.45428384 | I137: 0 | J137: 0 | K137: 0 | L137: 0 | M137: AL590683.1 | N137: 0.000185574
A138: ENSG00000230062 | B138: -6.761694022 | C138: 0.055866136 | D138: 0.999871378 | E138: 29.36508719 | F138: 32.07635258 | G138: 0 | H138: 20.48047992 | I138: 0 | J138: 0 | K138: 0 | L138: 0 | M138: ANKRD66 | N138: 0.000185574
A139: ENSG00000230267 | B139: -7.033663106 | C139: 0.006350773 | D139: 0.504860667 | E139: 49.92064822 | F139: 19.37946302 | G139: 5.043106086 | H139: 24.78107244 | I139: 0 | J139: 0 | K139: 0 | L139: 0 | M139: HERC2P4 | N139: 0.986042812
A140: ENSG00000230342 | B140: -6.472383171 | C140: 0.031304355 | D140: 0.999871378 | E140: 1.46825436 | F140: 32.07635258 | G140: 16.57020571 | H140: 16.70493755 | I140: 0 | J140: 0 | K140: 0 | L140: 0 | M140: FANCD2P2 | N140: 0.000185574
A141: ENSG00000230361 | B141: -21.75436604 | C141: 2.63E-08 | D141: 4.57E-05 | E141: 98.37304209 | F141: 0 | G141: 0 | H141: 32.79101403 | I141: 0 | J141: 0 | K141: 0 | L141: 0 | M141: VN1R32P | N141: 14.41744631
A142: ENSG00000230725 | B142: -6.493346954 | C142: 0.0270147 | D142: 0.999871378 | E142: 5.873017438 | F142: 4.677801417 | G142: 40.34484868 | H142: 16.96522251 | I142: 0 | J142: 0 | K142: 0 | L142: 0 | M142: AL035252.2 | N142: 0.000185574
A143: ENSG00000230773 | B143: -7.216805328 | C143: 0.004657198 | D143: 0.433696007 | E143: 51.38890258 | F143: 30.07158054 | G143: 2.881774906 | H143: 28.11408601 | I143: 0 | J143: 0 | K143: 0 | L143: 0 | M143: AC092650.1 | N143: 1.205243934
A144: ENSG00000230817 | B144: -21.16445306 | C144: 6.17E-08 | D144: 4.57E-05 | E144: 96.90478773 | F144: 0 | G144: 0 | H144: 32.30159591 | I144: 0 | J144: 0 | K144: 0 | L144: 0 | M144: LINC01362 | N144: 14.41744631
A145: ENSG00000230845 | B145: -6.776217724 | C145: NA | D145: NA | E145: 0 | F145: 0 | G145: 61.95816048 | H145: 20.65272016 | I145: 0 | J145: 0 | K145: 0 | L145: 0 | M145: GSTA10P
A146: ENSG00000231987 | B146: -7.206917095 | C146: 0.006808989 | D146: 0.522923368 | E146: 61.6666831 | F146: 20.71597771 | G146: 1.440887453 | H146: 27.94118275 | I146: 0 | J146: 0 | K146: 0 | L146: 0 | M146: LINC01787 | N146: 0.935328553
A147: ENSG00000232328 | B147: -6.971699622 | C147: 0.042160095 | D147: 0.999871378 | E147: 55.79366566 | F147: 15.36991894 | G147: 0 | H147: 23.72119487 | I147: 0 | J147: 0 | K147: 0 | L147: 0 | M147: AC084030.1 | N147: 0.000185574
A148: ENSG00000232359 | B148: -7.023120278 | C148: 0.038060838 | D148: 0.999871378 | E148: 51.38890258 | F148: 0 | G148: 22.33375552 | H148: 24.57421937 | I148: 0 | J148: 0 | K148: 0 | L148: 0 | M148: AC104777.2 | N148: 0.000185574
A149: ENSG00000232486 | B149: -6.886607916 | C149: 0.046665184 | D149: 0.999871378 | E149: 41.11112207 | F149: 0 | G149: 25.93597415 | H149: 22.34903207 | I149: 0 | J149: 0 | K149: 0 | L149: 0 | M149: AL592437.2 | N149: 0.000185574
A150: ENSG00000232675 | B150: -7.025248308 | C150: 0.03927295 | D150: 0.999871378 | E150: 58.73017438 | F150: 0 | G150: 15.12931826 | H150: 24.61983088 | I150: 0 | J150: 0 | K150: 0 | L150: 0 | M150: AL121830.1 | N150: 0.000185574
A151: ENSG00000232727 | B151: -6.532171201 | C151: 0.078453918 | D151: 0.999871378 | E151: 17.61905231 | F151: 34.74938196 | G151: 0 | H151: 17.45614476 | I151: 0 | J151: 0 | K151: 0 | L151: 0 | M151: YWHAEP1 | N151: 0.000185574
A152: ENSG00000233272 | B152: -6.199042186 | C152: 0.113130957 | D152: 0.999871378 | E152: 0 | F152: 31.40809523 | G152: 10.08621217 | H152: 13.8314358 | I152: 0 | J152: 0 | K152: 0 | L152: 0 | M152: PNPT1P2 | N152: 0.000185574
A153: ENSG00000233609 | B153: -7.129371252 | C153: 0.031037424 | D153: 0.999871378 | E153: 49.92064822 | F153: 29.4033232 | G153: 0 | H153: 26.44132381 | I153: 0 | J153: 0 | K153: 0 | L153: 0 | M153: RPL10P19 | N153: 0.000185574
A154: ENSG00000233842 | B154: -6.836845349 | C154: 0.050157927 | D154: 0.999871378 | E154: 33.76985027 | F154: 0 | G154: 30.97908024 | H154: 21.58297684 | I154: 0 | J154: 0 | K154: 0 | L154: 0 | M154: AC062031.1 | N154: 0.000185574
A155: ENSG00000233975 | B155: -6.327823904 | C155: 0.105791325 | D155: 0.999871378 | E155: 0 | F155: 0 | G155: 45.38795477 | H155: 15.12931826 | I155: 0 | J155: 0 | K155: 0 | L155: 0 | M155: LINC02574 | N155: 0.000185574
A156: ENSG00000234165 | B156: -6.961445232 | C156: 0.041709444 | D156: 0.999871378 | E156: 49.92064822 | F156: 20.71597771 | G156: 0 | H156: 23.54554198 | I156: 0 | J156: 0 | K156: 0 | L156: 0 | M156: AC114877.1 | N156: 0.000185574
A157: ENSG00000234255 | B157: -6.197008065 | C157: 0.113250046 | D157: 0.999871378 | E157: 0 | F157: 41.43195541 | G157: 0 | H157: 13.8106518 | I157: 0 | J157: 0 | K157: 0 | L157: 0 | M157: AC012370.2 | N157: 0.000185574
A158: ENSG00000234425 | B158: -7.389538745 | C158: 0.020801495 | D158: 0.908939767 | E158: 74.88097234 | F158: 0 | G158: 20.17242434 | H158: 31.68446556 | I158: 0 | J158: 0 | K158: 0 | L158: 0 | M158: AL138930.1 | N158: 0.137743401
A159: ENSG00000235085 | B159: -6.751794924 | C159: 0.056680233 | D159: 0.999871378 | E159: 32.30159591 | F159: 28.73506585 | G159: 0 | H159: 20.34555392 | I159: 0 | J159: 0 | K159: 0 | L159: 0 | M159: AC091153.2 | N159: 0.000185574
A160: ENSG00000235147 | B160: -6.36317704 | C160: 0.093042512 | D160: 0.999871378 | E160: 0 | F160: 13.36514691 | G160: 33.14041142 | H160: 15.50185278 | I160: 0 | J160: 0 | K160: 0 | L160: 0 | M160: AC128677.1 | N160: 0.000185574
A161: ENSG00000235544 | B161: -7.148274307 | C161: 0.031873184 | D161: 0.999871378 | E161: 63.13493746 | F161: 0 | G161: 17.29064944 | H161: 26.80852897 | I161: 0 | J161: 0 | K161: 0 | L161: 0 | M161: RPS11P1 | N161: 0.000185574
A162: ENSG00000235838 | B162: -7.621234738 | C162: 0.000445479 | D162: 0.131996807 | E162: 63.13493746 | F162: 24.72552178 | G162: 23.77464297 | H162: 37.21170074 | I162: 0 | J162: 0 | K162: 0 | L162: 0 | M162: HSP90AB7P | N162: 2.921425064
A163: ENSG00000236495 | B163: -22.23134035 | C163: NA | D163: NA | E163: 139.4841642 | F163: 0 | G163: 0 | H163: 46.49472139 | I163: 0 | J163: 0 | K163: 0 | L163: 0 | M163: AL158168.1
A164: ENSG00000237267 | B164: -7.53927051 | C164: 0.003749905 | D164: 0.381943448 | E164: 64.60319182 | F164: 40.09544072 | G164: 0.720443727 | H164: 35.13969209 | I164: 0 | J164: 0 | K164: 0 | L164: 0 | M164: LINC01519 | N164: 1.388569052
A165: ENSG00000237410 | B165: -6.416502041 | C165: 0.100961866 | D165: 0.999871378 | E165: 0 | F165: 0 | G165: 48.26972968 | H165: 16.08990989 | I165: 0 | J165: 0 | K165: 0 | L165: 0 | M165: AP001092.1 | N165: 0.000185574
A166: ENSG00000237569 | B166: -21.65299237 | C166: 3.05E-08 | D166: 4.57E-05 | E166: 91.03177029 | F166: 0 | G166: 0 | H166: 30.34392343 | I166: 0 | J166: 0 | K166: 0 | L166: 0 | M166: TUBAP | N166: 14.41744631
A167: ENSG00000239622 | B167: -7.348312339 | C167: 0.027668718 | D167: 0.999871378 | E167: 88.09526157 | F167: 0 | G167: 4.322662359 | H167: 30.80597464 | I167: 0 | J167: 0 | K167: 0 | L167: 0 | M167: AC005165.2 | N167: 0.000185574
A168: ENSG00000240893 | B168: -7.124794409 | C168: 0.003211233 | D168: 0.350831735 | E168: 39.64286771 | F168: 11.36037487 | G168: 28.09730533 | H168: 26.3668493 | I168: 0 | J168: 0 | K168: 0 | L168: 0 | M168: LINC02042 | N168: 1.51114884
A169: ENSG00000241657 | B169: -6.971878674 | C169: 0.041199104 | D169: 0.999871378 | E169: 23.49206975 | F169: 0 | G169: 47.54928595 | H169: 23.6804519 | I169: 0 | J169: 0 | K169: 0 | L169: 0 | M169: TRBV11-2 | N169: 0.000185574
A170: ENSG00000242703 | B170: -6.848402653 | C170: 0.049343023 | D170: 0.999871378 | E170: 42.57937643 | F170: 22.72074974 | G170: 0 | H170: 21.76670872 | I170: 0 | J170: 0 | K170: 0 | L170: 0 | M170: CCT4P1 | N170: 0.000185574
A171: ENSG00000242705 | B171: -6.221819587 | C171: 0.111804213 | D171: 0.999871378 | E171: 0 | F171: 41.43195541 | G171: 0.720443727 | H171: 14.05079971 | I171: 0 | J171: 0 | K171: 0 | L171: 0 | M171: ICE2P2 | N171: 0.000185574
A172: ENSG00000243440 | B172: -7.162535098 | C172: 0.029657982 | D172: 0.999871378 | E172: 55.79366566 | F172: 25.39377912 | G172: 0 | H172: 27.0624816 | I172: 0 | J172: 0 | K172: 0 | L172: 0 | M172: NA | N172: 0.000185574
A173: ENSG00000243715 | B173: -22.26650393 | C173: NA | D173: NA | E173: 143.8889272 | F173: 0 | G173: 0 | H173: 47.96297575 | I173: 0 | J173: 0 | K173: 0 | L173: 0 | M173: CACNA2D3-AS1
A174: ENSG00000244215 | B174: -6.443382021 | C174: 0.083573269 | D174: 0.999871378 | E174: 0 | F174: 34.74938196 | G174: 14.40887453 | H174: 16.3860855 | I174: 0 | J174: 0 | K174: 0 | L174: 0 | M174: LINC02016 | N174: 0.000185574
A175: ENSG00000246363 | B175: -6.984770904 | C175: 0.013049094 | D175: 0.739824786 | E175: 39.64286771 | F175: 31.40809523 | G175: 0.720443727 | H175: 23.92380222 | I175: 0 | J175: 0 | K175: 0 | L175: 0 | M175: LINC02458 | N175: 0.43474446
A176: ENSG00000246465 | B176: -6.559686286 | C176: 0.016207636 | D176: 0.804458211 | E176: 13.21428924 | F176: 12.02863222 | G176: 28.09730533 | H176: 17.7800756 | I176: 0 | J176: 0 | K176: 0 | L176: 0 | M176: AC138904.1 | N176: 0.313910615
A177: ENSG00000248115 | B177: -7.078331807 | C177: 0.011919724 | D177: 0.715037207 | E177: 58.73017438 | F177: 0.668257345 | G177: 17.29064944 | H177: 25.56302705 | I177: 0 | J177: 0 | K177: 0 | L177: 0 | M177: AC023154.1 | N177: 0.48390978
A178: ENSG00000248669 | B178: -7.120090249 | C178: 0.032457857 | D178: 0.999871378 | E178: 55.79366566 | F178: 0 | G178: 23.05419925 | H178: 26.28262164 | I178: 0 | J178: 0 | K178: 0 | L178: 0 | M178: AC116562.2 | N178: 0.000185574
A179: ENSG00000248704 | B179: -7.039732134 | C179: 0.038588972 | D179: 0.999871378 | E179: 60.19842874 | F179: 0 | G179: 14.40887453 | H179: 24.86910109 | I179: 0 | J179: 0 | K179: 0 | L179: 0 | M179: MTND4P2 | N179: 0.000185574
A180: ENSG00000249084 | B180: -6.451787592 | C180: NA | D180: NA | E180: 0 | F180: 49.45104356 | G180: 0 | H180: 16.48368119 | I180: 0 | J180: 0 | K180: 0 | L180: 0 | M180: AC027627.1
A181: ENSG00000249410 | B181: -7.240561605 | C181: 0.031016558 | D181: 0.999871378 | E181: 79.28573542 | F181: 0 | G181: 6.483993539 | H181: 28.58990965 | I181: 0 | J181: 0 | K181: 0 | L181: 0 | M181: AK4P2 | N181: 0.000185574
A182: ENSG00000249525 | B182: -6.398915221 | C182: 0.08933602 | D182: 0.999871378 | E182: 0 | F182: 35.4176393 | G182: 12.24754335 | H182: 15.88839422 | I182: 0 | J182: 0 | K182: 0 | L182: 0 | M182: AC034159.1 | N182: 0.000185574
A183: ENSG00000249717 | B183: -7.053648962 | C183: 0.037576171 | D183: 0.999871378 | E183: 60.19842874 | F183: 0 | G183: 15.12931826 | H183: 25.109249 | I183: 0 | J183: 0 | K183: 0 | L183: 0 | M183: AC110760.2 | N183: 0.000185574
A184: ENSG00000250198 | B184: -6.831700287 | C184: 0.050119487 | D184: 0.999871378 | E184: 33.76985027 | F184: 30.73983789 | G184: 0 | H184: 21.50322939 | I184: 0 | J184: 0 | K184: 0 | L184: 0 | M184: LINC02199 | N184: 0.000185574
A185: ENSG00000250361 | B185: -22.2571124 | C185: NA | D185: NA | E185: 142.4206729 | F185: 0 | G185: 0 | H185: 47.47355763 | I185: 0 | J185: 0 | K185: 0 | L185: 0 | M185: GYPB
A186: ENSG00000250673 | B186: -6.899882602 | C186: NA | D186: NA | E186: 0 | F186: 67.49399188 | G186: 0 | H186: 22.49799729 | I186: 0 | J186: 0 | K186: 0 | L186: 0 | M186: REELD1
A187: ENSG00000251304 | B187: -6.79752751 | C187: 0.053185598 | D187: 0.999871378 | E187: 39.64286771 | F187: 23.38900709 | G187: 0 | H187: 21.01062493 | I187: 0 | J187: 0 | K187: 0 | L187: 0 | M187: NA | N187: 0.000185574
A188: ENSG00000251588 | B188: -6.586202825 | C188: 0.028325595 | D188: 0.999871378 | E188: 24.96032411 | F188: 28.73506585 | G188: 0.720443727 | H188: 18.13861123 | I188: 0 | J188: 0 | K188: 0 | L188: 0 | M188: AC125336.1 | N188: 0.000185574
A189: ENSG00000253119 | B189: -21.65299237 | C189: 3.05E-08 | D189: 4.57E-05 | E189: 91.03177029 | F189: 0 | G189: 0 | H189: 30.34392343 | I189: 0 | J189: 0 | K189: 0 | L189: 0 | M189: HNRNPA3P7 | N189: 14.41744631
A190: ENSG00000253311 | B190: -6.414778752 | C190: 0.085686017 | D190: 0.999871378 | E190: 0 | F190: 19.37946302 | G190: 28.81774906 | H190: 16.06573736 | I190: 0 | J190: 0 | K190: 0 | L190: 0 | M190: LINC01847 | N190: 0.000185574
A191: ENSG00000253510 | B191: -7.486486454 | C191: 0.000855875 | D191: 0.179972922 | E191: 60.19842874 | F191: 22.0524924 | G191: 19.45198062 | H191: 33.90096725 | I191: 0 | J191: 0 | K191: 0 | L191: 0 | M191: AC004944.1 | N191: 2.474148234
A192: ENSG00000253552 | B192: -6.547086658 | C192: 0.021402689 | D192: 0.921918451 | E192: 4.404763079 | F192: 35.4176393 | G192: 12.96798708 | H192: 17.59679649 | I192: 0 | J192: 0 | K192: 0 | L192: 0 | M192: HOXA-AS2 | N192: 0.117288953
A193: ENSG00000253614 | B193: -7.211712352 | C193: 0.028135582 | D193: 0.999871378 | E193: 63.13493746 | F193: 0 | G193: 20.89286807 | H193: 28.00926851 | I193: 0 | J193: 0 | K193: 0 | L193: 0 | M193: AC025674.2 | N193: 0.000185574
A194: ENSG00000253660 | B194: -6.246736661 | C194: 0.106188056 | D194: 0.999871378 | E194: 0 | F194: 22.72074974 | G194: 20.17242434 | H194: 14.29772469 | I194: 0 | J194: 0 | K194: 0 | L194: 0 | M194: AC008464.1 | N194: 0.000185574
A195: ENSG00000253898 | B195: -6.941702718 | C195: 0.010372398 | D195: 0.662884394 | E195: 45.51588515 | F195: 22.0524924 | G195: 2.16133118 | H195: 23.24323624 | I195: 0 | J195: 0 | K195: 0 | L195: 0 | M195: LINC01419 | N195: 0.593170806
A196: ENSG00000253964 | B196: -6.30446487 | C196: 0.098904004 | D196: 0.999871378 | E196: 0 | F196: 18.71120567 | G196: 25.93597415 | H196: 14.88239327 | I196: 0 | J196: 0 | K196: 0 | L196: 0 | M196: RPL31P40 | N196: 0.000185574
A197: ENSG00000253967 | B197: -8.085408811 | C197: 0.005083011 | D197: 0.445965726 | E197: 129.2063836 | F197: 24.72552178 | G197: 0 | H197: 51.31063514 | I197: 0 | J197: 0 | K197: 0 | L197: 0 | M197: AC022730.4 | N197: 1.164995257
A198: ENSG00000254101 | B198: -7.623267469 | C198: 0.012750879 | D198: 0.732836588 | E198: 80.75398978 | F198: 0 | G198: 30.97908024 | H198: 37.24435667 | I198: 0 | J198: 0 | K198: 0 | L198: 0 | M198: LINC02055 | N198: 0.448436561
A199: ENSG00000254871 | B199: -7.214451017 | C199: 0.026636798 | D199: 0.999871378 | E199: 51.38890258 | F199: 32.74460992 | G199: 0 | H199: 28.04450417 | I199: 0 | J199: 0 | K199: 0 | L199: 0 | M199: AC024475.2 | N199: 0.000185574
A200: ENSG00000254887 | B200: -21.8337165 | C200: 2.33E-08 | D200: 4.57E-05 | E200: 104.2460595 | F200: 0 | G200: 0 | H200: 34.74868651 | I200: 0 | J200: 0 | K200: 0 | L200: 0 | M200: AC010247.1 | N200: 14.41744631
A201: ENSG00000255070 | B201: -6.371759033 | C201: NA | D201: NA | E201: 0 | F201: 46.77801417 | G201: 0 | H201: 15.59267139 | I201: 0 | J201: 0 | K201: 0 | L201: 0 | M201: OSBPL9P3
... 4299 more rows

Sheet 7I
A1: Figure 7I
A2: %CD4+/total cells
B4: Vehicle | C4: IL1b treatment
A5: Human | B5: 1.46 | C5: 3.68
B6: 2.14 | C6: 2.18
A8: Mouse | B8: 1.08 | C8: 1
B9: 1 | C9: 1.7
B10: 0.87 | C10: 2.03
